Workbook

Sheet дата
C1: от____марта 2019 г. №______ | D1: от08 декабря 2017 г. №131
A2: Приложение №
A3: 1 | B3: ='1'!A6 -> Источники финансирования дефицита | C3: 1 | D3: 1
A4: 2 | B4: ='2'!A6 -> Источники финансирования дефицита | D4: 2
A5: 3 | B5: ='3'!$A$6 -> Прогнозируемые объемы доходов в бюджет | C5: 2 | D5: 3
A6: 4 | B6: ='4'!$A$6 -> Прогнозируемые объемы доходов в бюджет | D6: 4
A7: 5 | B7: ='5'!A6 -> Нормативы распределения доходов между бюджетами бюджетной системы | D7: 5
A8: 6 | B8: ='6'!A6 -> Перечень главных администраторов доходов бюджета | C8: 3 | D8: 6
A9: 7 | B9: ='7'!A6 -> Перечень главных администраторов и администраторов | D9: 7
A10: 8 | B10: ='8'!A6 -> Распределение бюджетных ассигнований по разделам и подразделам, | C10: 4 | D10: 8
A11: 9 | B11: ='9'!A6 -> Распределение бюджетных ассигнований по разделам и подразделам, | D11: 9
A12: 10 | B12: ='10'!A6 -> Ведомственная структура расходов | C12: 5 | D12: 10
A13: 11 | B13: ='11'!A6 -> Ведомственная структура расходов | D13: 11
A14: 12 | B14: ='12'!A6 -> Объем бюджетных ассигнований на исполнение | D14: 12
A15: 13 | B15: ='13'!A7 -> публичных нормативных обязательств на плановый период 2019 и 2020 годов | D15: 13
A16: 14 | B16: ='14'!A7 -> с заключенными соглашениями на финансовый контроль на 2018 год | D16: 14
A17: 15 | B17: ='15'!A5 -> Иные межбюджетные трансферты из бюджетов поселений на осуществление | C17: 6 | D17: 15
A18: 16 | B18: ='16'!A7 -> на выравнивание бюджетной обеспеченности поселений на 2018 год | D18: 16
A19: 17 | B19: ='17'!A7 -> на выравнивание бюджетной обеспеченности поселений на плановый период 2019 года | D19: 17
A20: 18 | B20: ='18'!A6 -> Дотации бюджетам поселений | D20: 18
A21: 19 | B21: ='19'!A6 -> Дотации на сбалансированность поселений в 2018 году | D21: 19
A22: 20 | B22: ='20'!A6 -> Дотации на сбалансированность поселений | D22: 20
A23: 21 | B23: ='21а'!A8 -> актов гражданского состояния на 2017 год | D23: 21
A24: 22 | B24: ='22а'!A8 -> актов гражданского состояния на плановый период 2018 и 2019 годов | D24: 22
A25: 23 | B25: ='23а'!A8 -> где отсутствуют военные комиссариаты на 2018 год | D25: 23
A26: 24 | B26: ='24а'!A7 -> на осуществление полномочий по первичному воинскому учету на территориях, | D26: 24
A27: 25 | B27: Межбюджетные трансферты, получаемые | C27: 7 | D27: 25
A28: 26 | B28: Республики Татарстан и бюджетов поселений в плановом периоде 2019 и 2020 годов | D28: 26

Sheet 1
B1: =дата!$A$2&дата!$C$3 -> Приложение №1
B2: к решению Совета Кукморского
B3: муниципального района
B4: =дата!C1 -> от____марта 2019 г. №______
A6: Источники финансирования дефицита
A7: бюджета Кукморского муниципального района на 2019год
A8: (рублей)
A9: Наименование показателя | B9: код показателя | C9: Сумма
A10: Источники внутреннего финансирования дефицита бюджета | B10: 01 00 00 00 00 0000 000 | C10: =SUM(C12+C15) -> 21534635.48
A12: Кредитные соглашения и договоры, заключенные от имени Российской Федерации, субъектов Рос-сийской Федерации, муниципальных образований, государственных внебюджетных фондов | B12: 01 02 00 00 05 0000 000 | C12: =SUM(C13+C14) -> 0
A13: Получение кредитов по кредитным соглашениям и договорам, заключенным от имени Российской Федерации, субъектов Российской Федерации, муниципальных образований, государственных внебюджетных фондов | B13: 01 02 00 00 05 0000 710
A14: Погашение кредитов по кредитным соглашениям и договорам, заключенным от имени Российской Федерации, субъектов Российской Федерации, муниципальных образований, государственных внебюджетных фондов | B14: 01 02 00 00 05 0000 810
A15: Изменение остатков средств на счетах по учету средств бюджета | B15: 01 05 00 00 00 0000 000 | C15: =SUM(C16+C19) -> 21534635.48
A16: Увеличение остатков средств бюджетов | B16: 01 05 00 00 00 0000 500 | C16: =SUM(C17) -> -1214742403
A17: Увеличение прочих остатков средств бюджетов | B17: 01 05 02 01 05 0000 510 | C17: =-'3'!C12 -> -1214742403
A18: Уменьшение остатков средств бюджетов | B18: 01 05 00 00 00 0000 600 | C18: =SUM(C19) -> 1236277039
A19: Уменьшение прочих остатков средств бюджетов | B19: 01 05 02 01 05 0000 610 | C19: ='8'!E12 -> 1236277039
A20: Итого по группе "Источники внутреннего финансирования дефицита бюджета" | C20: =SUM(C15+C12) -> 21534635.48
A21: ВСЕГО источников финансирования | C21: =SUM(C20) -> 21534635.48
A24: Глава Района С.Д.Димитриев

Sheet 2 (hidden)
C1: =дата!$A$2&дата!$D$4 -> Приложение №2
C2: к решению Кукморского
C3: районного Совета
C4: =дата!D1 -> от08 декабря 2017 г. №131
A6: Источники финансирования дефицита
A7: бюджета Кукморского муниципального района на плановый период 2019 и 2020 годов
A9: (рублей)
A10: Наименование показателя | B10: код показателя | C10: 2019 год | D10: 2020 год
A11: Источники внутреннего финансирования дефицита бюджета | B11: 01 00 00 00 00 0000 000 | C11: =SUM(C13+C16) -> 2.384185791e-07 | D11: =SUM(D13+D16) -> 2.384185791e-07
A13: Кредитные соглашения и договоры, заключенные от имени Российской Федерации, субъектов Российской Федерации, муниципальных образований, государственных внебюджетных фондов | B13: 01 02 00 00 05 0000 000 | C13: =SUM(C14+C15) -> 0 | D13: =SUM(D14+D15) -> 0
A14: Получение кредитов по кредитным соглашениям и договорам, заключенным от имени Российской Федерации, субъектов Российской Федерации, муниципальных образований, государственных внебюджетных фондов | B14: 01 02 00 00 05 0000 710 | C14: ='1'!C13 -> 0 | D14: =C14 -> 0
A15: Погашение кредитов по кредитным соглашениям и договорам, заключенным от имени Российской Федерации, субъектов Российской Федерации, муниципальных образований, государственных внебюджетных фондов | B15: 01 02 00 00 05 0000 810 | C15: ='1'!C14 -> 0 | D15: =C15 -> 0
A16: Изменение остатков средств на счетах по учету средств бюджета | B16: 01 05 00 00 00 0000 000 | C16: =SUM(C17+C20) -> 2.384185791e-07 | D16: =SUM(D17+D20) -> 2.384185791e-07
A17: Увеличение остатков средств бюджетов | B17: 01 05 00 00 00 0000 500 | C17: =SUM(C18) -> -1139593430 | D17: =SUM(D18) -> -1151082390
A18: Увеличение прочих остатков средств бюджетов | B18: 01 05 02 01 05 0000 510 | C18: =-'4'!C12 -> -1139593430 | D18: =-'4'!D12 -> -1151082390
A19: Уменьшение остатков средств бюджетов | B19: 01 05 00 00 00 0000 600 | C19: =SUM(C20) -> 1139593430 | D19: =SUM(D20) -> 1151082390
A20: Уменьшение прочих остатков средств бюджетов | B20: 01 05 02 01 05 0000 610 | C20: ='9'!E12 -> 1139593430 | D20: ='9'!F12 -> 1151082390
A21: Итого по группе "Источники внутреннего финансирования дефицита бюджета" | C21: =SUM(C16+C13) -> 2.384185791e-07 | D21: =SUM(D16+D13) -> 2.384185791e-07
A22: ВСЕГО источников финансирования | C22: =SUM(C21) -> 2.384185791e-07 | D22: =SUM(D21) -> 2.384185791e-07
A25: Глава Района С.Д.Димитриев

Sheet 3
B1: =дата!$A$2&дата!$C$5 -> Приложение №2
B2: к решению Совета Кукморского
B3: муниципального района
B4: =дата!C1 -> от____марта 2019 г. №______
A6: Прогнозируемые объемы доходов в бюджет
A7: Кукморского муниципального района на 2019 год
C8: (рублей)
A9: Наименование | B9: КВД | C9: сумма
A12: Доходы бюджета - ИТОГО | B12: X | C12: 1214742403
A14: НАЛОГОВЫЕ И НЕНАЛОГОВЫЕ ДОХОДЫ | B14: 000 100 00000 00 0000 000 | C14: 370108520
A15: НАЛОГИ НА ПРИБЫЛЬ, ДОХОДЫ | B15: 000 101 00000 00 0000 000 | C15: 312054420
A16: Налог на доходы физических лиц | B16: 000 101 02000 01 0000 110 | C16: 312054420
A17: Налог на доходы физических лиц с доходов, источником которых является налоговый агент, за исключением доходов, в отношении которых исчисление и уплата налога осуществляются в соответствии со статьями 227, 227.1 и 228 Налогового кодекса Российской Федерации | B17: 000 101 02010 01 0000 110 | C17: 312054420
A18: НАЛОГИ НА ТОВАРЫ (РАБОТЫ, УСЛУГИ), РЕАЛИЗУЕМЫЕ НА ТЕРРИТОРИИ РОССИЙСКОЙ ФЕДЕРАЦИИ | B18: 000 103 00000 00 0000 000 | C18: 24100000
A19: Акцизы по подакцизным товарам (продукции), производимым на территории Российской Федерации | B19: 000 103 02000 01 0000 110 | C19: 24100000
A20: Доходы от уплаты акцизов на дизельное топливо, подлежащие распределению между бюджетами субъектов Российской Федерации и местными бюджетами с учетом установленных дифференцированных нормативов отчислений в местные бюджеты | B20: 000 103 02230 01 0000 110 | C20: 10400000
A21: Доходы от уплаты акцизов на дизельное топливо, подлежащие распределению между бюджетами субъектов Российской Федерации и местными бюджетами с учетом установленных дифференцированных нормативов отчислений в местные бюджеты (по нормативам, установленным Федеральным законом о федеральном бюджете в целях формирования дорожных фондов субъектов Российской Федерации) | B21: 000 103 02231 01 0000 110 | C21: 10400000
A22: Доходы от уплаты акцизов на автомобильный бензин, подлежащие распределению между бюджетами субъектов Российской Федерации и местными бюджетами с учетом установленных дифференцированных нормативов отчислений в местные бюджеты | B22: 000 103 02250 01 0000 110 | C22: 13700000
A23: Доходы от уплаты акцизов на автомобильный бензин, подлежащие распределению между бюджетами субъектов Российской Федерации и местными бюджетами с учетом установленных дифференцированных нормативов отчислений в местные бюджеты (по нормативам, установленным Федеральным законом о федеральном бюджете в целях формирования дорожных фондов субъектов Российской Федерации) | B23: 000 103 02251 01 0000 110 | C23: 13700000
A24: НАЛОГИ НА СОВОКУПНЫЙ ДОХОД | B24: 000 105 00000 00 0000 000 | C24: 21638600
A25: Налог, взимаемый в связи с применением упрощенной системы налогообложения | B25: 000 105 01000 00 0000 110 | C25: 8001800
A26: Налог, взимаемый с налогоплательщиков, выбравших в качестве объекта налогообложения доходы | B26: 000 105 01010 01 0000 110 | C26: 4000000
A27: Налог, взимаемый с налогоплательщиков, выбравших в качестве объекта налогообложения доходы | B27: 000 105 01011 01 0000 110 | C27: 4000000
A28: Налог, взимаемый с налогоплательщиков, выбравших в качестве объекта налогообложения доходы, уменьшенные на величину расходов | B28: 000 105 01020 01 0000 110 | C28: 4001800
A29: Налог, взимаемый с налогоплательщиков, выбравших в качестве объекта налогообложения доходы, уменьшенные на величину расходов (в том числе минимальный налог, зачисляемый в бюджеты субъектов Российской Федерации) | B29: 000 105 01021 01 0000 110 | C29: 4001800
A30: Единый налог на вмененный доход для отдельных видов деятельности | B30: 000 105 02000 02 0000 110 | C30: 12508300
A31: Единый налог на вмененный доход для отдельных видов деятельности | B31: 000 105 02010 02 0000 110 | C31: 12508300
A32: Единый сельскохозяйственный налог | B32: 000 105 03000 01 0000 110 | C32: 953500
A33: Единый сельскохозяйственный налог | B33: 000 105 03010 01 0000 110 | C33: 953500
A34: Налог, взимаемый в связи с применением патентной системы налогообложения | B34: 000 105 04000 02 0000 110 | C34: 175000
A35: Налог, взимаемый в связи с применением патентной системы налогообложения, зачисляемый в бюджеты муниципальных районов <5> | B35: 000 105 04020 02 0000 110 | C35: 175000
A36: НАЛОГИ, СБОРЫ И РЕГУЛЯРНЫЕ ПЛАТЕЖИ ЗА ПОЛЬЗОВАНИЕ ПРИРОДНЫМИ РЕСУРСАМИ | B36: 000 107 00000 00 0000 000 | C36: 161000
A37: Налог на добычу полезных ископаемых | B37: 000 107 01000 01 0000 110 | C37: 161000
A38: Налог на добычу общераспространенных полезных ископаемых | B38: 000 107 01020 01 0000 110 | C38: 161000
A39: ГОСУДАРСТВЕННАЯ ПОШЛИНА | B39: 000 108 00000 00 0000 000 | C39: 2907000
A40: Государственная пошлина по делам, рассматриваемым в судах общей юрисдикции, мировыми судьями | B40: 000 108 03000 01 0000 110 | C40: 2907000
A41: Государственная пошлина по делам, рассматриваемым в судах общей юрисдикции, мировыми судьями (за исключением Верховного Суда Российской Федерации) | B41: 000 108 03010 01 0000 110 | C41: 2907000
A42: ДОХОДЫ ОТ ИСПОЛЬЗОВАНИЯ ИМУЩЕСТВА, НАХОДЯЩЕГОСЯ В ГОСУДАРСТВЕННОЙ И МУНИЦИПАЛЬНОЙ СОБСТВЕННОСТИ | B42: 000 111 00000 00 0000 000 | C42: 3979500
A43: Доходы, получаемые в виде арендной либо иной платы за передачу в возмездное пользование государственного и муниципального имущества (за исключением имущества бюджетных и автономных учреждений, а также имущества государственных и муниципальных унитарных предприятий, в том числе казенных) | B43: 000 111 05000 00 0000 120 | C43: 3785500
A44: Доходы, получаемые в виде арендной платы за земельные участки, государственная собственность на которые не разграничена, а также средства от продажи права на заключение договоров аренды указанных земельных участков | B44: 000 111 05010 00 0000 120 | C44: 3500000
A45: Доходы, получаемые в виде арендной платы за земельные участки, государственная собственность на которые не разграничена и которые расположены в границах сельских поселений и межселенных территорий муниципальных районов, а также средства от продажи права на заключение договоров аренды указанных земельных участков | B45: 000 111 05013 05 0000 120 | C45: 1200000
A46: Доходы, получаемые в виде арендной платы за земельные участки, государственная собственность на которые не разграничена и которые расположены в границах городских поселений, а также средства от продажи права на заключение договоров аренды указанных земельных участков | B46: 000 111 05013 13 0000 120 | C46: 2300000
A47: Доходы от сдачи в аренду имущества, находящегося в оперативном управлении органов государственной власти, органов местного самоуправления, государственных внебюджетных фондов и созданных ими учреждений (за исключением имущества бюджетных и автономных учреждений) | B47: 000 111 05030 00 0000 120 | C47: 285500
A48: Доходы от сдачи в аренду имущества, находящегося в оперативном управлении органов управления муниципальных районов и созданных ими учреждений (за исключением имущества муниципальных бюджетных и автономных учреждений) | B48: 000 111 05035 05 0000 120 | C48: 285500
A49: Платежи от государственных и муниципальных унитарных предприятий | B49: 000 111 07000 00 0000 120 | C49: 4000
A50: Доходы от перечисления части прибыли государственных и муниципальных унитарных предприятий, остающейся после уплаты налогов и обязательных платежей | B50: 000 111 07010 00 0000 120 | C50: 4000
A51: Доходы от перечисления части прибыли, остающейся после уплаты налогов и иных обязательных платежей муниципальных унитарных предприятий, созданных муниципальными районами | B51: 000 111 07015 05 0000 120 | C51: 4000
A52: Прочие доходы от использования имущества и прав, находящихся в государственной и муниципальной собственности (за исключением имущества бюджетных и автономных учреждений, а также имущества государственных и муниципальных унитарных предприятий, в том числе казенных) | B52: 000 111 09000 00 0000 120 | C52: 190000
A53: Прочие поступления от использования имущества, находящегося в государственной и муниципальной собственности (за исключением имущества бюджетных и автономных учреждений, а также имущества государственных и муниципальных унитарных предприятий, в том числе казенных) | B53: 000 111 09040 00 0000 120 | C53: 190000
A54: Прочие поступления от использования имущества, находящегося в собственности муниципальных районов (за исключением имущества муниципальных бюджетных и автономных учреждений, а также имущества муниципальных унитарных предприятий, в том числе казенных) | B54: 000 111 09045 05 0000 120 | C54: 190000
A55: ПЛАТЕЖИ ПРИ ПОЛЬЗОВАНИИ ПРИРОДНЫМИ РЕСУРСАМИ | B55: 000 112 00000 00 0000 000 | C55: 582000
A56: Плата за негативное воздействие на окружающую среду | B56: 000 112 01000 01 0000 120 | C56: 582000
A57: Плата за выбросы загрязняющих веществ в атмосферный воздух стационарными объектами <7> | B57: 000 112 01010 01 0000 120 | C57: 382000
A58: Плата за сбросы загрязняющих веществ в водные объекты | B58: 000 112 01030 01 0000 120 | C58: 200000
A59: ДОХОДЫ ОТ ПРОДАЖИ МАТЕРИАЛЬНЫХ И НЕМАТЕРИАЛЬНЫХ АКТИВОВ | B59: 000 114 00000 00 0000 000 | C59: 1805000
A60: Доходы от реализации имущества, находящегося в государственной и муниципальной собственности (за исключением движимого имущества бюджетных и автономных учреждений, а также имущества государственных и муниципальных унитарных предприятий, в том числе казенных) | B60: 000 114 02000 00 0000 000 | C60: 471000
A61: Доходы от реализации имущества, находящегося в собственности муниципальных районов (за исключением движимого имущества муниципальных бюджетных и автономных учреждений, а также имущества муниципальных унитарных предприятий, в том числе казенных), в части реализации основных средств по указанному имуществу | B61: 000 114 02050 05 0000 410 | C61: 471000
A62: Доходы от реализации иного имущества, находящегося в собственности муниципальных районов (за исключением имущества муниципальных бюджетных и автономных учреждений, а также имущества муниципальных унитарных предприятий, в том числе казенных), в части реализации основных средств по указанному имуществу | B62: 000 114 02053 05 0000 410 | C62: 471000
A63: Доходы от продажи земельных участков, находящихся в государственной и муниципальной собственности | B63: 000 114 06000 00 0000 430 | C63: 1334000
A64: Доходы от продажи земельных участков, государственная собственность на которые не разграничена | B64: 000 114 06010 00 0000 430 | C64: 1334000
A65: Доходы от продажи земельных участков, государственная собственность на которые не разграничена и которые расположены в границах сельских поселений и межселенных территорий муниципальных районов | B65: 000 114 06013 05 0000 430 | C65: 1000000
A66: Доходы от продажи земельных участков, государственная собственность на которые не разграничена и которые расположены в границах городских поселений | B66: 000 114 06013 13 0000 430 | C66: 334000
A67: ШТРАФЫ, САНКЦИИ, ВОЗМЕЩЕНИЕ УЩЕРБА | B67: 000 116 00000 00 0000 000 | C67: 2881000
A68: Денежные взыскания (штрафы) за нарушение законодательства о налогах и сборах | B68: 000 116 03000 00 0000 140 | C68: 150000
A69: Денежные взыскания (штрафы) за нарушение законодательства о налогах и сборах, предусмотренные статьями 116, 119.1, 119.2, пунктами 1 и 2 статьи 120, статьями 125, 126, 126.1, 128, 129, 129.1, 129.4, 132, 133, 134, 135, 135.1, 135.2 Налогового кодекса Российской Федерации | B69: 000 116 03010 01 0000 140 | C69: 150000
A70: Денежные взыскания (штрафы) за нарушение законодательства о применении контрольно-кассовой техники при осуществлении наличных денежных расчетов и (или) расчетов с использованием платежных карт | B70: 000 116 06000 01 0000 140 | C70: 10000
A71: Денежные взыскания (штрафы) за административные правонарушения в области государственного регулирования производства и оборота этилового спирта, алкогольной, спиртосодержащей и табачной продукции | B71: 000 116 08000 01 0000 140 | C71: 80000
A72: Денежные взыскания (штрафы) за административные правонарушения в области государственного регулирования производства и оборота этилового спирта, алкогольной, спиртосодержащей продукции | B72: 000 116 08010 01 0000 140 | C72: 80000
A73: Денежные взыскания (штрафы) и иные суммы, взыскиваемые с лиц, виновных в совершении преступлений, и в возмещение ущерба имуществу | B73: 000 116 21000 00 0000 140 | C73: 60000
A74: Денежные взыскания (штрафы) и иные суммы, взыскиваемые с лиц, виновных в совершении преступлений, и в возмещение ущерба имуществу, зачисляемые в бюджеты муниципальных районов | B74: 000 116 21050 05 0000 140 | C74: 60000
A75: Денежные взыскания (штрафы) за нарушение законодательства Российской Федерации о недрах, об особо охраняемых природных территориях, об охране и использовании животного мира, об экологической экспертизе, в области охраны окружающей среды, о рыболовстве и сохранении водных биологических ресурсов, земельного законодательства, лесного законодательства, водного законодательства | B75: 000 116 25000 00 0000 140 | C75: 100000
A76: Денежные взыскания (штрафы) за нарушение законодательства Российской Федерации об охране и использовании животного мира | B76: 000 116 25030 01 0000 140 | C76: 15000
A77: Денежные взыскания (штрафы) за нарушение законодательства в области охраны окружающей среды | B77: 000 116 25050 01 0000 140 | C77: 35000
A78: Денежные взыскания (штрафы) за нарушение земельного законодательства | B78: 000 116 25060 01 0000 140 | C78: 50000
A79: Денежные взыскания (штрафы) за нарушение законодательства в области обеспечения санитарно-эпидемиологического благополучия человека и законодательства в сфере защиты прав потребителей | B79: 000 116 28000 01 0000 140 | C79: 700000
A80: Денежные взыскания (штрафы) за нарушение законодательства Российской Федерации о контрактной системе в сфере закупок товаров, работ, услуг для обеспечения государственных и муниципальных нужд | B80: 000 116 33000 00 0000 140 | C80: 10000
A81: Денежные взыскания (штрафы) за нарушение законодательства Российской Федерации о контрактной системе в сфере закупок товаров, работ, услуг для обеспечения государственных и муниципальных нужд для нужд муниципальных районов | B81: 000 116 33050 05 0000 140 | C81: 10000
A82: Денежные взыскания (штрафы) за нарушение законодательства Российской Федерации об административных правонарушениях, предусмотренные статьей 20.25 Кодекса Российской Федерации об административных правонарушениях | B82: 000 116 43000 01 0000 140 | C82: 155000
A83: Денежные взыскания (штрафы) за нарушения законодательства Российской Федерации о промышленной безопасности | B83: 000 116 45000 01 0000 140 | C83: 16000
A84: Прочие поступления от денежных взысканий (штрафов) и иных сумм в возмещение ущерба | B84: 000 116 90000 00 0000 140 | C84: 1600000
A85: Прочие поступления от денежных взысканий (штрафов) и иных сумм в возмещение ущерба, зачисляемые в бюджеты муниципальных районов | B85: 000 116 90050 05 0000 140 | C85: 1600000
A86: БЕЗВОЗМЕЗДНЫЕ ПОСТУПЛЕНИЯ | B86: 000 200 00000 00 0000 000 | C86: 844633883
A87: БЕЗВОЗМЕЗДНЫЕ ПОСТУПЛЕНИЯ ОТ ДРУГИХ БЮДЖЕТОВ БЮДЖЕТНОЙ СИСТЕМЫ РОССИЙСКОЙ ФЕДЕРАЦИИ | B87: 000 202 00000 00 0000 000 | C87: 844633883
A88: Дотации бюджетам бюджетной системы Российской Федерации | B88: 000 202 10000 00 0000 150 | C88: 74082000
A89: Дотации на выравнивание бюджетной обеспеченности | B89: 000 202 15001 00 0000 150 | C89: 74082000
A90: Дотации бюджетам муниципальных районов на выравнивание бюджетной обеспеченности | B90: 000 202 15001 05 0000 150 | C90: 74082000
A91: Субсидии бюджетам бюджетной системы Российской Федерации (межбюджетные субсидии) | B91: 000 202 20000 00 0000 150 | C91: 357977083.1
A92: Прочие субсидии | B92: 000 202 29999 00 0000 150 | C92: 357977083.1
A93: Прочие субсидии бюджетам муниципальных районов | B93: 000 202 29999 05 0000 150 | C93: 357977083.1
A94: Субвенции бюджетам бюджетной системы Российской Федерации | B94: 000 202 30000 00 0000 150 | C94: 403702800
A95: Субвенции местным бюджетам на выполнение передаваемых полномочий субъектов Российской Федерации | B95: 000 202 30024 00 0000 150 | C95: 398214800
A96: Субвенции бюджетам муниципальных районов на выполнение передаваемых полномочий субъектов Российской Федерации | B96: 000 202 30024 05 0000 150 | C96: 398214800
A97: Субвенции бюджетам на осуществление первичного воинского учета на территориях, где отсутствуют военные комиссариаты | B97: 000 202 35118 00 0000 150 | C97: 2764900
A98: Субвенции бюджетам муниципальных районов на осуществление первичного воинского учета на территориях, где отсутствуют военные комиссариаты | B98: 000 202 35118 05 0000 150 | C98: 2764900
A99: Субвенции бюджетам на осуществление полномочий по составлению (изменению) списков кандидатов в присяжные заседатели федеральных судов общей юрисдикции в Российской Федерации | B99: 000 202 35120 00 0000 150 | C99: 15900
A100: Субвенции бюджетам муниципальных районов на осуществление полномочий по составлению (изменению) списков кандидатов в присяжные заседатели федеральных судов общей юрисдикции в Российской Федерации | B100: 000 202 35120 05 0000 150 | C100: 15900
A101: Субвенции бюджетам на государственную регистрацию актов гражданского состояния | B101: 000 202 35930 00 0000 150 | C101: 2707200
A102: Субвенции бюджетам муниципальных районов на государственную регистрацию актов гражданского состояния | B102: 000 202 35930 05 0000 150 | C102: 2707200
A103: Иные межбюджетные трансферты | B103: 000 202 40000 00 0000 150 | C103: 8872000
A104: Межбюджетные трансферты, передаваемые бюджетам муниципальных образований на осуществление части полномочий по решению вопросов местного значения в соответствии с заключенными соглашениями | B104: 000 202 40014 00 0000 150 | C104: 8872000
A105: Межбюджетные трансферты, передаваемые бюджетам муниципальных районов из бюджетов поселений на осуществление части полномочий по решению вопросов местного значения в соответствии с заключенными соглашениями | B105: 000 202 40014 05 0000 150 | C105: 8872000

Sheet 4 (hidden)
B1: =дата!$A$2&дата!$D$6 -> Приложение №4
B2: к решению Кукморского
B3: районного Совета
B4: =дата!D1 -> от08 декабря 2017 г. №131
A6: Прогнозируемые объемы доходов в бюджет
A7: Кукморского муниципального района на плановый период 2019 и 2020 годов
D8: (рублей)
A9: Наименование | B9: КВД | C9: сумма
C11: 2019 год | D11: 2020 год
A12: ИТОГО | C12: =C47+C14 -> 1139593430 | D12: =D47+D14 -> 1151082390
A14: НАЛОГОВЫЕ И НЕНАЛОГОВЫЕ ДОХОДЫ | B14: 1 00 00000 00 0000 000 | C14: =C15+C19+C26+C28+C32+C34+C36+C17+C24 -> 389188840 | D14: =D15+D19+D26+D28+D32+C34+D36+D17+D24 -> 413078980
A15: НАЛОГИ НА ПРИБЫЛЬ, ДОХОДЫ | B15: 1 01 00000 00 0000 000 | C15: =C16 -> 325494840 | D15: =D16 -> 347871980
A16: Налог на доходы физических лиц | B16: 1 01 02000 01 0000 110 | C16: 325494840 | D16: 347871980
A17: Налоги на товары (работы, услуги), реализуемые на территории Российской Федерации | B17: 1 03 00000 00 0000 000 | C17: =C18 -> 24300000 | D17: =D18 -> 25500000
A18: Акцизы по подакцизным товарам (продукции), производимым на территории Российской Федерации | B18: 1 03 02000 01 0000 110 | C18: 24300000 | D18: 25500000
A19: НАЛОГИ НА СОВОКУПНЫЙ ДОХОД | B19: 1 05 00000 00 0000 000 | C19: =SUM(C20:C23) -> 26008000 | D19: =SUM(D20:D23) -> 26320000
A20: Налог, взимаемый в связи с применением упрощенной системы налогообложения | B20: 1 05 01000 00 0000 110 | C20: 7797000 | D20: 8109000
A21: Единый налог на вмененный доход для отдельных видов деятельности | B21: 1 05 02000 00 0000 110 | C21: 15893000 | D21: 15893000
A22: Единый сельскохозяйственный налог | B22: 1 05 03000 00 0000 110 | C22: 2151000 | D22: 2151000
A23: Налог, взимаемый в связи с применением патентной системы налогообложения, зачисляемый в бюджеты муниципальных районов | B23: 1 05 04000 00 0000 110 | C23: 167000 | D23: 167000
A24: НАЛОГИ, СБОРЫ И РЕГУЛЯРНЫЕ ПЛАТЕЖИ ЗА ПОЛЬЗОВАНИЕ ПРИРОДНЫМИ РЕСУРСАМИ | B24: 1 07 00000 00 0000 000 | C24: =C25 -> 121000 | D24: =D25 -> 121000
A25: Налог на добычу полезных ископаемых | B25: 1 07 01000 01 0000 110 | C25: 121000 | D25: 121000
A26: ГОСУДАРСТВЕННАЯ ПОШЛИНА | B26: 1 08 00000 00 0000 000 | C26: =C27 -> 3111000 | D26: =D27 -> 3111000
A27: Государственная пошлина по делам, рассматриваемым в судах общей юрисдикции, мировыми судьями | B27: 1 08 03000 00 0000 110 | C27: 3111000 | D27: 3111000
A28: ДОХОДЫ ОТ ИСПОЛЬЗОВАНИЯ ИМУЩЕСТВА, НАХОДЯЩЕГОСЯ В ГОСУДАРСТВЕННОЙ И МУНИЦИПАЛЬНОЙ СОБСТВЕННОСТИ | B28: 1 11 00000 00 0000 000 | C28: =SUM(C29:C31) -> 4073000 | D28: =SUM(D29:D31) -> 4073000
A29: Доходы, получаемые в виде арендной либо иной платы за передачу в возмездное пользование государственного и муниципального имущества (за исключением имущества бюджетных и автономных учреждений, а также имущества государственных и муниципальных унитарных предприятий, в том числе казенных) | B29: 1 11 05000 00 0000 120 | C29: =3558000+347000 -> 3905000 | D29: =3558000+347000 -> 3905000
A30: Платежи от государственных и муниципальных унитарных предприятий | B30: 1 11 07000 00 0000 120 | C30: 3000 | D30: 3000
A31: Прочие доходы от использования имущества и прав, находящихся в государственной и муниципальной собственности (за исключением имущества бюджетных и автономных учреждений, а также имущества государственных и муниципальных унитарных предприятий, в том числе казенных) | B31: 1 11 09000 00 0000 120 | C31: 165000 | D31: 165000
A32: ПЛАТЕЖИ ПРИ ПОЛЬЗОВАНИИ ПРИРОДНЫМИ РЕСУРСАМИ | B32: 1 12 00000 00 0000 000 | C32: =C33 -> 1092000 | D32: =D33 -> 1092000
A33: Плата за негативное воздействие на окружающую среду | B33: 1 12 01000 01 0000 120 | C33: 1092000 | D33: 1092000
A34: ДОХОДЫ ОТ ПРОДАЖИ МАТЕРИАЛЬНЫХ И НЕМАТЕРИАЛЬНЫХ АКТИВОВ | B34: 1 14 00000 00 0000 430 | C34: =SUM(C35) -> 969000 | D34: =SUM(D35) -> 969000
A35: Доходы от продажи земельных участков, находящихся в государственной и муниципальной собственности | B35: 1 14 06000 00 0000 430 | C35: 969000 | D35: 969000
A36: ШТРАФЫ, САНКЦИИ, ВОЗМЕЩЕНИЕ УЩЕРБА | B36: 1 16 00000 00 0000 000 | C36: =SUM(C37:C46) -> 4020000 | D36: =SUM(D37:D46) -> 4021000
A37: Денежные взыскания (штрафы) за административные правонарушения в области налогов и сборов, предусмотренные Кодексом Российской Федерации об административных правонарушениях | B37: 1.16.03.000.00.0.000 | C37: 40000 | D37: 40000
A38: Денежные взыскания (штрафы) за нарушение законодательства о применении контрольно-кассовой техники при осуществлении наличных денежных расчетов и (или) расчетов с использованием платежных карт | B38: 1.16.06.000.01.0.000 | C38: 5000 | D38: 5000
A39: Денежные взыскания (штрафы) за административные правонарушения в области государственного регулирования производства и оборота этилового спирта, алкогольной, спиртосодержащей и табачной продукции | B39: 1.16.08.000.01.0.000 | C39: 40000 | D39: 40000
A40: Денежные взыскания (штрафы) и иные суммы, взыскиваемые с лиц, виновных в совершении преступлений, и в возмещение ущерба имуществу, зачисляемые в бюджеты муниципальных районов | B40: 1.16.21.050.05.0.000 | C40: 60000 | D40: 60000
A41: Денежные взыскания (штрафы) за нарушение законодательства Российской Федерации о недрах, об особо охраняемых природных территориях, об охране и использовании животного мира, об экологической экспертизе, в области охраны окружающей среды, земельного законодательства, лесного законодательства, водного законодательства | B41: 1.16.25.000.00.0.000 | C41: 200000 | D41: 200000
A42: Денежные взыскания (штрафы) за нарушение законодательства в области обеспечения санитарно-эпидемиологического благополучия человека и законодательства в сфере защиты прав потребителей | B42: 1.16.28.000.01.0.000 | C42: 500000 | D42: 500000
A43: Денежные взыскания (штрафы) за нарушение законодательства российской федерации о контрактной системе в сфере закупок товаров, работ, услуг для обеспечения государственных и муниципальных нужд | B43: 1.16.33.000.01.0.000 | C43: 15000 | D43: 15000
A44: Денежные взыскания (штрафы) за нарушение законодательства российской федерации об административных правонарушениях, предусмотренные статьей 20.25 кодекса российской федерации об административных правонарушениях | B44: 1.16.43.000.01.0.000 | C44: 50000 | D44: 50000
A45: Денежные взыскания (штрафы), установленные законами субъектов Российской Федерации за несоблюдение муниципальных правовых актов, зачисляемые в бюжеты муниципальных районов | B45: 1.16.51.030.02.0.000 | C45: 650000 | D45: 650000
A46: Прочие поступления от денежных взысканий (штрафов) и иных сумм в возмещение ущерба, зачисляемые в бюджеты муниципальных районов | B46: 1.16.90.050.05.0.000 | C46: 2460000 | D46: 2461000
A47: БЕЗВОЗМЕЗДНЫЕ ПОСТУПЛЕНИЯ | B47: 2.00.00.000.00.0.000 | C47: =C48 -> 750404590 | D47: =D48 -> 738003410 | E47: -4863000 | F47: -4863000
A48: БЕЗВОЗМЕЗДНЫЕ ПОСТУПЛЕНИЯ ОТ ДРУГИХ БЮДЖЕТОВ БЮДЖЕТНОЙ СИСТЕМЫ РОССИЙСКОЙ ФЕДЕРАЦИИ | B48: 2.02.00.000.00.0.000 | C48: =SUM(C49:C52) -> 750404590 | D48: =SUM(D49:D52) -> 738003410
A49: Дотации бюджетам субъектов Российской Федерации и муниципальных образований | B49: 2.02.10.000.05.0.000 | C49: =SUMIF('22'!$B$14:$B$1402,$E49,'22'!$D$14:$D$1402) -> 38930900 | D49: =SUMIF('22'!$B$14:$B$1402,$E49,'22'!$E$14:$E$1402) -> 25478300 | E49: 2.02.10.000.00.0.000
A50: Субсидии бюджетам субъектов Российской Федерации и муниципальных образований (межбюджетные субсидии) | B50: 2.02.20.000.05.0.000 | C50: =SUMIF('22'!$B$14:$B$1402,$E50,'22'!$D$14:$D$1402) -> 308073500 | D50: =SUMIF('22'!$B$14:$B$1402,$E50,'22'!$E$14:$E$1402) -> 307671000 | E50: 2.02.20.000.00.0.000
A51: Субвенции бюджетам субъектов Российской Федерации и муниципальных образований | B51: 2.02.30.000.05.0.000 | C51: =SUMIF('22'!$B$14:$B$1402,$E51,'22'!$D$14:$D$1402) -> 390763100 | D51: =SUMIF('22'!$B$14:$B$1402,$E51,'22'!$E$14:$E$1402) -> 391217020 | E51: 2.02.30.000.00.0.000
A52: Иные межбюджетные трансферты | B52: 2.02.40.000.05.0.000 | C52: =SUMIF('22'!$B$14:$B$1402,$E52,'22'!$D$14:$D$1402) -> 12637090 | D52: =SUMIF('22'!$B$14:$B$1402,$E52,'22'!$E$14:$E$1402) -> 13637090 | E52: 2.02.40.000.00.0.000
A55: Глава Района С.Д.Димитриев

Sheet 5 (hidden)
C1: =дата!$A$2&дата!$D$7 -> Приложение №5
C2: к решению Кукморского
C3: районного Совета
C4: =дата!$D$1 -> от08 декабря 2017 г. №131
A6: Нормативы распределения доходов между бюджетами бюджетной системы
A7: источников финансирования дефицита бюджета муниципального района
A8: на 2018 год и на плановый период 2019 и 2020 годов
C9: (в процентах)
A10: Код | B10: Наименование групп, подгрупп, статей и подстатей доходов | C10: Местные бюджеты
C11: муници-пальных районов | D11: сельских поселений | E11: городских поселений
A12: 1 09 00000 00 0000 000 | B12: Задолженность и перерасчеты по отмененным налогам, сборам и иным обязательным платежам
A13: 1 09 07013 05 0000 110 | B13: Налог на рекламу, мобилизуемый на территориях муниципальных районов | C13: 100
A14: 1 09 07053 05 0000 110 | B14: Прочие местные налоги и сборы, мобилизуемые на территориях муниципальных районов | C14: 100
A15: 1 13 00000 00 0000 000 | B15: Доходы от оказания платных услуг (работ) и компенсации затрат государства
A16: 1 13 01995 05 0000 130 | B16: Прочие доходы от оказания платных услуг (работ) получателями средств бюджетов муниципальных районов | C16: 100
A17: 1 13 01995 10 0000 130 | B17: Прочие доходы от оказания платных услуг (работ) получателями средств бюджетов сельских поселений | D17: 100
A18: 1 13 01995 13 0000 130 | B18: Прочие доходы от оказания платных услуг (работ) получателями средств бюджетов городских поселений | E18: 100
A19: 1 13 02065 05 0000 130 | B19: Доходы, поступающие в порядке возмещения расходов, понесенных в связи с эксплуатацией имущества муниципальных районов | C19: 100
A20: 1 13 02065 10 0000 130 | B20: Доходы, поступающие в порядке возмещения расходов, понесенных в связи с эксплуатацией имущества сельских поселений | D20: 100
A21: 1 13 02065 13 0000 130 | B21: Доходы, поступающие в порядке возмещения расходов, понесенных в связи с эксплуатацией имущества городских поселений | E21: 100
A22: 1 13 02995 05 0000 130 | B22: Прочие доходы от компенсации затрат бюджетов муниципальных районов | C22: 100
A23: 1 13 02995 10 0000 130 | B23: Прочие доходы от компенсации затрат бюджетов сельских поселений | D23: 100
A24: 1 13 02995 13 0000 130 | B24: Прочие доходы от компенсации затрат бюджетов городских поселений | E24: 100
A25: 1 16 00000 00 0000 000 | B25: Штрафы, санкции, возмещение ущерба
A26: 1 16 21050 05 0000 140 | B26: Денежные взыскания (штрафы) и иные суммы, взыскиваемые с лиц, виновных в совершении преступлений, и в возмещение ущерба имуществу, зачисляемые в бюджеты муниципальных районов | C26: 100
A27: 1 16 21050 10 0000 140 | B27: Денежные взыскания (штрафы) и иные суммы, взыскиваемые с лиц, виновных в совершении преступлений, и в возмещение ущерба имуществу, зачисляемые в бюджеты сельских поселений | D27: 100
A28: 1 16 21050 13 0000 140 | B28: Денежные взыскания (штрафы) и иные суммы, взыскиваемые с лиц, виновных в совершении преступлений, и в возмещение ущерба имуществу, зачисляемые в бюджеты городских поселений | E28: 100
A29: 1 16 23051 05 0000 140 | B29: Доходы от возмещения ущерба при возникновении страховых случаев по обязательному страхованию гражданской ответственности, когда выгодоприобретателями выступают получатели средств бюджетов муниципальных районов | C29: 100
A30: 1 16 23052 05 0000 140 | B30: Доходы от возмещения ущерба при возникновении иных страховых случаев, когда выгодоприобретателями выступают получатели средств бюджетов муниципальных районов | C30: 100
A31: 1 16 23051 10 0000 140 | B31: Доходы от возмещения ущерба при возникновении страховых случаев по обязательному страхованию гражданской ответственности, когда выгодоприобретателями выступают получатели средств бюджетов сельских поселений | D31: 100
A32: 1 16 23052 10 0000 140 | B32: Доходы от возмещения ущерба при возникновении иных страховых случаев, когда выгодоприобретателями выступают получатели средств бюджетов сельских поселений | D32: 100
A33: 1 16 23051 13 0000 140 | B33: Доходы от возмещения ущерба при возникновении страховых случаев по обязательному страхованию гражданской ответственности, когда выгодоприобретателями выступают получатели средств бюджетов городских поселений | E33: 100
A34: 1 16 23052 13 0000 140 | B34: Доходы от возмещения ущерба при возникновении иных страховых случаев, когда выгодоприобретателями выступают получатели средств бюджетов городских поселений | E34: 100
A35: 1 16 32000 05 0000 140 | B35: Денежные взыскания, налагаемые в возмещение ущерба, причиненного в результате незаконного или нецелевого использования бюджетных средств (в части бюджетов муниципальных районов) | C35: 100
A36: 1 16 32000 10 0000 140 | B36: Денежные взыскания, налагаемые в возмещение ущерба, причиненного в результате незаконного или нецелевого использования бюджетных средств (в части бюджетов сельских поселений) | D36: 100
A37: 1 16 32000 13 0000 140 | B37: Денежные взыскания, налагаемые в возмещение ущерба, причиненного в результате незаконного или нецелевого использования бюджетных средств (в части бюджетов городских поселений) | E37: 100
A38: 1 16 90050 05 0000 140 | B38: Прочие поступления от денежных взысканий (штрафов) и иных сумм в возмещение ущерба, зачисляемые в бюджеты муниципальных районов | C38: 100
A39: 1 16 90050 10 0000 140 | B39: Прочие поступления от денежных взысканий (штрафов) и иных сумм в возмещение ущерба, зачисляемые в бюджеты сельских поселений | D39: 100
A40: 1 16 90050 13 0000 140 | B40: Прочие поступления от денежных взысканий (штрафов) и иных сумм в возмещение ущерба, зачисляемые в бюджеты городских поселений | E40: 100
A41: 1 17 00000 00 0000 000 | B41: Прочие неналоговые доходы
A42: 1 17 01050 05 0000 180 | B42: Невыясненные поступления, зачисляемые в бюджеты муниципальных районов | C42: 100
A43: 1 17 01050 10 0000 180 | B43: Невыясненные поступления, зачисляемые в бюджеты сельских поселений | D43: 100
A44: 1 17 01050 13 0000 180 | B44: Невыясненные поступления, зачисляемые в бюджеты городских поселений | E44: 100
A45: 1 17 05050 05 0000 180 | B45: Прочие неналоговые доходы бюджетов муниципальных районов | C45: 100
A46: 1 17 05050 10 0000 180 | B46: Прочие неналоговые доходы бюджетов сельских поселений | D46: 100
A47: 1 17 05050 13 0000 180 | B47: Прочие неналоговые доходы бюджетов городских поселений | E47: 100
A48: 1 17 14030 10 0000 180 | B48: Средства самообложения граждан, зачисляемые в бюджеты сельских поселений | D48: 100
A49: 1 17 14030 13 0000 180 | B49: Средства самообложения граждан, зачисляемые в бюджеты городских поселений | E49: 100
A52: Глава Района С.Д.Димитриев

Sheet 6
C1: =дата!$A$2&дата!$C$8 -> Приложение №3
C2: к решению Совета Кукморского
A3: Совета народных депутатов | C3: районного Совета
A4: от | C4: =дата!C1 -> от____марта 2019 г. №______
A6: Перечень главных администраторов доходов бюджета
A7: источников финансирования дефицита бюджета муниципального района
A8: на 2019 год и на плановый период 2020 и 2021 годов-
A9: органов местного самоуправления Кукморского муниципального района
A11: коды бюджетной классификации | C11: Наименование
A12: код администратора доходов | B12: доходов бюджета
A13: Финансово-бюджетная палата Кукморского муниципального района
A14: 605 | B14: 1 08 07174 01 1000 110 | C14: Государственная пошлина за выдачу органом местного самоуправления муниципального района специального разрешения на движение по автомобильным дорогам транспортных средств, осуществляющих перевозки опасных, тяжеловесных и (или) крупногабаритных грузов, зачисляемая в бюджеты муниципальных районов.
A15: 605 | B15: 1 08 07150 01 1000 110 | C15: Государственная пошлина за выдачу разрешения на установку рекламной конструкции
A16: 605 | B16: 1 11 02033 05 0000 120 | C16: Доходы от размещения временно свободных средств бюджетов муниципальных районов
A17: 605 | B17: 1 11 03050 05 0000 120 | C17: Проценты, полученные от предоставления бюджетных кредитов внутри страны за счет средств бюджетов муниципальных районов
A18: 605 | B18: 1 13 02065 05 0000 130 | C18: Доходы, поступающие в порядке возмещения расходов, понесенных в связи с эксплуатацией имущества муниципальных районов
A19: 605 | B19: 1 13 01995 05 0000 130 | C19: Прочие доходы от оказания платных услуг (работ) получателями средств бюджетов муниципальных районов
A20: 605 | B20: 1 13 02995 05 0000 130 | C20: Прочие доходы от компенсации затрат бюджетов муниципальных районов
A21: 605 | B21: 1 16 18050 05 0000 140 | C21: Денежные взыскания (штрафы)за нарушение бюджетного законодательства (в части бюджетов муниципальных районов).
A22: 605 | B22: 1 16 23051 05 0000 140 | C22: Доходы от возмещения ущерба при возникновении страховых случаев по обязательному страхованию гражданской ответственности, когда выгодоприобретателями выступают получатели средств бюджетов муниципальных районов
A23: 605 | B23: 1 16 23052 05 0000 140 | C23: Доходы от возмещения ущерба при возникновении иных страховых случаев, когда выгодоприобретателями выступают получатели средств бюджетов муниципальных районов
A24: 605 | B24: 1 16 33050 05 0000 140 | C24: Денежные взыскания (штрафы) за нарушение законодательства Российской Федерации о контрактной системе в сфере закупок товаров, работ, услуг для обеспечения государственных и муниципальных нужд для нужд муниципальных районов
A25: 605 | B25: 1 16 51030 02 0000 140 | C25: Денежные взыскания (штрафы), установленные законами субъектов Российской Федерации за несоблюдение муниципальных правовых актов, зачисляемые в бюжеты муниципальных районов
A26: 605 | B26: 1 16 90050 05 0000 140 | C26: Прочие поступления от денежных взысканий(штрафов)и иных сумм в возмещение ущерба, зачисляемые в бюджеты муниципальных районов.
A27: 605 | B27: 1 17 01050 05 0000 180 | C27: Невыясненные поступления, зачисляемые в бюджеты муниципальных районов
A28: 605 | B28: 1 17 05050 05 0000 180 | C28: Прочие неналоговые доходы бюджетов муниципальных районов
A29: 605 | B29: 2 02 15001 05 0000 150 | C29: Дотации бюджетам муниципальных районов на выравнивание бюджетной обеспеченности.
A30: 605 | B30: 2 02 15002 05 0000 150 | C30: Дотации бюджетам муниципальных районов на поддержку мер по обеспечению сбалансированности бюджетов.
A31: 605 | B31: 2 02 15009 05 0000 150 | C31: Дотации бюджетам муниципальных районов на частичную компенсацию дополнительных расходов на повышение оплаты труда работников бюджетной сферы
A32: 605 | B32: 2 02 19999 05 0000 150 | C32: Прочие дотации бюджетам муниципальных районов
A33: 605 | B33: 2 02 20041 05 0000 150 | C33: Субсидии бюджетам муниципальных районов на строительство, модернизацию, ремонт и содержание автомобильных дорог общего пользования, в том числе дорог в поселениях (за исключением автомобильных дорог федерального значения)
A34: 605 | B34: 2 02 25086 05 0000 150 | C34: Субсидии бюджетам муниципальных районов на реализацию мероприятий, предусмотренных региональной программой переселения, включенной в Государственную программу по оказанию содействия добровольному переселению в Российскую Федерацию соотечественников, проживающих за рубежом
A35: 605 | B35: 2 02 20303 05 0000 150 | C35: Субсидии бюджетам муниципальных районов на обеспечение мероприятий по модернизации систем коммунальной инфраструктуры за счет средств бюджетов
A36: 605 | B36: 2 02 20079 05 0000 150 | C36: Субсидии бюджетам муниципальных районов на переселение граждан из жилищного фонда, признанного непригодным для проживания, и (или) жилищного фонда с высоким уровнем износа (более 70 процентов)
A37: 605 | B37: 2 02 20087 05 0000 150 | C37: Субсидии бюджетам муниципальных районов из бюджетов поселений на решение вопросов местного значения межмуниципального характера
A38: 605 | B38: 2 02 20298 05 0000 150 | C38: Субсидии бюджетам муниципальных районов на обеспечение мероприятий по капитальному ремонту многоквартирных домов за счет средств, поступивших от государственной корпорации - Фонда содействия реформированию жилищно-коммунального хозяйства
A39: 605 | B39: 2 02 20299 05 0000 150 | C39: Субсидии бюджетам муниципальных районов на обеспечение мероприятий по переселению граждан из аварийного жилищного фонда за счет средств, поступивших от государственной корпорации - Фонда содействия реформированию жилищно-коммунального хозяйства
A40: 605 | B40: 2 02 20301 05 0000 150 | C40: Субсидии бюджетам муниципальных районов на обеспечение мероприятий по капитальному ремонту многоквартирных домов за счет средств бюджетов
A41: 605 | B41: 2 02 20302 05 0000 150 | C41: Субсидии бюджетам муниципальных районов на обеспечение мероприятий по переселению граждан из аварийного жилищного фонда за счет средств бюджетов
A42: 605 | B42: 2 02 25519 05 0000 150 | C42: Субсидии бюджетам муниципальных районов на поддержку отрасли культуры
A43: 605 | B43: 2 02 25567 05 0000 150 | C43: Субсидии бюджетам муниципальных районов на реализацию мероприятий по устойчивому развитию сельских территорий
A44: 605 | B44: 2 02 29999 05 0000 150 | C44: Прочие субсидии бюджетам муниципальных районов
A45: 605 | B45: 2 02 35250 05 0000 150 | C45: Субвенции бюджетам муниципальных районов на оплату жилищно-коммунальных услуг отдельным категориям граждан
A46: 605 | B46: 2 02 35930 05 0000 150 | C46: Субвенции бюджетам муниципальных районов на государственную регистрацию актов гражданского состояния.
A47: 605 | B47: 2 02 35220 05 0000 150 | C47: Субвенции бюджетам муниципальных районов на осуществление переданного полномочия Российской Федерации по осуществлению ежегодной денежной выплаты лицам, награжденным нагрудным знаком "Почетный донор России"
A48: 605 | B48: 2 02 35120 05 0000 150 | C48: Субвенции бюджетам муниципальных районов на составление (изменение) списков кандидатов в присяжные заседатели федеральных судов общей юрисдикции в Российской Федерации
A49: 605 | B49: 2 02 35280 05 0000 150 | C49: Субвенции бюджетам муниципальных районов на выплаты инвалидам компенсаций страховых премий по договорам обязательного страхования гражданской ответственности владельцев транспортных средств
A50: 605 | B50: 2 02 30013 05 0000 150 | C50: Субвенции бюджетам муниципальных районов на обеспечение мер социальной поддержки реабилитированных лиц и лиц, признанных пострадавшими от политических репрессий
A51: 605 | B51: 2 02 35118 05 0000 150 | C51: Субвенции бюджетам муниципальных районов на осуществление первичного воинского учета на территориях, где отсутствуют военные комиссариаты
A52: 605 | B52: 2 02 35260 05 0000 150 | C52: Субвенции бюджетам муниципальных районов на выплату единовременного пособия при всех формах устройства детей, лишенных родительского попечения, в семью
A53: 605 | B53: 2 02 30022 05 0000 150 | C53: Субвенции бюджетам муниципальных районов на предоставление гражданам субсидий на оплату жилого помещения и коммунальных услуг
A54: 605 | B54: 2 02 30024 05 0000 150 | C54: Субвенции бюджетам муниципальных районов на выполнение передаваемых полномочий субъектов Российской Федерации
A55: 605 | B55: 2 02 35082 05 0000 150 | C55: Субвенции бюджетам муниципальных районов на предоставление жилых помещений детям-сиротам и детям, оставшимся без попечения родителей, лицам из их числа по договорам найма специализированных жилых помещений
A56: 605 | B56: 2 02 30027 05 0000 150 | C56: Субвенции бюджетам муниципальных районов на содержание ребенка в семье опекуна и приемной семье, а также вознаграждение, причитающееся приемному родителю
A57: 605 | B57: 2 02 30029 05 0000 150 | C57: Субвенции бюджетам муниципальных районов на компенсацию части платы, взимаемой с родителей (законных представителей) за присмотр и уход за детьми, посещающими образовательные организации, реализующие образовательные программы дошкольного образования
A58: 605 | B58: 2 02 39999 05 0000 150 | C58: Прочие субвенции бюджетам муниципальных районов
A59: 605 | B59: 2 02 45160 05 0000 150 | C59: Межбюджетные трансферты, передаваемые бюджетам муниципальных районов для компенсации дополнительных расходов, возникших в результате решений, принятых органами власти другого уровня
A60: 605 | B60: 2 02 40014 05 0000 150 | C60: Межбюджетные трансферты, передаваемые бюджетам муниципальных районов из бюджетов поселений на осуществление части полномочий по решению вопросов местного значения в соответствии с заключенными соглашениями
A61: 605 | B61: 2 02 49999 05 0000 150 | C61: Прочие межбюджетные трансферты, передаваемые бюджетам муниципальных районов
A62: 605 | B62: 2 07 05030 05 0000 150 | C62: Прочие безвозмездные поступления в бюджеты муниципальных районов
A63: 605 | B63: 2 08 05000 05 0000 150 | C63: Перечисления из бюджетов муниципальных районов (в бюджеты муниципальных районов) для осуществления возврата (зачета) излишне уплаченных или излишне взысканных сумм налогов, сборов и иных платежей, а также сумм процентов за несвоевременное осуществление такого возврата и процентов, начисленных на излишне взысканные суммы
A64: 605 | B64: 2 18 60010 05 0000 150 | C64: Доходы бюджетов муниципальных районов от возврата остатков субсидий, субвенций и иных межбюджетных трансфертов, имеющих целевое назначение, прошлых лет из бюджетов поселений
A65: 605 | B65: 218 60020 05 0000 150 | C65: Доходы бюджетов муниципальных районов от возврата остатков субсидий, субвенций и иных межбюджетных трансфертов, имеющих целевое назначение, прошлых лет из бюджетов государственных внебюджетных фондов
A66: 605 | B66: 2 18 05010 05 0000 150 | C66: Доходы бюджетов муниципальных районов от возврата бюджетными учреждениями остатков субсидий прошлых лет
A67: 605 | B67: 2 18 05020 05 0000 150 | C67: Доходы бюджетов муниципальных районов от возврата автономными учреждениями остатков субсидий прошлых лет
A68: 605 | B68: 2 18 05030 05 0000 150 | C68: Доходы бюджетов муниципальных районов от возврата иными организациями остатков субсидий прошлых лет
A69: 605 | B69: 2 19 60010 05 0000 150 | C69: Возврат прочих остатков субсидий, субвенций и иных межбюджетных трансфертов, имеющих целевое назначение, прошлых лет из бюджетов муниципальных районов
A70: 605 | B70: 2 19 25018 05 0000 150 | C70: Возврат остатков субсидий на реализацию мероприятий федеральной целевой программы "Устойчивое развитие сельских территорий на 2014 - 2017 годы и на период до 2020 года" из бюджетов муниципальных районов
A71: 605 | B71: 2 19 25020 05 0000 150 | C71: Возврат остатков субсидий на мероприятия подпрограммы "Обеспечение жильем молодых семей" федеральной целевой программы "Жилище" на 2015 - 2020 годы из бюджетов муниципальных районов
A72: 605 | B72: 2 19 25027 05 0000 150 | C72: Возврат остатков субсидий на мероприятия государственной программы Российской Федерации "Доступная среда" на 2011 - 2020 годы из бюджетов муниципальных районов
A73: 605 | B73: 2 19 45147 05 0000 150 | C73: Возврат остатков иных межбюджетных трансфертов на государственную поддержку муниципальных учреждений культуры из бюджетов муниципальных районов
A74: 605 | B74: 2 19 45160 05 0000 150 | C74: Возврат остатков иных межбюджетных трансфертов, передаваемых для компенсации дополнительных расходов, возникших в результате решений, принятых органами власти другого уровня, из бюджетов муниципальных районов
A75: 605 | B75: 2 19 45148 05 0000 150 | C75: Возврат остатков иных межбюджетных трансфертов на государственную поддержку лучших работников муниципальных учреждений культуры, находящихся на территориях сельских поселений, из бюджетов муниципальных районов
A76: Палата имущественных и земельных отношений Кукморского муниципального района
A77: 606 | B77: 1 08 07150 01 1000 110 | C77: Государственная пошлина за выдачу разрешения на установку рекламной конструкции
A78: 606 | B78: 1 11 02085 05 0000 120 | C78: Доходы от размещения сумм, аккумулируемых в ходе проведения аукционов по продаже акций находящихся в собственности муниципальных районов
A79: 606 | B79: 1 11 05010 00 0000 120 | C79: Доходы, получаемые в виде арендной платы за земельные участки, государственная собственность на которые не разграничена, а также средства от продажи права на заключение договоров аренды указанных земельных участков
A80: 606 | B80: 1 11 05013 05 0000 120 | C80: Доходы, получаемые в виде арендной платы за земельные участки, государственная собственность на которые не разграничена и которые расположены в границах межселенных территорий муниципальных районов, а также средства от продажи права на заключение договоров аренды указанных земельных участков
A81: 606 | B81: 1 11 05020 00 0000 120 | C81: Доходы, получаемые в виде арендной платы за земли после разграничения государственной собственности на землю, а также средства от продажи права на заключение договоров аренды указанных земельных участков (за исключением земельных участков бюджетных и автономных учреждений)
A82: 606 | B82: 1 11 05025 05 0000 120 | C82: Доходы, получаемые в виде арендной платы, а также средства от продажи права на заключение договоров аренды за земли, находящиеся в собственности муниципальных районов (за исключением земельных участков муниципальных бюджетных и автономных учреждений)
A83: 606 | B83: 1 11 05025 10 0000 120 | C83: Доходы, получаемые в виде арендной платы, а также средства от продажи права на заключение договоров аренды за земли, находящиеся в собственности поселений (за исключением земельных участков муниципальных бюджетных и автономных учреждений)
A84: 606 | B84: 1 11 05035 05 0000 120 | C84: Доходы от сдачи в аренду имущества, находящегося в оперативном управлении органов управления муниципальных районов и созданных ими учреждений (за исключением имущества муниципальных бюджетных и автономных учреждений)
A85: 606 | B85: 1 11 05075 05 0000 120 | C85: Доходы от сдачи в аренду имущества, составляющего казну муниципальных районов (за исключением земельных участков)
A86: 606 | B86: 1 11 07015 05 0000 120 | C86: Доходы от перечисления части прибыли, остающейся после уплаты налогов и иных обязательных платежей муниципальных унитарных предприятий, созданных муниципальными районами
A87: 606 | B87: 1 11 08050 05 0000 120 | C87: Средства, получаемые от передачи имущества, находящегося в собственности муниципальных районов (за исключением имущества муниципальных бюджетных и автономных учреждений, а также имущества муниципальных унитарных предприятий, в том числе казенных), в залог, в доверительное управление
A88: 606 | B88: 1 11 09040 00 0000 120 | C88: Прочие поступления от использования имущества, находящегося в государственной и муниципальной собственности (за исключением имущества бюджетных и автономных учреждений, а также имущества государственных и муниципальных унитарных предприятий, в том числе казенных)
A89: 606 | B89: 1 11 09045 05 0000 120 | C89: Прочие поступления от использования имущества, находящегося в собственности муниципальных районов (за исключением имущества муниципальных бюджетных и автономных учреждений, а также имущества муниципальных унитарных предприятий, в том числе казенных)
A90: 606 | B90: 1 13 02065 05 0000 130 | C90: Доходы, поступающие в порядке возмещения расходов, понесенных в связи с эксплуатацией имущества муниципальных районов
A91: 606 | B91: 1 13 01995 05 0000 130 | C91: Прочие доходы от оказания платных услуг (работ) получателями средств бюджетов муниципальных районов
A92: 606 | B92: 1 13 02995 05 0000 130 | C92: Прочие доходы от компенсации затрат бюджетов муниципальных районов
A93: 606 | B93: 1 14 01050 05 0000 410 | C93: Доходы от продажи квартир, находящихся в собственности муниципальных районов.
A94: 606 | B94: 1 14 02050 05 0000 410 | C94: Доходы от реализации имущества, находящегося в собственности муниципальных районов (за исключением имущества муниципальных бюджетных и автономных учреждений, а также имущества муниципальных унитарных предприятий, в том числе казенных), в части реализации основных средств по указанному имуществу
A95: 606 | B95: 1 14 02050 05 0000 440 | C95: Доходы от реализации имущества, находящегося в собственности муниципальных районов (за исключением имущества муниципальных бюджетных и автономных учреждений, а также имущества муниципальных унитарных предприятий, в том числе казенных), в части реализации материальных запасов по указанному имуществу
A96: 606 | B96: 1 14 02052 05 0000 410 | C96: Доходы от реализации имущества, находящегося в оперативном управлении учреждений, находящихся в ведении органов управления муниципальных районов (за исключением имущества муниципальных бюджетных и автономных учреждений), в части реализации основных средств по указанному имуществу
A97: 606 | B97: 1 14 02052 05 0000 440 | C97: Доходы от реализации имущества, находящегося в оперативном управлении учреждений, находящихся в ведении органов управления муниципальных районов (за исключением имущества муниципальных бюджетных и автономных учреждений), в части реализации материальных запасов по указанному имуществу
A98: 606 | B98: 1 14 02053 05 0000 410 | C98: Доходы от реализации иного имущества, находящегося в собственности муниципальных районов (за исключением имущества муниципальных бюджетных и автономных учреждений, а также имущества муниципальных унитарных предприятий, в том числе казенных), в части реализации основных средств по указанному имуществу
A99: 606 | B99: 1 14 02053 05 0000 440 | C99: Доходы от реализации иного имущества, находящегося в собственности муниципальных районов (за исключением имущества муниципальных бюджетных и автономных учреждений, а также имущества муниципальных унитарных предприятий, в том числе казенных), в части реализации материальных запасов по указанному имуществу
A100: 606 | B100: 1 14 03050 05 0000 410 | C100: Средства от распоряжения и реализации конфискованного и иного имущества, обращенного в доходы муниципальных районов (в части реализации основных средств по указанному имуществу)
A101: 606 | B101: 1 14 03050 05 0000 440 | C101: Средства от распоряжения и реализации конфискованного и иного имущества, обращенного в доходы муниципальных районов (в части реализации материальных запасов по указанному имуществу)
A102: 606 | B102: 1 14 04050 05 0000 420 | C102: Доходы от продажи нематериальных активов, находящихся в собственности муниципальных районов
A103: 606 | B103: 1 14 06000 00 0000 430 | C103: Доходы от продажи земельных участков, находящихся в государственной и муниципальной собственности (за исключением земельных участков бюджетных и автономных учреждений)
A104: 606 | B104: 1 14 06010 00 0000 430 | C104: Доходы от продажи земельных участков, государственная собственность на которые не разграничена
A105: 606 | B105: 1 14 06013 05 0000 430 | C105: Доходы от продажи земельных участков, государственная собственность на которые не разграничена и которые расположены в границах межселенных территорий муниципальных районов
A106: 606 | B106: 1 14 06020 00 0000 430 | C106: Доходы от продажи земельных участков, государственная собственность на которые разграничена (за исключением земельных участков бюджетных и автономных учреждений)
A107: 606 | B107: 1 14 06025 05 0000 430 | C107: Доходы от продажи земельных участков, находящихся в собственности муниципальных районов (за исключением земельных участков муниципальных бюджетных и автономных учреждений)
A108: 606 | B108: 1 14 06025 10 0000 430 | C108: Доходы от продажи земельных участков, находящихся в собственности поселений (за исключением земельных участков муниципальных бюджетных и автономных учреждений)
A109: 606 | B109: 1 17 01050 05 0000 180 | C109: Невыясненные поступления, зачисляемые в бюджеты муниципальных районов
A110: 606 | B110: 1 17 02020 05 0000 180 | C110: Возмещение потерь сельскохозяйственного производства, связанных с изъятием сельскохозяйственных угодий, расположенных на межселенных территориях (по обязательствам, возникшим до 1 января 2008 года)
A111: 606 | B111: 1 17 02020 10 0000 180 | C111: Возмещение потерь сельскохозяйственного производства, связанных с изъятием сельскохозяйственных угодий, расположенных на территориях поселений (по обязательствам, возникшим до 1 января 2008 года)
A114: Глава Района С.Д.Димитриев

Sheet 7 (hidden)
C1: =дата!$A$2&дата!$D$9 -> Приложение №7
A2: к решению Кукморского районного | C2: к решению Кукморского
A3: Совета народных депутатов | C3: районного Совета
A4: от 24 декабря 2004г. №20 | C4: =дата!D1 -> от08 декабря 2017 г. №131
A6: Перечень главных администраторов и администраторов
A7: источников финансирования дефицита бюджета муниципального района
A8: на 2018 год и на плановый период 2019 и 2020 годов-
A9: органов местного самоуправления
A11: коды бюджетной классификации | C11: Наименование
A12: код администратора источника финансирования | B12: источника финансирования дефицита бюджета
A14: Финансово-бюджетная палата Кукморского муниципального района
A15: 605 | B15: 01 02 00 00 05 0000 710 | C15: Получение кредитов от кредитных организаций бюджетом муниципального района в валюте Российской Федерации
A16: 605 | B16: 01 02 00 00 05 0000 810 | C16: Погашение бюджетом муниципального района кредитов от кредитных организаций в валюте Российской Федерации
A17: 605 | B17: 01 03 00 00 05 0000 710 | C17: Получение кредитов от других бюджетов бюджетной системы Российской Федерации бюджетом муниципального района в валюте Российской Федерации.
A18: 605 | B18: 1 03 00 00 05 0000 810 | C18: Погашение бюджетом муниципального района кредитов от других бюджетов бюджетной системы Российской Федерации в валюте Российской Федерации.
A19: 605 | B19: 01 05 02 01 00 0000 510 | C19: Увеличение прочих остатков денежных средств бюджетов
A20: 605 | B20: 01 05 02 01 00 0000 610 | C20: Уменьшение прочих остатков денежных средств бюджетов
A21: 605 | B21: 01 06 04 00 01 0000 810 | C21: Исполнение государственных гарантии муниципальных районов в валюте Российской Федерации
A22: 605 | B22: 01 06 05 01 05 0000 640 | C22: Возврат бюджетных кредитов, предоставленных юридическим лицам из муниципального бюджета
A25: Глава Района С.Д.Димитриев

Sheet 8
B1: =дата!$A$2&дата!$C$10 -> Приложение №4
B2: к решению Совета Кукморского
B3: муниципального района
B4: =дата!C1 -> от____марта 2019 г. №______
A6: Распределение бюджетных ассигнований по разделам и подразделам,
A7: целевым статьям и видам расходов классификации расходов бюджетов
A8: бюджета Кукморского муниципального района на 2019 год
E9: (рублей)
A10: Наименование | B10: РЗ, ПР | C10: ЦСР | D10: ВР | E10: Сумма
A12: Итого | E12: 1236277039
A13: ОБЩЕГОСУДАРСТВЕННЫЕ ВОПРОСЫ | B13: 0100 | E13: 58894818.38
A14: Функционирование высшего должностного лица субъекта Российской Федерации и муниципального образования | B14: 0102 | E14: 1601000
A15: Непрограммные направления расходов | B15: 0102 | C15: 9900000000 | E15: 1601000
A16: Глава муниципального района | B16: 0102 | C16: 9900002030 | E16: 1601000
A17: Фонд оплаты труда государственных (муниципальных) органов | B17: 0102 | C17: 9900002030 | D17: 121 | E17: 1230000
A18: Взносы по обязательному социальному страхованию на выплаты денежного содержания и иные выплаты работникам государственных (муниципальных) органов | B18: 0102 | C18: 9900002030 | D18: 129 | E18: 371000
A19: Функционирование законодательных (представительных) органов государственной власти и представительных органов муниципальных образований | B19: 0103 | E19: 9135349.34
A20: Непрограммные направления расходов | B20: 0103 | C20: 9900000000 | E20: 9135349.34
A21: Центральный аппарат | B21: 0103 | C21: 9900002040 | E21: 9135349.34
A22: Фонд оплаты труда государственных (муниципальных) органов | B22: 0103 | C22: 9900002040 | D22: 121 | E22: 4021000
A23: Иные выплаты персоналу государственных (муниципальных) органов, за исключением фонда оплаты труда | B23: 0103 | C23: 9900002040 | D23: 122 | E23: 1400
A24: Взносы по обязательному социальному страхованию на выплаты денежного содержания и иные выплаты работникам государственных (муниципальных) органов | B24: 0103 | C24: 9900002040 | D24: 129 | E24: 963800
A25: Прочая закупка товаров, работ и услуг для обеспечения государственных (муниципальных) нужд | B25: 0103 | C25: 9900002040 | D25: 244 | E25: 4112637.34
A26: Уплата прочих налогов, сборов | B26: 0103 | C26: 9900002040 | D26: 852 | E26: 36512
A27: Функционирование Правительства Российской Федерации, высших исполнительных органов государственной власти субъектов Российской Федерации, местных администраций | B27: 0104 | E27: 19101624.13
A28: Муниципальная программа «Развитие образования Кукморского муниципального района Республики Татарстан на 2018-2020 годы» | B28: 0104 | C28: 0200000000 | E28: 341400
A29: Подпрограмма «Развитие общего образования на 2018-2020 годы» | B29: 0104 | C29: 0220000000 | E29: 341400
A30: Основное мероприятие «Обеспечение государственных гарантий реализации прав на получение общедоступного и бесплатного дошкольного, начального общего, основного общего, среднего общего образования в муниципальных общеобразовательных организациях, обеспечение дополнительного образования детей в муниципальных общеобразовательных организациях» | B30: 0104 | C30: 0220800000 | E30: 341400
A31: Реализация государственных полномочий в области образования (аппарат управления) | B31: 0104 | C31: 0220825302 | E31: 341400
A32: Фонд оплаты труда государственных (муниципальных) органов | B32: 0104 | C32: 0220825302 | D32: 121 | E32: 262200
A33: Взносы по обязательному социальному страхованию на выплаты денежного содержания и иные выплаты работникам государственных (муниципальных) органов | B33: 0104 | C33: 0220825302 | D33: 129 | E33: 79200
A34: Государственная программа "Развитие юстиции в Республике Татарстан на 2014 – 2020 годы" | B34: 0104 | C34: 2400000000 | E34: 4300
A35: Подпрограмма "Реализация государственной политики в сфере юстиции в Республике Татарстан на 2014 – 2020 годы" | B35: 0104 | C35: 2410000000 | E35: 4300
A36: Основное мероприятие "Осуществление политики в сфере юстиции в пределах полномочий Республики Татарстан" | B36: 0104 | C36: 2410100000 | E36: 4300
A37: Субвенции на реализацию полномочий по сбору информации от поселений, входящих в МР, необходимой для ведения регистра муниципальных нормативных правовых актов РТ | B37: 0104 | C37: 2410125390 | E37: 4300
A38: Фонд оплаты труда государственных (муниципальных) органов | B38: 0104 | C38: 2410125390 | D38: 121 | E38: 3300
A39: Взносы по обязательному социальному страхованию на выплаты денежного содержания и иные выплаты работникам государственных (муниципальных) органов | B39: 0104 | C39: 2410125390 | D39: 129 | E39: 1000
A40: Непрограммные направления расходов | B40: 0104 | C40: 9900000000 | E40: 18755924.13
A41: Центральный аппарат | B41: 0104 | C41: 9900002040 | E41: 18755924.13
A42: Фонд оплаты труда государственных (муниципальных) органов | B42: 0104 | C42: 9900002040 | D42: 121 | E42: 8892870
A43: Иные выплаты персоналу государственных (муниципальных) органов, за исключением фонда оплаты труда | B43: 0104 | C43: 9900002040 | D43: 122 | E43: 3220
A44: Взносы по обязательному социальному страхованию на выплаты денежного содержания и иные выплаты работникам государственных (муниципальных) органов | B44: 0104 | C44: 9900002040 | D44: 129 | E44: 2637730
A45: Прочая закупка товаров, работ и услуг для обеспечения государственных (муниципальных) нужд | B45: 0104 | C45: 9900002040 | D45: 244 | E45: 7191694.13
A46: Уплата прочих налогов, сборов | B46: 0104 | C46: 9900002040 | D46: 852 | E46: 29410
A47: Уплата иных платежей | B47: 0104 | C47: 9900002040 | D47: 853 | E47: 1000
A48: Судебная система | B48: 0105 | E48: 15900
A49: Непрограммные направления расходов | B49: 0105 | C49: 9900000000 | E49: 15900
A50: Составление (изменение) списков кандидатов в присяжные заседатели федеральных судов общей юрисдикции в Российской Федерации за счет средств федерального бюджета | B50: 0105 | C50: 9900051200 | E50: 15900
A51: Прочая закупка товаров, работ и услуг для обеспечения государственных (муниципальных) нужд | B51: 0105 | C51: 9900051200 | D51: 244 | E51: 15900
A52: Обеспечение деятельности финансовых, налоговых и таможенных органов и органов финансового (финансово-бюджетного) надзора | B52: 0106 | E52: 4801260
A53: Муниципальная программа «Управление муниципальными финансами Кукморского муниципального района Республики Татарстан на 2018 – 2020 годы» | B53: 0106 | C53: 1800000000 | E53: 4185260
A54: Основное мероприятие "Обеспечение долгосрочной сбалансированности и устойчивости бюджетной системы" | B54: 0106 | C54: 1800100000 | E54: 4185260
A55: Центральный аппарат | B55: 0106 | C55: 1800102040 | E55: 4185260
A56: Фонд оплаты труда государственных (муниципальных) органов | B56: 0106 | C56: 1800102040 | D56: 121 | E56: 2751000
A57: Взносы по обязательному социальному страхованию на выплаты денежного содержания и иные выплаты работникам государственных (муниципальных) органов | B57: 0106 | C57: 1800102040 | D57: 129 | E57: 828700
A58: Прочая закупка товаров, работ и услуг для обеспечения государственных (муниципальных) нужд | B58: 0106 | C58: 1800102040 | D58: 244 | E58: 605560
A59: Непрограммные направления расходов | B59: 0106 | C59: 9900000000 | E59: 616000
A60: Центральный аппарат | B60: 0106 | C60: 9900002040 | E60: 616000
A61: Фонд оплаты труда государственных (муниципальных) органов | B61: 0106 | C61: 9900002040 | D61: 121 | E61: 453000
A62: Иные выплаты персоналу государственных (муниципальных) органов, за исключением фонда оплаты труда | B62: 0106 | C62: 9900002040 | D62: 122 | E62: 16000
A63: Взносы по обязательному социальному страхованию на выплаты денежного содержания и иные выплаты работникам государственных (муниципальных) органов | B63: 0106 | C63: 9900002040 | D63: 129 | E63: 137000
A64: Прочая закупка товаров, работ и услуг для обеспечения государственных (муниципальных) нужд | B64: 0106 | C64: 9900002040 | D64: 244 | E64: 10000
A65: Другие общегосударственные вопросы | B65: 0113 | E65: 24239684.91
A66: Муниципальная программа «Социальная поддержка граждан Кукморского муниципального района Республики Татарстан» на 2018-2020 годы | B66: 0113 | C66: 0300000000 | E66: 947200
A67: Подпрограмма "Улучшение социально-экономического положения семей" на 2015 – 2020 годы | B67: 0113 | C67: 0350000000 | E67: 947200
A68: Основное мероприятие "Создание благоприятных условий для устройства детей-сирот и детей, оставшихся без попечения родителей, на воспитание в семью" | B68: 0113 | C68: 0350300000 | E68: 947200
A69: Реализация государственных полномочий в области опеки и попечительства | B69: 0113 | C69: 0350325330 | E69: 947200
A70: Фонд оплаты труда учреждений | B70: 0113 | C70: 0350325330 | D70: 111 | E70: 708260
A71: Взносы по обязательному социальному страхованию на выплаты по оплате труда работников и иные выплаты работникам учреждений | B71: 0113 | C71: 0350325330 | D71: 119 | E71: 213940
A72: Прочая закупка товаров, работ и услуг для обеспечения государственных (муниципальных) нужд | B72: 0113 | C72: 0350325330 | D72: 244 | E72: 25000
A73: Муниципальная программа «Обеспечение общественного порядка и противодействие преступности в Кукморском муниципальном районе на 2018– 2020 годы» | B73: 0113 | C73: 0600000000 | E73: 55000
A74: Подпрограмма «Профилактика терроризма и экстремизма в Кукморском муниципальном районе на 2018 - 2020гг.» | B74: 0113 | C74: 0630000000 | E74: 55000
A75: Основное мероприятие "Профилактика терроризма и экстремизма" | B75: 0113 | C75: 0630100000 | E75: 55000
A76: Реализация программных мероприятий063 | B76: 0113 | C76: 0630110990 | E76: 55000
A77: Иные выплаты, за исключением фонда оплаты труда учреждений, лицам, привлекаемым согласно законодательству для выполнения отдельных полномочий | B77: 0113 | C77: 0630110990 | D77: 113 | E77: 15000
A78: Прочая закупка товаров, работ и услуг для обеспечения государственных (муниципальных) нужд | B78: 0113 | C78: 0630110990 | D78: 244 | E78: 40000
A79: Муниципальная программа «Развитие культуры Кукморского муниципального района Республики Татарстан на 2018 - 2020 годы» | B79: 0113 | C79: 0800000000 | E79: 793858.08
A80: Подпрограмма "Развитие архивного дела на 2018 – 2020 годы" | B80: 0113 | C80: 08Е0000000 | E80: 793858.08
A81: Основное мероприятие "Реализация государственной политики в области архивного дела" | B81: 0113 | C81: 08Е0100000 | E81: 793858.08
A82: Обеспечение хранения, учета, комплектования и использования документов архивного фонда Республики Татарстан и других архивных документов | B82: 0113 | C82: 08Е0144020 | E82: 793858.08
A83: Фонд оплаты труда учреждений | B83: 0113 | C83: 08Е0144020 | D83: 111 | E83: 488000
A84: Иные выплаты персоналу учреждений, за исключением фонда оплаты труда | B84: 0113 | C84: 08Е0144020 | D84: 112 | E84: 808
A85: Взносы по обязательному социальному страхованию на выплаты по оплате труда работников и иные выплаты работникам учреждений | B85: 0113 | C85: 08Е0144020 | D85: 119 | E85: 147000
A86: Прочая закупка товаров, работ и услуг для обеспечения государственных (муниципальных) нужд | B86: 0113 | C86: 08Е0144020 | D86: 244 | E86: 158050.08
A87: Муниципальная программа «Управление муниципальным имуществом Кукморского муниципального района Республики Татарстан на 2018 – 2020 годы» | B87: 0113 | C87: 1600000000 | E87: 1962100
A88: Основное мероприятие "Обеспечение эффективного распоряжения и использования государственного имущества и земельных участков" | B88: 0113 | C88: 1600100000 | E88: 1962100
A89: Центральный аппарат | B89: 0113 | C89: 1600102040 | E89: 1960100
A90: Фонд оплаты труда государственных (муниципальных) органов | B90: 0113 | C90: 1600102040 | D90: 121 | E90: 999000
A91: Взносы по обязательному социальному страхованию на выплаты денежного содержания и иные выплаты работникам государственных (муниципальных) органов | B91: 0113 | C91: 1600102040 | D91: 129 | E91: 302000
A92: Прочая закупка товаров, работ и услуг для обеспечения государственных (муниципальных) нужд | B92: 0113 | C92: 1600102040 | D92: 244 | E92: 626100
A93: Уплата прочих налогов, сборов | B93: 0113 | C93: 1600102040 | D93: 852 | E93: 33000
A94: Уплата налога на имущество организаций и земельного налога | B94: 0113 | C94: 1600102950 | E94: 2000
A95: Уплата налога на имущество организаций и земельного налога | B95: 0113 | C95: 1600102950 | D95: 851 | E95: 2000
A96: Муниципальная программа «Управление муниципальными финансами Кукморского муниципального района Республики Татарстан на 2018 – 2020 годы» | B96: 0113 | C96: 1800000000 | E96: 14570900
A97: Основное мероприятие "Обеспечение долгосрочной сбалансированности и устойчивости бюджетной системы" | B97: 0113 | C97: 1800100000 | E97: 14570900
A98: Центральный аппарат | B98: 0113 | C98: 1800102040 | E98: 2300
A99: Уплата прочих налогов, сборов | B99: 0113 | C99: 1800102040 | D99: 852 | E99: 2300
A100: Реализация программных мероприятий | B100: 0113 | C100: 1800129900 | E100: 14568600
A101: Фонд оплаты труда учреждений | B101: 0113 | C101: 1800129900 | D101: 111 | E101: 10956845.52
A102: Взносы по обязательному социальному страхованию на выплаты по оплате труда работников и иные выплаты работникам учреждений | B102: 0113 | C102: 1800129900 | D102: 119 | E102: 2443000
A103: Прочая закупка товаров, работ и услуг для обеспечения государственных (муниципальных) нужд | B103: 0113 | C103: 1800129900 | D103: 244 | E103: 1166754.48
A104: Уплата прочих налогов, сборов | B104: 0113 | C104: 1800129900 | D104: 852 | E104: 2000
A105: Программа по реализации государственной национальной политики в Кукморском муниципальном районе на 2015-2020 годы | B105: 0113 | C105: 2000000000 | E105: 80000
A106: Основное мероприятие «Реализация государственной национальной политики в Республике Татарстан, цивилизованное развитие представителей народов, проживающих на территории Республики Татарстан, сохранение межэтнического и межконфессионального мира и согласия, упрочение общероссийской гражданской идентичности (российской нации), успешная социокультурная адаптация и интеграция мигрантов» | B106: 0113 | C106: 2000100000 | E106: 80000
A107: Реализация программных мероприятий200 | B107: 0113 | C107: 2000110990 | E107: 80000
A108: Иные выплаты, за исключением фонда оплаты труда учреждений, лицам, привлекаемым согласно законодательству для выполнения отдельных полномочий | B108: 0113 | C108: 2000110990 | D108: 113 | E108: 80000
A109: Муниципальная программа «Реализация антикоррупционной политики в Кукморском муниципальном районе Республики Татарстан на 2015-2020 годы» | B109: 0113 | C109: 2700000000 | E109: 5000
A110: Основное мероприятие "Выявление и устранение причин коррупции, противодействие условиям, способствующим ее проявлениям, формирование в обществе нетерпимого отношения к коррупции" | B110: 0113 | C110: 2700100000 | E110: 5000
A111: Реализация программных мероприятий270 | B111: 0113 | C111: 2700110990 | E111: 5000
A112: Иные выплаты, за исключением фонда оплаты труда учреждений, лицам, привлекаемым согласно законодательству для выполнения отдельных полномочий | B112: 0113 | C112: 2700110990 | D112: 113 | E112: 5000
A113: Непрограммные направления расходов | B113: 0113 | C113: 9900000000 | E113: 5825626.83
A114: Центральный аппарат | B114: 0113 | C114: 9900002040 | E114: 3000
A115: Уплата прочих налогов, сборов | B115: 0113 | C115: 9900002040 | D115: 852 | E115: 3000
A116: Уплата налога на имущество организаций и земельного налога | B116: 0113 | C116: 9900002950 | E116: 546247
A117: Уплата налога на имущество организаций и земельного налога | B117: 0113 | C117: 9900002950 | D117: 851 | E117: 546247
A118: Реализация государственных полномочий по образованию и организации деятельности комиссий по делам несовершеннолетних и защите их прав | B118: 0113 | C118: 9900025260 | E118: 715500
A119: Фонд оплаты труда учреждений | B119: 0113 | C119: 9900025260 | D119: 111 | E119: 518240
A120: Взносы по обязательному социальному страхованию на выплаты по оплате труда работников и иные выплаты работникам учреждений | B120: 0113 | C120: 9900025260 | D120: 119 | E120: 156560
A121: Прочая закупка товаров, работ и услуг для обеспечения государственных (муниципальных) нужд | B121: 0113 | C121: 9900025260 | D121: 244 | E121: 40700
A122: Реализация государственных полномочий по образованию и организации деятельности административных комиссий | B122: 0113 | C122: 9900025270 | E122: 363500
A123: Фонд оплаты труда учреждений | B123: 0113 | C123: 9900025270 | D123: 111 | E123: 279190
A124: Взносы по обязательному социальному страхованию на выплаты по оплате труда работников и иные выплаты работникам учреждений | B124: 0113 | C124: 9900025270 | D124: 119 | E124: 84310
A125: Реализация государственных полномочий в области архивного дела | B125: 0113 | C125: 9900025340 | E125: 66400
A126: Прочая закупка товаров, работ и услуг для обеспечения государственных (муниципальных) нужд | B126: 0113 | C126: 9900025340 | D126: 244 | E126: 66400
A127: Реализация государственных полномочий по определению перечня должностных лиц, уполномоченных составлять протоколы об административных правонарушениях | B127: 0113 | C127: 9900025350 | E127: 500
A128: Фонд оплаты труда учреждений | B128: 0113 | C128: 9900025350 | D128: 111 | E128: 500
A129: Реализация государственных полномочий по распоряжению земельными участками, государственная собственность на которые не разграничена | B129: 0113 | C129: 9900025400 | E129: 1400
A130: Фонд оплаты труда государственных (муниципальных) органов | B130: 0113 | C130: 9900025400 | D130: 121 | E130: 1080
A131: Взносы по обязательному социальному страхованию на выплаты денежного содержания и иные выплаты работникам государственных (муниципальных) органов | B131: 0113 | C131: 9900025400 | D131: 129 | E131: 320
A132: Государственная регистрация актов гражданского состояния за счет средств федерального бюджета | B132: 0113 | C132: 9900059300 | E132: 2707200
A133: Фонд оплаты труда государственных (муниципальных) органов | B133: 0113 | C133: 9900059300 | D133: 121 | E133: 900000
A134: Иные выплаты персоналу государственных (муниципальных) органов, за исключением фонда оплаты труда | B134: 0113 | C134: 9900059300 | D134: 122 | E134: 20000
A135: Взносы по обязательному социальному страхованию на выплаты денежного содержания и иные выплаты работникам государственных (муниципальных) органов | B135: 0113 | C135: 9900059300 | D135: 129 | E135: 272000
A136: Прочая закупка товаров, работ и услуг для обеспечения государственных (муниципальных) нужд | B136: 0113 | C136: 9900059300 | D136: 244 | E136: 1515200
A137: Обеспечение деятельности подведомственных учреждений | B137: 0113 | C137: 9900092990 | E137: 852595.91
A138: Прочая закупка товаров, работ и услуг для обеспечения государственных (муниципальных) нужд | B138: 0113 | C138: 9900092990 | D138: 244 | E138: 602595.91
A139: Исполнение судебных актов Российской Федерации и мировых соглашений по возмещению причиненного вреда | B139: 0113 | C139: 9900092990 | D139: 831 | E139: 250000
A140: Диспансеризация муниципальных служащих | B140: 0113 | C140: 9900097071 | E140: 569283.92
A141: Прочая закупка товаров, работ и услуг для обеспечения государственных (муниципальных) нужд | B141: 0113 | C141: 9900097071 | D141: 244 | E141: 569283.92
A142: НАЦИОНАЛЬНАЯ ОБОРОНА | B142: 0200 | E142: 2764900
A143: Мобилизационная и вневойсковая подготовка | B143: 0203 | E143: 2764900
A144: Непрограммные направления расходов | B144: 0203 | C144: 9900000000 | E144: 2764900
A145: Осуществление первичного воинского учета на территориях, где отсутствуют военные комиссариаты за счет средств федерального бюджета | B145: 0203 | C145: 9900051180 | E145: 2764900
A146: Субвенции | B146: 0203 | C146: 9900051180 | D146: 530 | E146: 2764900
A147: НАЦИОНАЛЬНАЯ БЕЗОПАСНОСТЬ И ПРАВООХРАНИТЕЛЬНАЯ ДЕЯТЕЛЬНОСТЬ | B147: 0300 | E147: 2142900
A148: Защита населения и территории от чрезвычайных ситуаций природного и техногенного характера, гражданская оборона | B148: 0309 | E148: 1621600
A149: Муниципальная программа «Защита населения и территорий от чрезвычайных ситуаций, обеспечение пожарной безопасности и безопасности людей на водных объектах в Кукморском муниципальном районе Республики Татарстан на 2018 - 2020 годы» | B149: 0309 | C149: 0700000000 | E149: 1621600
A150: Муниципальная программа «Защита населения и территорий от чрезвычайных ситуаций, обеспечение пожарной безопасности и безопасности людей на водных объектах в Кукморском муниципальном районе Республики Татарстан на 2018 - 2020 годы» | B150: 0309 | C150: 0700000000 | E150: 1587325.17
A151: Мероприятия по предупреждению и ликвидации последствий чрезвычайных ситуаций и стихийных бедствий | B151: 0309 | C151: 0700007420 | E151: 100000
A152: Прочая закупка товаров, работ и услуг для обеспечения государственных (муниципальных) нужд | B152: 0309 | C152: 0700007420 | D152: 244 | E152: 100000
A153: Управление организацией и проведением мероприятий в области гражданской обороны и защиты в чрезвычайных ситуациях | B153: 0309 | C153: 0700022670 | E153: 1487325.17
A154: Фонд оплаты труда учреждений | B154: 0309 | C154: 0700022670 | D154: 111 | E154: 845200
A155: Взносы по обязательному социальному страхованию на выплаты по оплате труда работников и иные выплаты работникам учреждений | B155: 0309 | C155: 0700022670 | D155: 119 | E155: 258525.17
A156: Прочая закупка товаров, работ и услуг для обеспечения государственных (муниципальных) нужд | B156: 0309 | C156: 0700022670 | D156: 244 | E156: 383600
A157: Подпрограмма «Снижение рисков и смягчение последствий чрезвычайных ситуаций природного и техногенного характера в Кукморском муниципальном районе Республики Татарстан на 2018 - 2020 годы» | B157: 0309 | C157: 0720000000 | E157: 34274.83
A158: Основное мероприятие "Повышение эффективности управления в области гражданской обороны, предупреждения и ликвидации чрезвычайных ситуаций" | B158: 0309 | C158: 0720100000 | E158: 34274.83
A159: Управление организацией и проведением мероприятий в области гражданской обороны и защиты в чрезвычайных ситуациях | B159: 0309 | C159: 0720122670 | E159: 34274.83
A160: Фонд оплаты труда учреждений | B160: 0309 | C160: 0720122670 | D160: 111 | E160: 28800
A161: Взносы по обязательному социальному страхованию на выплаты по оплате труда работников и иные выплаты работникам учреждений | B161: 0309 | C161: 0720122670 | D161: 119 | E161: 5474.83
A162: Другие вопросы в области национальной безопасности и правоохранительной деятельности | B162: 0314 | E162: 521300
A163: Муниципальная программа «Обеспечение общественного порядка и противодействие преступности в Кукморском муниципальном районе на 2018– 2020 годы» | B163: 0314 | C163: 0600000000 | E163: 521300
A164: Подпрограмма "Организация деятельности по профилактике правонарушений и преступлений в Республике Татарстан на 2014 – 2020 годы" | B164: 0314 | C164: 0610000000 | E164: 521300
A165: Основное мероприятие "Совершенствование деятельности по профилактике правонарушений и преступлений" | B165: 0314 | C165: 0610100000 | E165: 521300
A166: Реализация программных мероприятий | B166: 0314 | C166: 0610110990 | E166: 521300
A167: Фонд оплаты труда учреждений | B167: 0314 | C167: 0610110990 | D167: 111 | E167: 334000
A168: Взносы по обязательному социальному страхованию на выплаты по оплате труда работников и иные выплаты работникам учреждений | B168: 0314 | C168: 0610110990 | D168: 119 | E168: 101000
A169: Прочая закупка товаров, работ и услуг для обеспечения государственных (муниципальных) нужд | B169: 0314 | C169: 0610110990 | D169: 244 | E169: 86300
A170: НАЦИОНАЛЬНАЯ ЭКОНОМИКА | B170: 0400 | E170: 31086916.23
A171: Сельское хозяйство и рыболовство | B171: 0405 | E171: 1967100
A172: Государственная программа "Развитие сельского хозяйства и регулирование рынков сельскохозяйственной продукции, сырья и продовольствия в Республике Татарстан на 2013 – 2020 годы" | B172: 0405 | C172: 1400000000 | E172: 1967100
A173: Подпрограмма "Развитие подотрасли животноводства, переработки и реализации продукции животноводства" | B173: 0405 | C173: 1420000000 | E173: 1967100
B174: 0405 | C174: 1420900000 | E174: 1967100
A175: Субвенции на реализацию госполномочий в сфере организации проведения мероприятий по предупреждению и ликвидации болезней животных и их лечению | B175: 0405 | C175: 1420925360 | E175: 1967100
A176: Прочая закупка товаров, работ и услуг для обеспечения государственных (муниципальных) нужд | B176: 0405 | C176: 1420925360 | D176: 244 | E176: 1967100
A177: Водное хозяйство | B177: 0406 | E177: 223900
A178: Непрограммные направления расходов | B178: 0406 | C178: 9900000000 | E178: 223900
A179: Расходы на содержание и ремонт гидротехнических сооружений | B179: 0406 | C179: 9900090430 | E179: 223900
A180: Прочая закупка товаров, работ и услуг для обеспечения государственных (муниципальных) нужд | B180: 0406 | C180: 9900090430 | D180: 244 | E180: 223900
A181: Дорожное хозяйство (дорожные фонды) | B181: 0409 | E181: 28895916.23
A182: Основное мероприятие "Благоустройство" | B182: 0409 | C182: Б100000000 | E182: 4072190
A183: Строительство, содержание и ремонт автомобильных дорог и инженерных сооружений на них в границах городских округов и поселений в рамках благоустройства | B183: 0409 | C183: Б100078020 | E183: 4072190
A184: Прочая закупка товаров, работ и услуг для обеспечения государственных (муниципальных) нужд | B184: 0409 | C184: Б100078020 | D184: 244 | E184: 4072190
B185: 0409 | C185: Д100000000 | E185: 24823726.23
A186: Строительство, реконструкция и ремонт (текущий и капитальный) автомобильных дорог за счет муниципального Дорожного фонда | B186: 0409 | C186: Д100003650 | E186: 24823726.23
A187: Прочая закупка товаров, работ и услуг для обеспечения государственных (муниципальных) нужд | B187: 0409 | C187: Д100003650 | D187: 244 | E187: 24823726.23
A188: ЖИЛИЩНО-КОММУНАЛЬНОЕ ХОЗЯЙСТВО | B188: 0500 | E188: 13979227.35
A189: Жилищное хозяйство | B189: 0501 | E189: 11324227.35
A190: Муниципальная программа «Обеспечение качественным жильем и услугами жилищно-коммунального хозяйства населения, благоустройства территории Кукморского муниципального района Республики Татарстан на 2018 - 2020 годы» | B190: 0501 | C190: 0400000000 | E190: 11324227.35
A191: Подпрограмма «Реализация мероприятий муниципальной программы капитального ремонта общего имущества в многоквартирных домах, расположенных на территории Кукморского муниципального района Республики Татарстан в 2018 - 2020 годах» | B191: 0501 | C191: 0450000000 | E191: 4388000
A192: Основное мероприятие "Организация своевременного проведения капитального ремонта общего имущества в многоквартирных домах" | B192: 0501 | C192: 0450100000 | E192: 4388000
A193: Обеспечение мероприятий по капитальному ремонту многоквартирных домов и переселению граждан из аварийного жилищного фонда за счет средств бюджета Республики Татарстан и бюджета Кукморского муниципального района | B193: 0501 | C193: 0450196010 | E193: 4388000
A194: Субсидии (гранты в форме субсидий) на финансовое обеспечение затрат в связи с производством (реализацией) товаров, выполнением работ, оказанием услуг, порядком (правилами) предоставления которых установлено требование о последующем подтверждении их использования в соответствии с условиями и (или) целями предоставления | B194: 0501 | C194: 0450196010 | D194: 632 | E194: 4388000
A195: Подпрограмма «Реализация муниципальной политики в сфере архитектуры, градо-строительства, строительства, промышленности строительных материалов, в жилищной сфере и коммунальном хозяйстве на 2018 - 2020 годы» | B195: 0501 | C195: 0480000000 | E195: 6936227.35
A196: Основное мероприятие "Другие мероприятия в области жилищно-коммунального хозяйства " | B196: 0501 | C196: 0480400000 | E196: 6936227.35
A197: Мероприятия в области жилищно-коммунального хозяйства | B197: 0501 | C197: 0480476040 | E197: 6936227.35
A198: Прочая закупка товаров, работ и услуг для обеспечения государственных (муниципальных) нужд | B198: 0501 | C198: 0480476040 | D198: 244 | E198: 6936227.35
A199: Благоустройство | B199: 0503 | E199: 2655000
A200: Муниципальная программа «Обеспечение качественным жильем и услугами жилищно-коммунального хозяйства населения, благоустройства территории Кукморского муниципального района Республики Татарстан на 2018 - 2020 годы» | B200: 0503 | C200: 0400000000 | E200: 1155000
A201: Подпрограмма «Благоустройство территории Кукморского муниципального района на 2018– 2020 годы» | B201: 0503 | C201: 0490000000 | E201: 1155000
A202: Основное мероприятие "Благоустройство" | B202: 0503 | C202: 0490200000 | E202: 1155000
... 224 more rows

Sheet 9 (hidden)
B1: =дата!$A$2&дата!$D$11 -> Приложение №9
B2: к решению Кукморского
B3: районного Совета
B4: =дата!D1 -> от08 декабря 2017 г. №131
A6: Распределение бюджетных ассигнований по разделам и подразделам,
A7: целевым статьям и видам расходов классификации расходов бюджетов
A8: бюджета Кукморского муниципального района на плановый период 2019 и 2020 годов
F9: (рублей) | G9: =SUBTOTAL(9,E15:E1816) -> 7746928030 | H9: =SUBTOTAL(9,F15:F1816) -> 7819485490
A10: Наименование | B10: Рз, ПР | C10: ЦСР | D10: ВР | E10: Сумма
E11: 2019 год | F11: 2020 год
A12: Итого | E12: =E14+E186+E191+E216+E249+E279+E289+E466+E514+E521+E547+E566 -> 1139593430 | F12: =F14+F186+F191+F216+F249+F279+F289+F466+F514+F521+F547+F566 -> 1151082390 | G12: =E12-'11'!F11 -> -999.9999998 | H12: =F12-'11'!G11 -> -999.9999998
A14: ОБЩЕГОСУДАРСТВЕННЫЕ ВОПРОСЫ | B14: 0100 | E14: =E15+E22+E37+E58+E62+E80+E76 -> 51178260 | F14: =F15+F22+F37+F58+F62+F80+F76 -> 52644080
A15: Функционирование высшего должностного лица субъекта Российской Федерации и муниципального образования | B15: 0102 | E15: =E16 -> 1601000 | F15: =F16 -> 1601000
A16: Непрограммные направления расходов | B16: 0102 | C16: 9900000000 | E16: =E17+E20 -> 1601000 | F16: =F17+F20 -> 1601000
A17: Глава муниципального района | B17: 0102 | C17: 9900002030 | E17: =SUM(E18:E19) -> 1601000 | F17: =SUM(F18:F19) -> 1601000
A18: Фонд оплаты труда государственных (муниципальных) органов и взносы по обязательному социальному страхованию | B18: 0102 | C18: 9900002030 | D18: 121 | E18: =SUMIF('11'!$H$18:$H$1925,B18&C18&A18,'11'!$F$18:$F$1925) -> 1230000 | F18: =SUMIF('11'!$H$18:$H$1925,B18&C18&A18,'11'!$G$18:$G$1925) -> 1230000
A19: Взносы по обязательному социальному страхованию на выплату денежного содержания и иные выплаты работникам государственных (муниципальных) органов | B19: 0102 | C19: 9900002030 | D19: 129 | E19: =SUMIF('11'!$H$18:$H$1925,B19&C19&A19,'11'!$F$18:$F$1925) -> 371000 | F19: =SUMIF('11'!$H$18:$H$1925,B19&C19&A19,'11'!$G$18:$G$1925) -> 371000
A20: Межбюджетные трансферты, передаваемые бюджетам муниципальных образований для компенсации дополнительных расходов, возникших в результате решений, принятых органами власти другого уровня | B20: 0102 | C20: 9900025151 | E20: =E21 -> 0 | F20: =F21 -> 0
A21: Иные межбюджетные трансферты | B21: 0102 | C21: 9900025151 | D21: 540 | E21: =SUMIF('11'!$H$18:$H$1925,B21&C21&A21,'11'!$F$18:$F$1925) -> 0 | F21: =SUMIF('11'!$H$18:$H$1925,B21&C21&A21,'11'!$G$18:$G$1925) -> 0
A22: Функционирование законодательных (представительных) органов государственной власти и представительных органов муниципальных образований | B22: 0103 | E22: =E23+E29 -> 5970000 | F22: =F23+F29 -> 5970000
A23: Государственная программа "Развитие юстиции в Республике Татарстан на 2014 – 2020 годы" | B23: 0103 | C23: 2400000000 | E23: =E24 -> 0 | F23: =F24 -> 0
A24: Подпрограмма "Реализация государственной политики в сфере юстиции в Республике Татарстан на 2014 – 2020 годы" | B24: 0103 | C24: 2410000000 | E24: =E25 -> 0 | F24: 0
A25: Основное мероприятие "Осуществление политики в сфере юстиции в пределах полномочий Республики Татарстан" | B25: 0103 | C25: 2410100000 | E25: 0 | F25: 0
A26: Субвенции на реализацию полномочий по сбору информации от поселений, входящих в МР, необходимой для ведения регистра муниципальных нормативных правовых актов РТ | B26: 0103 | C26: 2410125390 | E26: =SUM(E27:E28) -> 0 | F26: =SUM(F27:F28) -> 0
A27: Фонд оплаты труда государственных (муниципальных) органов и взносы по обязательному социальному страхованию | B27: 0103 | C27: 2410125390 | D27: 121 | E27: =SUMIF('11'!$H$18:$H$1925,B27&C27&A27,'11'!$F$18:$F$1925) -> 0 | F27: =SUMIF('11'!$H$18:$H$1925,B27&C27&A27,'11'!$G$18:$G$1925) -> 0
A28: Взносы по обязательному социальному страхованию на выплату денежного содержания и иные выплаты работникам государственных (муниципальных) органов | B28: 0103 | C28: 2410125390 | D28: 129 | E28: =SUMIF('11'!$H$18:$H$1925,B28&C28&A28,'11'!$F$18:$F$1925) -> 0 | F28: =SUMIF('11'!$H$18:$H$1925,B28&C28&A28,'11'!$G$18:$G$1925) -> 0
A29: Непрограммные направления расходов | B29: 0103 | C29: 9900000000 | E29: =E30 -> 5970000 | F29: =F30 -> 5970000
A30: Центральный аппарат | B30: 0103 | C30: 9900002040 | E30: =SUM(E31:E36) -> 5970000 | F30: =SUM(F31:F36) -> 5970000
A31: Фонд оплаты труда государственных (муниципальных) органов и взносы по обязательному социальному страхованию | B31: 0103 | C31: 9900002040 | D31: 121 | E31: =SUMIF('11'!$H$18:$H$1925,B31&C31&A31,'11'!$F$18:$F$1925) -> 4021000 | F31: =SUMIF('11'!$H$18:$H$1925,B31&C31&A31,'11'!$G$18:$G$1925) -> 4021000
A32: Иные выплаты персоналу государственных (муниципальных) органов, за исключением фонда оплаты труда | B32: 0103 | C32: 9900002040 | D32: 122 | E32: =SUMIF('11'!$H$18:$H$1925,B32&C32&A32,'11'!$F$18:$F$1925) -> 0 | F32: =SUMIF('11'!$H$18:$H$1925,B32&C32&A32,'11'!$G$18:$G$1925) -> 0
A33: Взносы по обязательному социальному страхованию на выплату денежного содержания и иные выплаты работникам государственных (муниципальных) органов | B33: 0103 | C33: 9900002040 | D33: 129 | E33: =SUMIF('11'!$H$18:$H$1925,B33&C33&A33,'11'!$F$18:$F$1925) -> 963800 | F33: =SUMIF('11'!$H$18:$H$1925,B33&C33&A33,'11'!$G$18:$G$1925) -> 963800
A34: Прочая закупка товаров, работ и услуг для обеспечения государственных (муниципальных) нужд | B34: 0103 | C34: 9900002040 | D34: 244 | E34: =SUMIF('11'!$H$18:$H$1925,B34&C34&A34,'11'!$F$18:$F$1925) -> 985200 | F34: =SUMIF('11'!$H$18:$H$1925,B34&C34&A34,'11'!$G$18:$G$1925) -> 985200
A35: Уплата прочих налогов, сборов и иных платежей | B35: 0103 | C35: 9900002040 | D35: 852 | E35: =SUMIF('11'!$H$18:$H$1925,B35&C35&A35,'11'!$F$18:$F$1925) -> 0 | F35: =SUMIF('11'!$H$18:$H$1925,B35&C35&A35,'11'!$G$18:$G$1925) -> 0
A36: Уплата иных платежей | B36: 0103 | C36: 9900002040 | D36: 853 | E36: =SUMIF('11'!$H$18:$H$1925,B36&C36&A36,'11'!$F$18:$F$1925) -> 0 | F36: =SUMIF('11'!$H$18:$H$1925,B36&C36&A36,'11'!$G$18:$G$1925) -> 0
A37: Функционирование Правительства Российской Федерации, высших исполнительных органов государственной власти субъектов Российской Федерации, местных администраций | B37: 0104 | E37: =E38+E45 -> 14865660 | F37: =F38+F45 -> 15834660
A38: Муниципальная программа «Развитие образования Кукморского муниципального района Республики Татарстан на 2018 – 2020 годы» | B38: 0104 | C38: 0200000000 | E38: =E39 -> 276100 | F38: =F39 -> 286600
A39: Подпрограмма «Развитие общего образования на 2018 – 2020 годы» | B39: 0104 | C39: 0220000000 | E39: =E40 -> 276100 | F39: 286600
A40: Основное мероприятие «Обеспечение государственных гарантий реализации прав на получение общедоступного и бесплатного дошкольного, начального общего, основного общего, среднего общего образования в муниципальных общеобразовательных организациях, обеспечение дополнительного образования детей в муниципальных общеобразовательных организациях» | B40: 0104 | C40: 0220800000 | E40: 276100 | F40: 286600
A41: Реализация государственных полномочий в области образования (аппарат управления) | B41: 0104 | C41: 0220825302 | E41: =SUM(E42:E44) -> 276100 | F41: =SUM(F42:F44) -> 286600
A42: Фонд оплаты труда государственных (муниципальных) органов и взносы по обязательному социальному страхованию | B42: 0104 | C42: 0220825302 | D42: 121 | E42: =SUMIF('11'!$H$18:$H$1925,B42&C42&A42,'11'!$F$18:$F$1925) -> 214400 | F42: =SUMIF('11'!$H$18:$H$1925,B42&C42&A42,'11'!$G$18:$G$1925) -> 220100
A43: Взносы по обязательному социальному страхованию на выплату денежного содержания и иные выплаты работникам государственных (муниципальных) органов | B43: 0104 | C43: 0220825302 | D43: 129 | E43: =SUMIF('11'!$H$18:$H$1925,B43&C43&A43,'11'!$F$18:$F$1925) -> 61700 | F43: =SUMIF('11'!$H$18:$H$1925,B43&C43&A43,'11'!$G$18:$G$1925) -> 66500
A44: Прочая закупка товаров, работ и услуг для обеспечения государственных (муниципальных) нужд | B44: 0104 | C44: 0220825302 | D44: 244 | E44: =SUMIF('11'!$H$18:$H$1925,B44&C44&A44,'11'!$F$18:$F$1925) -> -1.421085472e-11 | F44: =SUMIF('11'!$H$18:$H$1925,B44&C44&A44,'11'!$G$18:$G$1925) -> -1.421085472e-11
A45: Непрограммные направления расходов | B45: 0104 | C45: 9900000000 | E45: =E46+E52+E54 -> 14589560 | F45: =F46+F52+F54 -> 15548060
A46: Центральный аппарат | B46: 0104 | C46: 9900002040 | E46: =SUM(E47:E51) -> 14313460 | F46: =SUM(F47:F51) -> 15261460
A47: Фонд оплаты труда государственных (муниципальных) органов и взносы по обязательному социальному страхованию | B47: 0104 | C47: 9900002040 | D47: 121 | E47: =SUMIF('11'!$H$18:$H$1925,B47&C47&A47,'11'!$F$18:$F$1925) -> 9284450 | F47: =SUMIF('11'!$H$18:$H$1925,B47&C47&A47,'11'!$G$18:$G$1925) -> 10066450
A48: Иные выплаты персоналу государственных (муниципальных) органов, за исключением фонда оплаты труда | B48: 0104 | C48: 9900002040 | D48: 122 | E48: =SUMIF('11'!$H$18:$H$1925,B48&C48&A48,'11'!$F$18:$F$1925) -> 0 | F48: =SUMIF('11'!$H$18:$H$1925,B48&C48&A48,'11'!$G$18:$G$1925) -> 0
A49: Взносы по обязательному социальному страхованию на выплату денежного содержания и иные выплаты работникам государственных (муниципальных) органов | B49: 0104 | C49: 9900002040 | D49: 129 | E49: =SUMIF('11'!$H$18:$H$1925,B49&C49&A49,'11'!$F$18:$F$1925) -> 2822010 | F49: =SUMIF('11'!$H$18:$H$1925,B49&C49&A49,'11'!$G$18:$G$1925) -> 2988010
A50: Прочая закупка товаров, работ и услуг для обеспечения государственных (муниципальных) нужд | B50: 0104 | C50: 9900002040 | D50: 244 | E50: =SUMIF('11'!$H$18:$H$1925,B50&C50&A50,'11'!$F$18:$F$1925) -> 2207000 | F50: =SUMIF('11'!$H$18:$H$1925,B50&C50&A50,'11'!$G$18:$G$1925) -> 2207000
A51: Уплата прочих налогов, сборов и иных платежей | B51: 0104 | C51: 9900002040 | D51: 852 | E51: =SUMIF('11'!$H$18:$H$1925,B51&C51&A51,'11'!$F$18:$F$1925) -> 0 | F51: =SUMIF('11'!$H$18:$H$1925,B51&C51&A51,'11'!$G$18:$G$1925) -> 0
A52: Межбюджетные трансферты, передаваемые бюджетам муниципальных образований для компенсации дополнительных расходов, возникших в результате решений, принятых органами власти другого уровня | B52: 0104 | C52: 9900025151 | E52: =E53 -> 0 | F52: =F53 -> 0
A53: Иные межбюджетные трансферты | B53: 0104 | C53: 9900025151 | D53: 540 | E53: =SUMIF('11'!$H$18:$H$1925,B53&C53&A53,'11'!$F$18:$F$1925) -> 0 | F53: =SUMIF('11'!$H$18:$H$1925,B53&C53&A53,'11'!$G$18:$G$1925) -> 0
A54: Реализация государственных полномочий в области молодежной политики | B54: 0104 | C54: 9900025240 | E54: =SUM(E55:E57) -> 276100 | F54: =SUM(F55:F57) -> 286600
A55: Фонд оплаты труда государственных (муниципальных) органов и взносы по обязательному социальному страхованию | B55: 0104 | C55: 9900025240 | D55: 121 | E55: =SUMIF('11'!$H$18:$H$1925,B55&C55&A55,'11'!$F$18:$F$1925) -> 214400 | F55: =SUMIF('11'!$H$18:$H$1925,B55&C55&A55,'11'!$G$18:$G$1925) -> 220100
A56: Взносы по обязательному социальному страхованию на выплату денежного содержания и иные выплаты работникам государственных (муниципальных) органов | B56: 0104 | C56: 9900025240 | D56: 129 | E56: =SUMIF('11'!$H$18:$H$1925,B56&C56&A56,'11'!$F$18:$F$1925) -> 61700 | F56: =SUMIF('11'!$H$18:$H$1925,B56&C56&A56,'11'!$G$18:$G$1925) -> 66500
A57: Прочая закупка товаров, работ и услуг для обеспечения государственных (муниципальных) нужд | B57: 0104 | C57: 9900025240 | D57: 244 | E57: =SUMIF('11'!$H$18:$H$1925,B57&C57&A57,'11'!$F$18:$F$1925) -> -1.421085472e-11 | F57: =SUMIF('11'!$H$18:$H$1925,B57&C57&A57,'11'!$G$18:$G$1925) -> -1.421085472e-11
A58: Судебная система | B58: 0105 | E58: =E59 -> 13000 | F58: =F59 -> 21000
A59: Непрограммные направления расходов | B59: 0105 | C59: 9900000000 | E59: =E60 -> 13000 | F59: 21000
A60: Составление (изменение) списков кандидатов в присяжные заседатели федеральных судов общей юрисдикции в Российской Федерации за счет средств федерального бюджета | B60: 0105 | C60: 9900051200 | E60: 13000 | F60: 21000
A61: Прочая закупка товаров, работ и услуг для обеспечения государственных (муниципальных) нужд | B61: 0105 | C61: 9900051200 | D61: 244 | E61: =SUMIF('11'!$H$18:$H$1925,B61&C61&A61,'11'!$F$18:$F$1925) -> 13000 | F61: =SUMIF('11'!$H$18:$H$1925,B61&C61&A61,'11'!$G$18:$G$1925) -> 21000
A62: Обеспечение деятельности финансовых, налоговых и таможенных органов и органов финансового (финансово-бюджетного) надзора | B62: 0106 | E62: =E63+E70 -> 4623700 | F62: =F63+F70 -> 4623700
A63: Муниципальная программа «Управление муниципальными финансами Кукморского муниципального района Республики Татарстан на 2018 – 2020 годы» | B63: 0106 | C63: 1800000000 | E63: =E64 -> 4007700 | F63: =F64 -> 4007700
A64: Основное мероприятие "Обеспечение долгосрочной сбалансированности и устойчивости бюджетной системы" | B64: 0106 | C64: 1800100000 | E64: =E65 -> 4007700 | F64: 4007700
A65: Центральный аппарат | B65: 0106 | C65: 1800102040 | E65: =SUM(E66:E69) -> 4007700 | F65: =SUM(F66:F69) -> 4007700
A66: Фонд оплаты труда государственных (муниципальных) органов и взносы по обязательному социальному страхованию | B66: 0106 | C66: 1800102040 | D66: 121 | E66: =SUMIF('11'!$H$18:$H$1925,B66&C66&A66,'11'!$F$18:$F$1925) -> 2751000 | F66: =SUMIF('11'!$H$18:$H$1925,B66&C66&A66,'11'!$G$18:$G$1925) -> 2751000
A67: Иные выплаты персоналу государственных (муниципальных) органов, за исключением фонда оплаты труда | B67: 0106 | C67: 1800102040 | D67: 122 | E67: =SUMIF('11'!$H$18:$H$1925,B67&C67&A67,'11'!$F$18:$F$1925) -> 0 | F67: =SUMIF('11'!$H$18:$H$1925,B67&C67&A67,'11'!$G$18:$G$1925) -> 0
A68: Взносы по обязательному социальному страхованию на выплату денежного содержания и иные выплаты работникам государственных (муниципальных) органов | B68: 0106 | C68: 1800102040 | D68: 129 | E68: =SUMIF('11'!$H$18:$H$1925,B68&C68&A68,'11'!$F$18:$F$1925) -> 828700 | F68: =SUMIF('11'!$H$18:$H$1925,B68&C68&A68,'11'!$G$18:$G$1925) -> 828700
A69: Прочая закупка товаров, работ и услуг для обеспечения государственных (муниципальных) нужд | B69: 0106 | C69: 1800102040 | D69: 244 | E69: =SUMIF('11'!$H$18:$H$1925,B69&C69&A69,'11'!$F$18:$F$1925) -> 428000 | F69: =SUMIF('11'!$H$18:$H$1925,B69&C69&A69,'11'!$G$18:$G$1925) -> 428000
A70: Непрограммные направления расходов | B70: 0106 | C70: 9900000000 | E70: =E71 -> 616000 | F70: =F71 -> 616000
A71: Центральный аппарат | B71: 0106 | C71: 9900002040 | E71: =SUM(E72:E75) -> 616000 | F71: =SUM(F72:F75) -> 616000
A72: Фонд оплаты труда государственных (муниципальных) органов и взносы по обязательному социальному страхованию | B72: 0106 | C72: 9900002040 | D72: 121 | E72: =SUMIF('11'!$H$18:$H$1925,B72&C72&A72,'11'!$F$18:$F$1925) -> 453000 | F72: =SUMIF('11'!$H$18:$H$1925,B72&C72&A72,'11'!$G$18:$G$1925) -> 453000
A73: Иные выплаты персоналу государственных (муниципальных) органов, за исключением фонда оплаты труда | B73: 0106 | C73: 9900002040 | D73: 122 | E73: =SUMIF('11'!$H$18:$H$1925,B73&C73&A73,'11'!$F$18:$F$1925) -> 1000 | F73: =SUMIF('11'!$H$18:$H$1925,B73&C73&A73,'11'!$G$18:$G$1925) -> 1000
A74: Взносы по обязательному социальному страхованию на выплату денежного содержания и иные выплаты работникам государственных (муниципальных) органов | B74: 0106 | C74: 9900002040 | D74: 129 | E74: =SUMIF('11'!$H$18:$H$1925,B74&C74&A74,'11'!$F$18:$F$1925) -> 137000 | F74: =SUMIF('11'!$H$18:$H$1925,B74&C74&A74,'11'!$G$18:$G$1925) -> 137000
A75: Прочая закупка товаров, работ и услуг для обеспечения государственных (муниципальных) нужд | B75: 0106 | C75: 9900002040 | D75: 244 | E75: =SUMIF('11'!$H$18:$H$1925,B75&C75&A75,'11'!$F$18:$F$1925) -> 25000 | F75: =SUMIF('11'!$H$18:$H$1925,B75&C75&A75,'11'!$G$18:$G$1925) -> 25000
A76: Резервные фонды | B76: 0111 | E76: =E77 -> 5845700 | F76: 5845700
A77: Непрограммные направления расходов | B77: 0111 | C77: 9900000000 | E77: 5845700 | F77: 5845700
A78: Резервные фонды местных администраций | B78: 0111 | C78: 9900007410 | E78: =E79 -> 5845700 | F78: =F79 -> 5845700
A79: Уплата иных платежей | B79: 0111 | C79: 9900007410 | D79: 870 | E79: =SUMIF('11'!$H$18:$H$1925,B79&C79&A79,'11'!$F$18:$F$1925) -> 5845700 | F79: =SUMIF('11'!$H$18:$H$1925,B79&C79&A79,'11'!$G$18:$G$1925) -> 5845700
A80: Другие общегосударственные вопросы | B80: 0113 | E80: =E81+E87+E95+E100+E108+E113+E123+E135+E143+E147+E139 -> 18259200 | F80: =F81+F87+F95+F100+F108+F113+F123+F135+F143+F147+F139 -> 18748020
A81: Муниципальная программа «Развитие образования Кукморского муниципального района Республики Татарстан на 2018 – 2020 годы» | B81: 0113 | C81: 0200000000 | E81: =E82 -> 0 | F81: =F82 -> 0
A82: Подпрограмма «Развитие системы оценки качества образования на 2018 – 2020 годы» | B82: 0113 | C82: 0250000000 | E82: =E83 -> 0 | F82: 0
A83: Основное мероприятие "Содержание прочих учреждений образования" | B83: 0113 | C83: 0250200000 | E83: 0 | F83: 0
A84: Учебно-методические кабинеты, централизованные бухгалтерии, группы хозяйственного обслуживания, учебные фильмотеки, межшкольные учебно-производственные комбинаты, логопедические пункты | B84: 0113 | C84: 0250242520 | E84: =SUM(E85:E86) -> 0 | F84: =SUM(F85:F86) -> 0
A85: Уплата налога на имущество организаций и земельного налога | B85: 0113 | C85: 0250242520 | D85: 851 | E85: =SUMIF('11'!$H$18:$H$1925,B85&C85&A85,'11'!$F$18:$F$1925) -> 0 | F85: =SUMIF('11'!$H$18:$H$1925,B85&C85&A85,'11'!$G$18:$G$1925) -> 0
A86: Уплата прочих налогов, сборов и иных платежей | B86: 0113 | C86: 0250242520 | D86: 852 | E86: =SUMIF('11'!$H$18:$H$1925,B86&C86&A86,'11'!$F$18:$F$1925) -> 0 | F86: =SUMIF('11'!$H$18:$H$1925,B86&C86&A86,'11'!$G$18:$G$1925) -> 0
A87: Муниципальная программа «Социальная поддержка граждан Кукморского муниципального района Республики Татарстан» на 2018 – 2020 годы | B87: 0113 | C87: 0300000000 | E87: =E88 -> 770600 | F87: =F88 -> 799200
A88: Подпрограмма "Улучшение социально-экономического положения семей" на 2018 – 2020 годы | B88: 0113 | C88: 0350000000 | E88: =E89 -> 770600 | F88: 799200
A89: Основное мероприятие "Создание благоприятных условий для устройства детей-сирот и детей, оставшихся без попечения родителей, на воспитание в семью" | B89: 0113 | C89: 0350300000 | E89: 770600 | F89: 799200
A90: Реализация государственных полномочий в области опеки и попечительства | B90: 0113 | C90: 0350325330 | E90: =SUM(E91:E94) -> 770600 | F90: =SUM(F91:F94) -> 799200
A91: Фонд оплаты труда казенных учреждений и взносы по обязательному социальному страхованию | B91: 0113 | C91: 0350325330 | D91: 111 | E91: =SUMIF('11'!$H$18:$H$1925,B91&C91&A91,'11'!$F$18:$F$1925) -> 570700 | F91: =SUMIF('11'!$H$18:$H$1925,B91&C91&A91,'11'!$G$18:$G$1925) -> 594600
A92: Иные выплаты персоналу казенных учреждений, за исключением фонда оплаты труда | B92: 0113 | C92: 0350325330 | D92: 112 | E92: =SUMIF('11'!$H$18:$H$1925,B92&C92&A92,'11'!$F$18:$F$1925) -> 0 | F92: =SUMIF('11'!$H$18:$H$1925,B92&C92&A92,'11'!$G$18:$G$1925) -> 0
A93: Взносы по обязательному социальному страхованию на выплаты по оплате труда работников и иные выплаты работникам учреждений | B93: 0113 | C93: 0350325330 | D93: 119 | E93: =SUMIF('11'!$H$18:$H$1925,B93&C93&A93,'11'!$F$18:$F$1925) -> 174900 | F93: =SUMIF('11'!$H$18:$H$1925,B93&C93&A93,'11'!$G$18:$G$1925) -> 179600
A94: Прочая закупка товаров, работ и услуг для обеспечения государственных (муниципальных) нужд | B94: 0113 | C94: 0350325330 | D94: 244 | E94: =SUMIF('11'!$H$18:$H$1925,B94&C94&A94,'11'!$F$18:$F$1925) -> 25000 | F94: =SUMIF('11'!$H$18:$H$1925,B94&C94&A94,'11'!$G$18:$G$1925) -> 25000
A95: Муниципальная программа «Обеспечение общественного порядка и противодействие преступности в Кукморском муниципальном районе на 2018 - 2020 годы" | B95: 0113 | C95: 0600000000 | E95: =E96 -> 55000 | F95: =F96 -> 55000
A96: Подпрограмма «Профилактика терроризма и экстремизма в Кукморском муниципальном районе на 2018-2020гг.» | B96: 0113 | C96: 0630000000 | E96: =E97 -> 55000 | F96: 55000
A97: Основное мероприятие "Профилактика терроризма и экстремизма" | B97: 0113 | C97: 0630100000 | E97: 55000 | F97: 55000
A98: Реализация программных мероприятий063 | B98: 0113 | C98: 0630110990 | E98: 55000 | F98: 55000
A99: Прочая закупка товаров, работ и услуг для обеспечения государственных (муниципальных) нужд | B99: 0113 | C99: 0630110990 | D99: 244 | E99: =SUMIF('11'!$H$18:$H$1925,B99&C99&A99,'11'!$F$18:$F$1925) -> 55000 | F99: =SUMIF('11'!$H$18:$H$1925,B99&C99&A99,'11'!$G$18:$G$1925) -> 55000
A100: Муниципальная программа «Развитие культуры Кукморского муниципального района Республики Татарстан на 2018 – 2020 годы» | B100: 0113 | C100: 0800000000 | E100: =E101 -> 683000 | F100: =F101 -> 683000
A101: Подпрограмма "Развитие архивного дела на 2018 - 2020 годы" | B101: 0113 | C101: 08Е0000000 | E101: =E102 -> 683000 | F101: 683000
A102: Основное мероприятие "Реализация государственной политики в области архивного дела" | B102: 0113 | C102: 08Е0100000 | E102: 683000 | F102: 683000
A103: Обеспечение хранения, учета, комплектования и использования документов архивного фонда Республики Татарстан и других архивных документов | B103: 0113 | C103: 08Е0144020 | E103: =SUM(E104:E107) -> 683000 | F103: =SUM(F104:F107) -> 683000
A104: Фонд оплаты труда казенных учреждений и взносы по обязательному социальному страхованию | B104: 0113 | C104: 08Е0144020 | D104: 111 | E104: =SUMIF('11'!$H$18:$H$1925,B104&C104&A104,'11'!$F$18:$F$1925) -> 488000 | F104: =SUMIF('11'!$H$18:$H$1925,B104&C104&A104,'11'!$G$18:$G$1925) -> 488000
A105: Иные выплаты персоналу казенных учреждений, за исключением фонда оплаты труда | B105: 0113 | C105: 08Е0144020 | D105: 112 | E105: =SUMIF('11'!$H$18:$H$1925,B105&C105&A105,'11'!$F$18:$F$1925) -> 0 | F105: =SUMIF('11'!$H$18:$H$1925,B105&C105&A105,'11'!$G$18:$G$1925) -> 0
A106: Взносы по обязательному социальному страхованию на выплаты по оплате труда работников и иные выплаты работникам учреждений | B106: 0113 | C106: 08Е0144020 | D106: 119 | E106: =SUMIF('11'!$H$18:$H$1925,B106&C106&A106,'11'!$F$18:$F$1925) -> 147000 | F106: =SUMIF('11'!$H$18:$H$1925,B106&C106&A106,'11'!$G$18:$G$1925) -> 147000
A107: Прочая закупка товаров, работ и услуг для обеспечения государственных (муниципальных) нужд | B107: 0113 | C107: 08Е0144020 | D107: 244 | E107: =SUMIF('11'!$H$18:$H$1925,B107&C107&A107,'11'!$F$18:$F$1925) -> 48000 | F107: =SUMIF('11'!$H$18:$H$1925,B107&C107&A107,'11'!$G$18:$G$1925) -> 48000
A108: Государственная программа "Экономическое развитие и инновационная экономика Республики Татарстан на 2014 – 2020 годы" | B108: 0113 | C108: 1100000000 | E108: =E109 -> 0 | F108: =F109 -> 0
A109: Подпрограмма "Совершенствование государственной экономической политики в Республике Татарстан на 2014 – 2020 годы" | B109: 0113 | C109: 1110000000 | E109: =E110 -> 0 | F109: 0
A110: Основное мероприятие «Повышение эффективности государственного управления, увеличение активности жителей в общественно-политической жизни Республики Татарстан, создание условий для развития инновационной деятельности и промышленного производства» | B110: 0113 | C110: 1110100000 | E110: 0 | F110: 0
A111: Мероприятия, направленные на развитие системы территориального общественного самоуправления Республики Татарстан | B111: 0113 | C111: 1110125180 | E111: 0 | F111: 0
A112: Субсидии, за исключением субсидий на софинансирование капитальных вложений в объекты государственной (муниципальной) собственности | B112: 0113 | C112: 1110125180 | D112: 521 | E112: =SUMIF('11'!$H$18:$H$1925,B112&C112&A112,'11'!$F$18:$F$1925) -> 0 | F112: =SUMIF('11'!$H$18:$H$1925,B112&C112&A112,'11'!$G$18:$G$1925) -> 0
A113: Муниципальная программа «Управление муниципальным имуществом Кукморского муниципального района Республики Татарстан на 2018 – 2020 годы» | B113: 0113 | C113: 1600000000 | E113: =E114 -> 1413000 | F113: =F114 -> 1413000
A114: Основное мероприятие "Обеспечение эффективного распоряжения и использования государственного имущества и земельных участков" | B114: 0113 | C114: 1600100000 | E114: =E115+E121 -> 1413000 | F114: =F115+F121 -> 1413000
A115: Центральный аппарат | B115: 0113 | C115: 1600102040 | E115: =SUM(E116:E120) -> 1413000 | F115: =SUM(F116:F120) -> 1413000
A116: Фонд оплаты труда государственных (муниципальных) органов и взносы по обязательному социальному страхованию | B116: 0113 | C116: 1600102040 | D116: 121 | E116: =SUMIF('11'!$H$18:$H$1925,B116&C116&A116,'11'!$F$18:$F$1925) -> 999000 | F116: =SUMIF('11'!$H$18:$H$1925,B116&C116&A116,'11'!$G$18:$G$1925) -> 999000
A117: Взносы по обязательному социальному страхованию на выплату денежного содержания и иные выплаты работникам государственных (муниципальных) органов | B117: 0113 | C117: 1600102040 | D117: 129 | E117: =SUMIF('11'!$H$18:$H$1925,B117&C117&A117,'11'!$F$18:$F$1925) -> 302000 | F117: =SUMIF('11'!$H$18:$H$1925,B117&C117&A117,'11'!$G$18:$G$1925) -> 302000
A118: Прочая закупка товаров, работ и услуг для обеспечения государственных (муниципальных) нужд | B118: 0113 | C118: 1600102040 | D118: 244 | E118: =SUMIF('11'!$H$18:$H$1925,B118&C118&A118,'11'!$F$18:$F$1925) -> 112000 | F118: =SUMIF('11'!$H$18:$H$1925,B118&C118&A118,'11'!$G$18:$G$1925) -> 112000
A119: Уплата прочих налогов, сборов и иных платежей | B119: 0113 | C119: 1600102040 | D119: 852 | E119: =SUMIF('11'!$H$18:$H$1925,B119&C119&A119,'11'!$F$18:$F$1925) -> 0 | F119: =SUMIF('11'!$H$18:$H$1925,B119&C119&A119,'11'!$G$18:$G$1925) -> 0
A120: Уплата иных платежей | B120: 0113 | C120: 1600102040 | D120: 853 | E120: =SUMIF('11'!$H$18:$H$1925,B120&C120&A120,'11'!$F$18:$F$1925) -> 0 | F120: =SUMIF('11'!$H$18:$H$1925,B120&C120&A120,'11'!$G$18:$G$1925) -> 0
A121: Уплата налога на имущество организаций и земельного налога | B121: 0113 | C121: 1600102950 | E121: =E122 -> 0 | F121: =F122 -> 0
A122: Уплата налога на имущество организаций и земельного налога | B122: 0113 | C122: 1600102950 | D122: 851 | E122: =SUMIF('11'!$H$18:$H$1925,B122&C122&A122,'11'!$F$18:$F$1925) -> 0 | F122: =SUMIF('11'!$H$18:$H$1925,B122&C122&A122,'11'!$G$18:$G$1925) -> 0
A123: Муниципальная программа «Управление муниципальными финансами Кукморского муниципального района Республики Татарстан на 2018 – 2020 годы» | B123: 0113 | C123: 1800000000 | E123: =E124 -> 12037400 | F123: =F124 -> 12408800
A124: Основное мероприятие "Обеспечение долгосрочной сбалансированности и устойчивости бюджетной системы" | B124: 0113 | C124: 1800100000 | E124: =E125+E127+E129 -> 12037400 | F124: =F125+F127+F129 -> 12408800
A125: Центральный аппарат | B125: 0113 | C125: 1800102040 | E125: =E126 -> 0 | F125: =F126 -> 0
A126: Уплата прочих налогов, сборов и иных платежей | B126: 0113 | C126: 1800102040 | D126: 852 | E126: =SUMIF('11'!$H$18:$H$1925,B126&C126&A126,'11'!$F$18:$F$1925) -> 0 | F126: =SUMIF('11'!$H$18:$H$1925,B126&C126&A126,'11'!$G$18:$G$1925) -> 0
A127: Уплата налога на имущество организаций и земельного налога | B127: 0113 | C127: 1800102950 | E127: =E128 -> 0 | F127: =F128 -> 0
A128: Уплата налога на имущество организаций и земельного налога | B128: 0113 | C128: 1800102950 | D128: 851 | E128: =SUMIF('11'!$H$18:$H$1925,B128&C128&A128,'11'!$F$18:$F$1925) -> 0 | F128: =SUMIF('11'!$H$18:$H$1925,B128&C128&A128,'11'!$G$18:$G$1925) -> 0
A129: Реализация программных мероприятий | B129: 0113 | C129: 1800129900 | E129: =SUM(E130:E134) -> 12037400 | F129: =SUM(F130:F134) -> 12408800
A130: Фонд оплаты труда казенных учреждений и взносы по обязательному социальному страхованию | B130: 0113 | C130: 1800129900 | D130: 111 | E130: =SUMIF('11'!$H$18:$H$1925,B130&C130&A130,'11'!$F$18:$F$1925) -> 8339100 | F130: =SUMIF('11'!$H$18:$H$1925,B130&C130&A130,'11'!$G$18:$G$1925) -> 8649500
A131: Взносы по обязательному социальному страхованию на выплаты по оплате труда работников и иные выплаты работникам учреждений | B131: 0113 | C131: 1800129900 | D131: 119 | E131: =SUMIF('11'!$H$18:$H$1925,B131&C131&A131,'11'!$F$18:$F$1925) -> 2551000 | F131: =SUMIF('11'!$H$18:$H$1925,B131&C131&A131,'11'!$G$18:$G$1925) -> 2612000
A132: Прочая закупка товаров, работ и услуг для обеспечения государственных (муниципальных) нужд | B132: 0113 | C132: 1800129900 | D132: 244 | E132: =SUMIF('11'!$H$18:$H$1925,B132&C132&A132,'11'!$F$18:$F$1925) -> 1147300 | F132: =SUMIF('11'!$H$18:$H$1925,B132&C132&A132,'11'!$G$18:$G$1925) -> 1147300
A133: Уплата прочих налогов, сборов и иных платежей | B133: 0113 | C133: 1800129900 | D133: 852 | E133: =SUMIF('11'!$H$18:$H$1925,B133&C133&A133,'11'!$F$18:$F$1925) -> 0 | F133: =SUMIF('11'!$H$18:$H$1925,B133&C133&A133,'11'!$G$18:$G$1925) -> 0
A134: Уплата иных платежей | B134: 0113 | C134: 1800129900 | D134: 853 | E134: =SUMIF('11'!$H$18:$H$1925,B134&C134&A134,'11'!$F$18:$F$1925) -> 0 | F134: =SUMIF('11'!$H$18:$H$1925,B134&C134&A134,'11'!$G$18:$G$1925) -> 0
A135: Программа по реализации государственной национальной политики в Кукморском муниципальном районе на 2018-2020 годы | B135: 0113 | C135: 2000000000 | E135: =E136 -> 80000 | F135: =F136 -> 80000
A136: Основное мероприятие «Реализация государственной национальной политики в Республике Татарстан, цивилизованное развитие представителей народов, проживающих на территории Республики Татарстан, сохранение межэтнического и межконфессионального мира и согласия, упрочение общероссийской гражданской идентичности (российской нации), успешная социокультурная адаптация и интеграция мигрантов» | B136: 0113 | C136: 2000100000 | E136: =E137 -> 80000 | F136: 80000
A137: Реализация программных мероприятий200 | B137: 0113 | C137: 2000110990 | E137: 80000 | F137: 80000
A138: Прочая закупка товаров, работ и услуг для обеспечения государственных (муниципальных) нужд | B138: 0113 | C138: 2000110990 | D138: 244 | E138: =SUMIF('11'!$H$18:$H$1925,B138&C138&A138,'11'!$F$18:$F$1925) -> 80000 | F138: =SUMIF('11'!$H$18:$H$1925,B138&C138&A138,'11'!$G$18:$G$1925) -> 80000
A139: Государственная программа "Развитие юстиции в Республике Татарстан на 2014 – 2020 годы" | B139: 0113 | C139: 2400000000 | E139: =E140 -> 3300 | F139: =F140 -> 3400
A140: Подпрограмма "Реализация государственной политики в сфере юстиции в Республике Татарстан на 2014 – 2020 годы" | B140: 0113 | C140: 2410100000 | E140: =E141 -> 3300 | F140: 3400
A141: Субвенции на реализацию полномочий по сбору информации от поселений, входящих в МР, необходимой для ведения регистра муниципальных нормативных правовых актов РТ | B141: 0113 | C141: 2410125390 | E141: 3300 | F141: 3400
A142: Прочая закупка товаров, работ и услуг для обеспечения государственных (муниципальных) нужд | B142: 0113 | C142: 2410125390 | D142: 244 | E142: =SUMIF('11'!$H$18:$H$1925,B142&C142&A142,'11'!$F$18:$F$1925) -> 3300 | F142: =SUMIF('11'!$H$18:$H$1925,B142&C142&A142,'11'!$G$18:$G$1925) -> 3400
A143: Муниципальная программа «Реализация антикоррупционной политики в Кукморском муниципальном районе Республики Татарстан на 2018-2020 годы» | B143: 0113 | C143: 2700000000 | E143: =E144 -> 5000 | F143: =F144 -> 5000
A144: Основное мероприятие "Выявление и устранение причин коррупции, противодействие условиям, способствующим ее проявлениям, формирование в обществе нетерпимого отношения к коррупции" | B144: 0113 | C144: 2700100000 | E144: =E145 -> 5000 | F144: 5000
A145: Реализация программных мероприятий270 | B145: 0113 | C145: 2700110990 | E145: 5000 | F145: 5000
A146: Прочая закупка товаров, работ и услуг для обеспечения государственных (муниципальных) нужд | B146: 0113 | C146: 2700110990 | D146: 244 | E146: =SUMIF('11'!$H$18:$H$1925,B146&C146&A146,'11'!$F$18:$F$1925) -> 5000 | F146: =SUMIF('11'!$H$18:$H$1925,B146&C146&A146,'11'!$G$18:$G$1925) -> 5000
A147: Непрограммные направления расходов | B147: 0113 | C147: 9900000000 | E147: =E148+E151+E155+E160+E165+E167+E169+E173+E175+E181 -> 3211900 | F147: =F148+F151+F155+F160+F165+F167+F169+F173+F175+F181 -> 3300620
A148: Центральный аппарат | B148: 0113 | C148: 9900002040 | E148: =SUM(E149:E150) -> 0 | F148: =SUM(F149:F150) -> 0
A149: Уплата прочих налогов, сборов и иных платежей | B149: 0113 | C149: 9900002040 | D149: 852 | E149: =SUMIF('11'!$H$18:$H$1925,B149&C149&A149,'11'!$F$18:$F$1925) -> 0 | F149: =SUMIF('11'!$H$18:$H$1925,B149&C149&A149,'11'!$G$18:$G$1925) -> 0
A150: Уплата иных платежей | B150: 0113 | C150: 9900002040 | D150: 853 | E150: =SUMIF('11'!$H$18:$H$1925,B150&C150&A150,'11'!$F$18:$F$1925) -> 0 | F150: =SUMIF('11'!$H$18:$H$1925,B150&C150&A150,'11'!$G$18:$G$1925) -> 0
A151: Уплата налога на имущество организаций и земельного налога | B151: 0113 | C151: 9900002950 | E151: =SUM(E152:E154) -> 567100 | F151: =SUM(F152:F154) -> 567100
A152: Уплата налога на имущество организаций и земельного налога | B152: 0113 | C152: 9900002950 | D152: 851 | E152: =SUMIF('11'!$H$18:$H$1925,B152&C152&A152,'11'!$F$18:$F$1925) -> 526800 | F152: =SUMIF('11'!$H$18:$H$1925,B152&C152&A152,'11'!$G$18:$G$1925) -> 526800
A153: Уплата прочих налогов, сборов и иных платежей | B153: 0113 | C153: 9900002950 | D153: 852 | E153: =SUMIF('11'!$H$18:$H$1925,B153&C153&A153,'11'!$F$18:$F$1925) -> 40300 | F153: =SUMIF('11'!$H$18:$H$1925,B153&C153&A153,'11'!$G$18:$G$1925) -> 40300
A154: Уплата иных платежей | B154: 0113 | C154: 9900002950 | D154: 853 | E154: =SUMIF('11'!$H$18:$H$1925,B154&C154&A154,'11'!$F$18:$F$1925) -> 0 | F154: =SUMIF('11'!$H$18:$H$1925,B154&C154&A154,'11'!$G$18:$G$1925) -> 0
A155: Реализация государственных полномочий по образованию и организации деятельности комиссий по делам несовершеннолетних и защите их прав | B155: 0113 | C155: 9900025260 | E155: =SUM(E156:E159) -> 547200 | F155: =SUM(F156:F159) -> 567600
A156: Фонд оплаты труда казенных учреждений и взносы по обязательному социальному страхованию | B156: 0113 | C156: 9900025260 | D156: 111 | E156: =SUMIF('11'!$H$18:$H$1925,B156&C156&A156,'11'!$F$18:$F$1925) -> 387600 | F156: =SUMIF('11'!$H$18:$H$1925,B156&C156&A156,'11'!$G$18:$G$1925) -> 404900
A157: Иные выплаты персоналу казенных учреждений, за исключением фонда оплаты труда | B157: 0113 | C157: 9900025260 | D157: 112 | E157: =SUMIF('11'!$H$18:$H$1925,B157&C157&A157,'11'!$F$18:$F$1925) -> 0 | F157: =SUMIF('11'!$H$18:$H$1925,B157&C157&A157,'11'!$G$18:$G$1925) -> 0
A158: Взносы по обязательному социальному страхованию на выплаты по оплате труда работников и иные выплаты работникам учреждений | B158: 0113 | C158: 9900025260 | D158: 119 | E158: =SUMIF('11'!$H$18:$H$1925,B158&C158&A158,'11'!$F$18:$F$1925) -> 118900 | F158: =SUMIF('11'!$H$18:$H$1925,B158&C158&A158,'11'!$G$18:$G$1925) -> 122000
A159: Прочая закупка товаров, работ и услуг для обеспечения государственных (муниципальных) нужд | B159: 0113 | C159: 9900025260 | D159: 244 | E159: =SUMIF('11'!$H$18:$H$1925,B159&C159&A159,'11'!$F$18:$F$1925) -> 40700 | F159: =SUMIF('11'!$H$18:$H$1925,B159&C159&A159,'11'!$G$18:$G$1925) -> 40700
A160: Реализация государственных полномочий по образованию и организации деятельности административных комиссий | B160: 0113 | C160: 9900025270 | E160: =SUM(E161:E164) -> 263100 | F160: =SUM(F161:F164) -> 272500
A161: Фонд оплаты труда казенных учреждений и взносы по обязательному социальному страхованию | B161: 0113 | C161: 9900025270 | D161: 111 | E161: =SUMIF('11'!$H$18:$H$1925,B161&C161&A161,'11'!$F$18:$F$1925) -> 204200 | F161: =SUMIF('11'!$H$18:$H$1925,B161&C161&A161,'11'!$G$18:$G$1925) -> 213600
A162: Иные выплаты персоналу казенных учреждений, за исключением фонда оплаты труда | B162: 0113 | C162: 9900025270 | D162: 112 | E162: =SUMIF('11'!$H$18:$H$1925,B162&C162&A162,'11'!$F$18:$F$1925) -> 0 | F162: =SUMIF('11'!$H$18:$H$1925,B162&C162&A162,'11'!$G$18:$G$1925) -> 0
A163: Взносы по обязательному социальному страхованию на выплаты по оплате труда работников и иные выплаты работникам учреждений | B163: 0113 | C163: 9900025270 | D163: 119 | E163: =SUMIF('11'!$H$18:$H$1925,B163&C163&A163,'11'!$F$18:$F$1925) -> 58900 | F163: =SUMIF('11'!$H$18:$H$1925,B163&C163&A163,'11'!$G$18:$G$1925) -> 58900
A164: Прочая закупка товаров, работ и услуг для обеспечения государственных (муниципальных) нужд | B164: 0113 | C164: 9900025270 | D164: 244 | E164: =SUMIF('11'!$H$18:$H$1925,B164&C164&A164,'11'!$F$18:$F$1925) -> 7.105427358e-12 | F164: =SUMIF('11'!$H$18:$H$1925,B164&C164&A164,'11'!$G$18:$G$1925) -> 7.105427358e-12
A165: Реализация государственных полномочий в области архивного дела | B165: 0113 | C165: 9900025340 | E165: =E166 -> 55900 | F165: =F166 -> 55900
A166: Прочая закупка товаров, работ и услуг для обеспечения государственных (муниципальных) нужд | B166: 0113 | C166: 9900025340 | D166: 244 | E166: =SUMIF('11'!$H$18:$H$1925,B166&C166&A166,'11'!$F$18:$F$1925) -> 55900 | F166: =SUMIF('11'!$H$18:$H$1925,B166&C166&A166,'11'!$G$18:$G$1925) -> 55900
A167: Реализация государственных полномочий по определению перечня должностных лиц, уполномоченных составлять протоколы об административных правонарушениях | B167: 0113 | C167: 9900025350 | E167: =E168 -> 400 | F167: =F168 -> 420
A168: Прочая закупка товаров, работ и услуг для обеспечения государственных (муниципальных) нужд | B168: 0113 | C168: 9900025350 | D168: 244 | E168: =SUMIF('11'!$H$18:$H$1925,B168&C168&A168,'11'!$F$18:$F$1925) -> 400 | F168: =SUMIF('11'!$H$18:$H$1925,B168&C168&A168,'11'!$G$18:$G$1925) -> 420
A169: Реализация государственных полномочий по распоряжению земельными участками, государственная собственность на которые не разграничена | B169: 0113 | C169: 9900025400 | E169: =SUM(E170:E172) -> 7600 | F169: =SUM(F170:F172) -> 7900
A170: Фонд оплаты труда государственных (муниципальных) органов и взносы по обязательному социальному страхованию | B170: 0113 | C170: 9900025400 | D170: 121 | E170: =SUMIF('11'!$H$18:$H$1925,B170&C170&A170,'11'!$F$18:$F$1925) -> 5800 | F170: =SUMIF('11'!$H$18:$H$1925,B170&C170&A170,'11'!$G$18:$G$1925) -> 6200
A171: Взносы по обязательному социальному страхованию на выплату денежного содержания и иные выплаты работникам государственных (муниципальных) органов | B171: 0113 | C171: 9900025400 | D171: 129 | E171: =SUMIF('11'!$H$18:$H$1925,B171&C171&A171,'11'!$F$18:$F$1925) -> 1800 | F171: =SUMIF('11'!$H$18:$H$1925,B171&C171&A171,'11'!$G$18:$G$1925) -> 1700
A172: Прочая закупка товаров, работ и услуг для обеспечения государственных (муниципальных) нужд | B172: 0113 | C172: 9900025400 | D172: 244 | E172: =SUMIF('11'!$H$18:$H$1925,B172&C172&A172,'11'!$F$18:$F$1925) -> 2.220446049e-13 | F172: =SUMIF('11'!$H$18:$H$1925,B172&C172&A172,'11'!$G$18:$G$1925) -> 2.220446049e-13
A173: Проведение Всероссийской сельскохозяйственной переписи в 2016 году за счет средств федерального бюджета | B173: 0113 | C173: 9900053910 | E173: =E174 -> 0 | F173: =F174 -> 0
A174: Прочая закупка товаров, работ и услуг для обеспечения государственных (муниципальных) нужд | B174: 0113 | C174: 9900053910 | D174: 244 | E174: =SUMIF('11'!$H$18:$H$1925,B174&C174&A174,'11'!$F$18:$F$1925) -> 0 | F174: =SUMIF('11'!$H$18:$H$1925,B174&C174&A174,'11'!$G$18:$G$1925) -> 0
A175: Государственная регистрация актов гражданского состояния за счет средств федерального бюджета | B175: 0113 | C175: 9900059300 | E175: =SUM(E176:E180) -> 1770600 | F175: =SUM(F176:F180) -> 1829200
A176: Фонд оплаты труда государственных (муниципальных) органов и взносы по обязательному социальному страхованию | B176: 0113 | C176: 9900059300 | D176: 121 | E176: =SUMIF('11'!$H$18:$H$1925,B176&C176&A176,'11'!$F$18:$F$1925) -> 691200 | F176: =SUMIF('11'!$H$18:$H$1925,B176&C176&A176,'11'!$G$18:$G$1925) -> 739800
A177: Иные выплаты персоналу государственных (муниципальных) органов, за исключением фонда оплаты труда | B177: 0113 | C177: 9900059300 | D177: 122 | E177: =SUMIF('11'!$H$18:$H$1925,B177&C177&A177,'11'!$F$18:$F$1925) -> 18000 | F177: =SUMIF('11'!$H$18:$H$1925,B177&C177&A177,'11'!$G$18:$G$1925) -> 18000
A178: Взносы по обязательному социальному страхованию на выплату денежного содержания и иные выплаты работникам государственных (муниципальных) органов | B178: 0113 | C178: 9900059300 | D178: 129 | E178: =SUMIF('11'!$H$18:$H$1925,B178&C178&A178,'11'!$F$18:$F$1925) -> 213000 | F178: =SUMIF('11'!$H$18:$H$1925,B178&C178&A178,'11'!$G$18:$G$1925) -> 223000
A179: Прочая закупка товаров, работ и услуг для обеспечения государственных (муниципальных) нужд | B179: 0113 | C179: 9900059300 | D179: 244 | E179: =SUMIF('11'!$H$18:$H$1925,B179&C179&A179,'11'!$F$18:$F$1925) -> 848400 | F179: =SUMIF('11'!$H$18:$H$1925,B179&C179&A179,'11'!$G$18:$G$1925) -> 848400
A180: Субвенции | B180: 0113 | C180: 9900059300 | D180: 530 | E180: =SUMIF('11'!$H$18:$H$1925,B180&C180&A180,'11'!$F$18:$F$1925) -> 0 | F180: =SUMIF('11'!$H$18:$H$1925,B180&C180&A180,'11'!$G$18:$G$1925) -> 0
A181: Обеспечение деятельности подведомственных учреждений | B181: 0113 | C181: 9900092990 | E181: =SUM(E182:E185) -> 0 | F181: =SUM(F182:F185) -> 0
A182: Иные выплаты, за исключением фонда оплаты труда казенных учреждений, лицам, привлекаемым согласно законодательству для выполнения отдельных полномочий | B182: 0113 | C182: 9900092990 | D182: 113 | E182: =SUMIF('11'!$H$18:$H$1925,B182&C182&A182,'11'!$F$18:$F$1925) -> 0 | F182: =SUMIF('11'!$H$18:$H$1925,B182&C182&A182,'11'!$G$18:$G$1925) -> 0
A183: Прочая закупка товаров, работ и услуг для обеспечения государственных (муниципальных) нужд | B183: 0113 | C183: 9900092990 | D183: 244 | E183: =SUMIF('11'!$H$18:$H$1925,B183&C183&A183,'11'!$F$18:$F$1925) -> 0 | F183: =SUMIF('11'!$H$18:$H$1925,B183&C183&A183,'11'!$G$18:$G$1925) -> 0
A184: Исполнение судебных актов Российской Федерации и мировых соглашений по возмещению вреда, причиненного в результате незаконных действий (бездействия) органов государственной власти (государственных органов), органов местного самоуправления либо должностных лиц этих органов, а также в результате деятельности казенных учреждений | B184: 0113 | C184: 9900092990 | D184: 831 | E184: 0 | F184: 0
A185: Уплата прочих налогов, сборов и иных платежей | B185: 0113 | C185: 9900092990 | D185: 852 | E185: =SUMIF('11'!$H$18:$H$1925,B185&C185&A185,'11'!$F$18:$F$1925) -> 0 | F185: =SUMIF('11'!$H$18:$H$1925,B185&C185&A185,'11'!$G$18:$G$1925) -> 0
A186: НАЦИОНАЛЬНАЯ ОБОРОНА | B186: 0200 | E186: =E187 -> 2681700 | F186: =F187 -> 2780800
A187: Мобилизационная и вневойсковая подготовка | B187: 0203 | E187: =E188 -> 2681700 | F187: 2780800
A188: Непрограммные направления расходов | B188: 0203 | C188: 9900000000 | E188: 2681700 | F188: 2780800
A189: Осуществление первичного воинского учета на территориях, где отсутствуют военные комиссариаты за счет средств федерального бюджета | B189: 0203 | C189: 9900051180 | E189: 2681700 | F189: 2780800
A190: Субвенции | B190: 0203 | C190: 9900051180 | D190: 530 | E190: =SUMIF('11'!$H$18:$H$1925,B190&C190&A190,'11'!$F$18:$F$1925) -> 2681700 | F190: =SUMIF('11'!$H$18:$H$1925,B190&C190&A190,'11'!$G$18:$G$1925) -> 2780800
A191: НАЦИОНАЛЬНАЯ БЕЗОПАСНОСТЬ И ПРАВООХРАНИТЕЛЬНАЯ ДЕЯТЕЛЬНОСТЬ | B191: 0300 | E191: =E192+E208 -> 2079400 | F191: =F192+F208 -> 2158100
A192: Защита населения и территории от чрезвычайных ситуаций природного и техногенного характера, гражданская оборона | B192: 0309 | E192: =E193+E205 -> 1558100 | F192: =F193+F205 -> 1636800
A193: Муниципальная программа «Защита населения и территорий от чрезвычайных ситуаций, обеспечение пожарной безопасности и безопасности людей на водных объектах в Кукморском муниципальном районе Республики Татарстан на 2018 – 2020 годы» | B193: 0309 | C193: 0700000000 | E193: =E194 -> 1558100 | F193: =F194 -> 1636800
A194: Подпрограмма «Снижение рисков и смягчение последствий чрезвычайных ситуаций природного и техногенного характера в Кукморском муниципальном районе Республики Татарстан на 2018 – 2020 годы» | B194: 0309 | C194: 0720000000 | E194: =E195 -> 1558100 | F194: 1636800
A195: Основное мероприятие "Повышение эффективности управления в области гражданской обороны, предупреждения и ликвидации чрезвычайных ситуаций" | B195: 0309 | C195: 0720100000 | E195: =E196+E198 -> 1558100 | F195: =F196+F198 -> 1636800
A196: Мероприятия по предупреждению и ликвидации последствий чрезвычайных ситуаций и стихийных бедствий | B196: 0309 | C196: 0720107420 | E196: =E197 -> 100000 | F196: =F197 -> 100000
A197: Прочая закупка товаров, работ и услуг для обеспечения государственных (муниципальных) нужд | B197: 0309 | C197: 0720107420 | D197: 244 | E197: =SUMIF('11'!$H$18:$H$1925,B197&C197&A197,'11'!$F$18:$F$1925) -> 100000 | F197: =SUMIF('11'!$H$18:$H$1925,B197&C197&A197,'11'!$G$18:$G$1925) -> 100000
A198: Управление организацией и проведением мероприятий в области гражданской обороны и защиты в чрезвычайных ситуациях | B198: 0309 | C198: 0720122670 | E198: =SUM(E199:E204) -> 1458100 | F198: =SUM(F199:F204) -> 1536800
A199: Фонд оплаты труда казенных учреждений и взносы по обязательному социальному страхованию | B199: 0309 | C199: 0720122670 | D199: 111 | E199: =SUMIF('11'!$H$18:$H$1925,B199&C199&A199,'11'!$F$18:$F$1925) -> 933400 | F199: =SUMIF('11'!$H$18:$H$1925,B199&C199&A199,'11'!$G$18:$G$1925) -> 992600
A200: Взносы по обязательному социальному страхованию на выплаты по оплате труда работников и иные выплаты работникам учреждений | B200: 0309 | C200: 0720122670 | D200: 119 | E200: =SUMIF('11'!$H$18:$H$1925,B200&C200&A200,'11'!$F$18:$F$1925) -> 280300 | F200: =SUMIF('11'!$H$18:$H$1925,B200&C200&A200,'11'!$G$18:$G$1925) -> 299800
A201: Прочая закупка товаров, работ и услуг для обеспечения государственных (муниципальных) нужд | B201: 0309 | C201: 0720122670 | D201: 244 | E201: =SUMIF('11'!$H$18:$H$1925,B201&C201&A201,'11'!$F$18:$F$1925) -> 244400 | F201: =SUMIF('11'!$H$18:$H$1925,B201&C201&A201,'11'!$G$18:$G$1925) -> 244400
A202: Уплата налога на имущество организаций и земельного налога | B202: 0309 | C202: 0720122670 | D202: 851 | E202: =SUMIF('11'!$H$18:$H$1925,B202&C202&A202,'11'!$F$18:$F$1925) -> 0 | F202: =SUMIF('11'!$H$18:$H$1925,B202&C202&A202,'11'!$G$18:$G$1925) -> 0
... 385 more rows

Sheet 10
C1: =дата!$A$2&дата!$C$12 -> Приложение №5
C2: к решению Совета Кукморского
C3: муниципального района
C4: =дата!C1 -> от____марта 2019 г. №______
A6: Ведомственная структура расходов
A7: бюджета Кукморского муниципального района на 2019 год
F8: (рублей)
A9: Наименование | B9: КВСР | C9: Рз, ПР | D9: ЦСР | E9: ВР | F9: Сумма
A11: Итого | F11: 1236277039
A12: Исполнительный комитет Кукморского муниципального района Республики Татарстан | B12: 601 | F12: 84478633.27
A13: Функционирование Правительства Российской Федерации, высших исполнительных органов государственной власти субъектов Российской Федерации, местных администраций | B13: 601 | C13: 0104 | F13: 15302600.84 | G13: =G11-F11 -> -1236277039
A14: Субвенции на реализацию полномочий по сбору информации от поселений, входящих в МР, необходимой для ведения регистра муниципальных нормативных правовых актов РТ | B14: 601 | C14: 0104 | D14: 2410125390 | F14: 4300
A15: Фонд оплаты труда государственных (муниципальных) органов | B15: 601 | C15: 0104 | D15: 2410125390 | E15: 121 | F15: 3300
A16: Взносы по обязательному социальному страхованию на выплаты денежного содержания и иные выплаты работникам государственных (муниципальных) органов | B16: 601 | C16: 0104 | D16: 2410125390 | E16: 129 | F16: 1000
A17: Центральный аппарат | B17: 601 | C17: 0104 | D17: 9900002040 | F17: 15298300.84
A18: Фонд оплаты труда государственных (муниципальных) органов | B18: 601 | C18: 0104 | D18: 9900002040 | E18: 121 | F18: 6395070 | G18: =C18&D18&A18 -> 01049900002040Фонд оплаты труда государственных (муниципальных) органов
A19: Иные выплаты персоналу государственных (муниципальных) органов, за исключением фонда оплаты труда | B19: 601 | C19: 0104 | D19: 9900002040 | E19: 122 | F19: 3220 | G19: =C19&D19&A19 -> 01049900002040Иные выплаты персоналу государственных (муниципальных) органов, за исключением фонда оплаты труда
A20: Взносы по обязательному социальному страхованию на выплаты денежного содержания и иные выплаты работникам государственных (муниципальных) органов | B20: 601 | C20: 0104 | D20: 9900002040 | E20: 129 | F20: 1883530 | G20: 01049900002040Взносы по обязательному социальному страхованию на выплаты денежного содержания и иные выплаты работникам государственных (муниципальных) органов
A21: Прочая закупка товаров, работ и услуг для обеспечения государственных (муниципальных) нужд | B21: 601 | C21: 0104 | D21: 9900002040 | E21: 244 | F21: 6994571.84 | G21: 01049900002040Прочая закупка товаров, работ и услуг для обеспечения государственных (муниципальных) нужд
A22: Уплата прочих налогов, сборов | B22: 601 | C22: 0104 | D22: 9900002040 | E22: 852 | F22: 20909 | G22: 01049900002040Уплата прочих налогов, сборов
A23: Уплата иных платежей | B23: 601 | C23: 0104 | D23: 9900002040 | E23: 853 | F23: 1000
A24: Судебная система | B24: 601 | C24: 0105 | F24: 15900
A25: Составление (изменение) списков кандидатов в присяжные заседатели федеральных судов общей юрисдикции в Российской Федерации за счет средств федерального бюджета | B25: 601 | C25: 0105 | D25: 9900051200 | F25: 15900
A26: Прочая закупка товаров, работ и услуг для обеспечения государственных (муниципальных) нужд | B26: 601 | C26: 0105 | D26: 9900051200 | E26: 244 | F26: 15900
A27: Другие общегосударственные вопросы | B27: 601 | C27: 0113 | F27: 20880788.85
A28: Реализация государственных полномочий в области опеки и попечительства | B28: 601 | C28: 0113 | D28: 0350325330 | F28: 947200
A29: Фонд оплаты труда учреждений | B29: 601 | C29: 0113 | D29: 0350325330 | E29: 111 | F29: 708260
A30: Взносы по обязательному социальному страхованию на выплаты по оплате труда работников и иные выплаты работникам учреждений | B30: 601 | C30: 0113 | D30: 0350325330 | E30: 119 | F30: 213940
A31: Прочая закупка товаров, работ и услуг для обеспечения государственных (муниципальных) нужд | B31: 601 | C31: 0113 | D31: 0350325330 | E31: 244 | F31: 25000
A32: Реализация программных мероприятий063 | B32: 601 | C32: 0113 | D32: 0630110990 | F32: 55000
A33: Иные выплаты, за исключением фонда оплаты труда учреждений, лицам, привлекаемым согласно законодательству для выполнения отдельных полномочий | B33: 601 | C33: 0113 | D33: 0630110990 | E33: 113 | F33: 15000
A34: Прочая закупка товаров, работ и услуг для обеспечения государственных (муниципальных) нужд | B34: 601 | C34: 0113 | D34: 0630110990 | E34: 244 | F34: 40000
A35: Обеспечение хранения, учета, комплектования и использования документов архивного фонда Республики Татарстан и других архивных документов | B35: 601 | C35: 0113 | D35: 08Е0144020 | F35: 793858.08
A36: Фонд оплаты труда учреждений | B36: 601 | C36: 0113 | D36: 08Е0144020 | E36: 111 | F36: 488000 | G36: =C36&D36&A36 -> 011308Е0144020Фонд оплаты труда учреждений
A37: Иные выплаты персоналу учреждений, за исключением фонда оплаты труда | B37: 601 | C37: 0113 | D37: 08Е0144020 | E37: 112 | F37: 808
A38: Взносы по обязательному социальному страхованию на выплаты по оплате труда работников и иные выплаты работникам учреждений | B38: 601 | C38: 0113 | D38: 08Е0144020 | E38: 119 | F38: 147000
A39: Прочая закупка товаров, работ и услуг для обеспечения государственных (муниципальных) нужд | B39: 601 | C39: 0113 | D39: 08Е0144020 | E39: 244 | F39: 158050.08
A40: Реализация программных мероприятий | B40: 601 | C40: 0113 | D40: 1800129900 | F40: 14308600
A41: Фонд оплаты труда учреждений | B41: 601 | C41: 0113 | D41: 1800129900 | E41: 111 | F41: 10756845.52
A42: Взносы по обязательному социальному страхованию на выплаты по оплате труда работников и иные выплаты работникам учреждений | B42: 601 | C42: 0113 | D42: 1800129900 | E42: 119 | F42: 2383000 | G42: =C42&D42&A42 -> 01131800129900Взносы по обязательному социальному страхованию на выплаты по оплате труда работников и иные выплаты работникам учреждений
A43: Прочая закупка товаров, работ и услуг для обеспечения государственных (муниципальных) нужд | B43: 601 | C43: 0113 | D43: 1800129900 | E43: 244 | F43: 1166754.48
A44: Уплата прочих налогов, сборов | B44: 601 | C44: 0113 | D44: 1800129900 | E44: 852 | F44: 2000
A45: Реализация программных мероприятий200 | B45: 601 | C45: 0113 | D45: 2000110990 | F45: 80000
A46: Иные выплаты, за исключением фонда оплаты труда учреждений, лицам, привлекаемым согласно законодательству для выполнения отдельных полномочий | B46: 601 | C46: 0113 | D46: 2000110990 | E46: 113 | F46: 80000
A47: Реализация программных мероприятий270 | B47: 601 | C47: 0113 | D47: 2700110990 | F47: 5000
A48: Иные выплаты, за исключением фонда оплаты труда учреждений, лицам, привлекаемым согласно законодательству для выполнения отдельных полномочий | B48: 601 | C48: 0113 | D48: 2700110990 | E48: 113 | F48: 5000
A49: Уплата налога на имущество организаций и земельного налога | B49: 601 | C49: 0113 | D49: 9900002950 | F49: 320847
A50: Уплата налога на имущество организаций и земельного налога | B50: 601 | C50: 0113 | D50: 9900002950 | E50: 851 | F50: 320847
A51: Реализация государственных полномочий по образованию и организации деятельности комиссий по делам несовершеннолетних и защите их прав | B51: 601 | C51: 0113 | D51: 9900025260 | F51: 715500
A52: Фонд оплаты труда учреждений | B52: 601 | C52: 0113 | D52: 9900025260 | E52: 111 | F52: 518240
A53: Взносы по обязательному социальному страхованию на выплаты по оплате труда работников и иные выплаты работникам учреждений | B53: 601 | C53: 0113 | D53: 9900025260 | E53: 119 | F53: 156560
A54: Прочая закупка товаров, работ и услуг для обеспечения государственных (муниципальных) нужд | B54: 601 | C54: 0113 | D54: 9900025260 | E54: 244 | F54: 40700
A55: Реализация государственных полномочий по образованию и организации деятельности административных комиссий | B55: 601 | C55: 0113 | D55: 9900025270 | F55: 363500 | G55: =C55&D55&A55 -> 01139900025270Реализация государственных полномочий по образованию и организации деятельности административных комиссий
A56: Фонд оплаты труда учреждений | B56: 601 | C56: 0113 | D56: 9900025270 | E56: 111 | F56: 279190
A57: Взносы по обязательному социальному страхованию на выплаты по оплате труда работников и иные выплаты работникам учреждений | B57: 601 | C57: 0113 | D57: 9900025270 | E57: 119 | F57: 84310
A58: Реализация государственных полномочий в области архивного дела | B58: 601 | C58: 0113 | D58: 9900025340 | F58: 66400
A59: Прочая закупка товаров, работ и услуг для обеспечения государственных (муниципальных) нужд | B59: 601 | C59: 0113 | D59: 9900025340 | E59: 244 | F59: 66400
A60: Реализация государственных полномочий по определению перечня должностных лиц, уполномоченных составлять протоколы об административных правонарушениях | B60: 601 | C60: 0113 | D60: 9900025350 | F60: 500
A61: Фонд оплаты труда учреждений | B61: 601 | C61: 0113 | D61: 9900025350 | E61: 111 | F61: 500 | G61: =C61&D61&A61 -> 01139900025350Фонд оплаты труда учреждений
A62: Государственная регистрация актов гражданского состояния за счет средств федерального бюджета | B62: 601 | C62: 0113 | D62: 9900059300 | F62: 2707200 | G62: 01139900059300Государственная регистрация актов гражданского состояния за счет средств федерального бюджета
A63: Фонд оплаты труда государственных (муниципальных) органов | B63: 601 | C63: 0113 | D63: 9900059300 | E63: 121 | F63: 900000
A64: Иные выплаты персоналу государственных (муниципальных) органов, за исключением фонда оплаты труда | B64: 601 | C64: 0113 | D64: 9900059300 | E64: 122 | F64: 20000
A65: Взносы по обязательному социальному страхованию на выплаты денежного содержания и иные выплаты работникам государственных (муниципальных) органов | B65: 601 | C65: 0113 | D65: 9900059300 | E65: 129 | F65: 272000 | G65: =C65&D65&A65 -> 01139900059300Взносы по обязательному социальному страхованию на выплаты денежного содержания и иные выплаты работникам государственных (муниципальных) органов
A66: Прочая закупка товаров, работ и услуг для обеспечения государственных (муниципальных) нужд | B66: 601 | C66: 0113 | D66: 9900059300 | E66: 244 | F66: 1515200 | G66: 01139900059300Прочая закупка товаров, работ и услуг для обеспечения государственных (муниципальных) нужд
A67: Обеспечение деятельности подведомственных учреждений | B67: 601 | C67: 0113 | D67: 9900092990 | F67: 469775.91 | G67: 01139900092990Обеспечение деятельности подведомственных учреждений
A68: Прочая закупка товаров, работ и услуг для обеспечения государственных (муниципальных) нужд | B68: 601 | C68: 0113 | D68: 9900092990 | E68: 244 | F68: 219775.91 | G68: 01139900092990Прочая закупка товаров, работ и услуг для обеспечения государственных (муниципальных) нужд
A69: Исполнение судебных актов Российской Федерации и мировых соглашений по возмещению причиненного вреда | B69: 601 | C69: 0113 | D69: 9900092990 | E69: 831 | F69: 250000
A70: Диспансеризация муниципальных служащих | B70: 601 | C70: 0113 | D70: 9900097071 | F70: 47407.86
A71: Прочая закупка товаров, работ и услуг для обеспечения государственных (муниципальных) нужд | B71: 601 | C71: 0113 | D71: 9900097071 | E71: 244 | F71: 47407.86
A72: Защита населения и территории от чрезвычайных ситуаций природного и техногенного характера, гражданская оборона | B72: 601 | C72: 0309 | F72: 1621600
A73: Мероприятия по предупреждению и ликвидации последствий чрезвычайных ситуаций и стихийных бедствий | B73: 601 | C73: 0309 | D73: 0700007420 | F73: 100000
A74: Прочая закупка товаров, работ и услуг для обеспечения государственных (муниципальных) нужд | B74: 601 | C74: 0309 | D74: 0700007420 | E74: 244 | F74: 100000
A75: Управление организацией и проведением мероприятий в области гражданской обороны и защиты в чрезвычайных ситуациях | B75: 601 | C75: 0309 | D75: 0700022670 | F75: 1487325.17
A76: Фонд оплаты труда учреждений | B76: 601 | C76: 0309 | D76: 0700022670 | E76: 111 | F76: 845200
A77: Взносы по обязательному социальному страхованию на выплаты по оплате труда работников и иные выплаты работникам учреждений | B77: 601 | C77: 0309 | D77: 0700022670 | E77: 119 | F77: 258525.17
A78: Прочая закупка товаров, работ и услуг для обеспечения государственных (муниципальных) нужд | B78: 601 | C78: 0309 | D78: 0700022670 | E78: 244 | F78: 383600
A79: Управление организацией и проведением мероприятий в области гражданской обороны и защиты в чрезвычайных ситуациях | B79: 601 | C79: 0309 | D79: 0720122670 | F79: 34274.83
A80: Фонд оплаты труда учреждений | B80: 601 | C80: 0309 | D80: 0720122670 | E80: 111 | F80: 28800
A81: Взносы по обязательному социальному страхованию на выплаты по оплате труда работников и иные выплаты работникам учреждений | B81: 601 | C81: 0309 | D81: 0720122670 | E81: 119 | F81: 5474.83
A82: Другие вопросы в области национальной безопасности и правоохранительной деятельности | B82: 601 | C82: 0314 | F82: 521300
A83: Реализация программных мероприятий | B83: 601 | C83: 0314 | D83: 0610110990 | F83: 521300 | G83: =C83&D83&A83 -> 03140610110990Реализация программных мероприятий
A84: Фонд оплаты труда учреждений | B84: 601 | C84: 0314 | D84: 0610110990 | E84: 111 | F84: 334000 | G84: 03140610110990Фонд оплаты труда учреждений
A85: Взносы по обязательному социальному страхованию на выплаты по оплате труда работников и иные выплаты работникам учреждений | B85: 601 | C85: 0314 | D85: 0610110990 | E85: 119 | F85: 101000
A86: Прочая закупка товаров, работ и услуг для обеспечения государственных (муниципальных) нужд | B86: 601 | C86: 0314 | D86: 0610110990 | E86: 244 | F86: 86300
A87: Сельское хозяйство и рыболовство | B87: 601 | C87: 0405 | F87: 1967100
A88: Субвенции на реализацию госполномочий в сфере организации проведения мероприятий по предупреждению и ликвидации болезней животных и их лечению | B88: 601 | C88: 0405 | D88: 1420925360 | F88: 1967100
A89: Прочая закупка товаров, работ и услуг для обеспечения государственных (муниципальных) нужд | B89: 601 | C89: 0405 | D89: 1420925360 | E89: 244 | F89: 1967100
A90: Дорожное хозяйство (дорожные фонды) | B90: 601 | C90: 0409 | F90: 28895916.23 | G90: =C90&D90&A90 -> 0409Дорожное хозяйство (дорожные фонды)
A91: Строительство, содержание и ремонт автомобильных дорог и инженерных сооружений на них в границах городских округов и поселений в рамках благоустройства | B91: 601 | C91: 0409 | D91: Б100078020 | F91: 4072190
A92: Прочая закупка товаров, работ и услуг для обеспечения государственных (муниципальных) нужд | B92: 601 | C92: 0409 | D92: Б100078020 | E92: 244 | F92: 4072190
A93: Строительство, реконструкция и ремонт (текущий и капитальный) автомобильных дорог за счет муниципального Дорожного фонда | B93: 601 | C93: 0409 | D93: Д100003650 | F93: 24823726.23
A94: Прочая закупка товаров, работ и услуг для обеспечения государственных (муниципальных) нужд | B94: 601 | C94: 0409 | D94: Д100003650 | E94: 244 | F94: 24823726.23
A95: Жилищное хозяйство | B95: 601 | C95: 0501 | F95: 11324227.35 | G95: =C95&D95&A95 -> 0501Жилищное хозяйство
A96: Обеспечение мероприятий по капитальному ремонту многоквартирных домов и переселению граждан из аварийного жилищного фонда за счет средств бюджета Республики Татарстан и бюджета Кукморского муниципального района | B96: 601 | C96: 0501 | D96: 0450196010 | F96: 4388000
A97: Субсидии (гранты в форме субсидий) на финансовое обеспечение затрат в связи с производством (реализацией) товаров, выполнением работ, оказанием услуг, порядком (правилами) предоставления которых установлено требование о последующем подтверждении их использования в соответствии с условиями и (или) целями предоставления | B97: 601 | C97: 0501 | D97: 0450196010 | E97: 632 | F97: 4388000 | G97: 05010450196010Субсидии (гранты в форме субсидий) на финансовое обеспечение затрат в связи с производством (реализацией) товаров, выполнением работ, оказанием услуг, порядком (правилами) предоставления которых установлено требование о последующем подтверждении их использования в соответствии с условиями и (или) целями предоставления
A98: Мероприятия в области жилищно-коммунального хозяйства | B98: 601 | C98: 0501 | D98: 0480476040 | F98: 6936227.35
A99: Прочая закупка товаров, работ и услуг для обеспечения государственных (муниципальных) нужд | B99: 601 | C99: 0501 | D99: 0480476040 | E99: 244 | F99: 6936227.35
A100: Благоустройство | B100: 601 | C100: 0503 | F100: 2655000
A101: Организация и содержаение мест захоронения | B101: 601 | C101: 0503 | D101: 0490278040 | F101: 1155000
A102: Прочая закупка товаров, работ и услуг для обеспечения государственных (муниципальных) нужд | B102: 601 | C102: 0503 | D102: 0490278040 | E102: 244 | F102: 1155000
A103: Реализация программных мероприятий062 | B103: 601 | C103: 0503 | D103: 0620178020 | F103: 1500000
A104: Прочая закупка товаров, работ и услуг для обеспечения государственных (муниципальных) нужд | B104: 601 | C104: 0503 | D104: 0620178020 | E104: 244 | F104: 1500000
A105: Санитарно-эпидемиологическое благополучие | B105: 601 | C105: 0907 | F105: 779000 | G105: =C105&D105&A105 -> 0907Санитарно-эпидемиологическое благополучие
A106: Реализация государственных полномочий по организации осуществления мероприятий по проведению дезинфекции, дезинсекции и дератизации, санитарно-противоэпидемических (профилактических) мероприятий, проводимых с применением лабораторных методов исследования, в очагах инфекционных заболеваний, а также на территориях и в помещениях, где имеются и сохраняются условия для возникновения или распространения инфекционных заболеваний | B106: 601 | C106: 0907 | D106: 0110202110 | F106: 779000
A107: Прочая закупка товаров, работ и услуг для обеспечения государственных (муниципальных) нужд | B107: 601 | C107: 0907 | D107: 0110202110 | E107: 244 | F107: 779000 | G107: =C107&D107&A107 -> 09070110202110Прочая закупка товаров, работ и услуг для обеспечения государственных (муниципальных) нужд
A108: Охрана семьи и детства | B108: 601 | C108: 1004 | F108: 515200
A109: Мероприятия в области социальной политики | B109: 601 | C109: 1004 | D109: 0310105410 | F109: 515200
A110: Иные выплаты, за исключением фонда оплаты труда учреждений, лицам, привлекаемым согласно законодательству для выполнения отдельных полномочий | B110: 601 | C110: 1004 | D110: 0310105410 | E110: 113 | F110: 515200
A111: Кукморский районный Совет | B111: 602 | F111: 11717945.4
A112: Функционирование высшего должностного лица субъекта Российской Федерации и муниципального образования | B112: 602 | C112: 0102 | F112: 1601000
A113: Глава муниципального района | B113: 602 | C113: 0102 | D113: 9900002030 | F113: 1601000
A114: Фонд оплаты труда государственных (муниципальных) органов | B114: 602 | C114: 0102 | D114: 9900002030 | E114: 121 | F114: 1230000 | G114: =C114&D114&A114 -> 01029900002030Фонд оплаты труда государственных (муниципальных) органов
A115: Взносы по обязательному социальному страхованию на выплаты денежного содержания и иные выплаты работникам государственных (муниципальных) органов | B115: 602 | C115: 0102 | D115: 9900002030 | E115: 129 | F115: 371000 | G115: 01029900002030Взносы по обязательному социальному страхованию на выплаты денежного содержания и иные выплаты работникам государственных (муниципальных) органов
A116: Функционирование законодательных (представительных) органов государственной власти и представительных органов муниципальных образований | B116: 602 | C116: 0103 | F116: 9135349.34 | G116: 0103Функционирование законодательных (представительных) органов государственной власти и представительных органов муниципальных образований
A117: Центральный аппарат | B117: 602 | C117: 0103 | D117: 9900002040 | F117: 9135349.34 | G117: 01039900002040Центральный аппарат
A118: Фонд оплаты труда государственных (муниципальных) органов | B118: 602 | C118: 0103 | D118: 9900002040 | E118: 121 | F118: 4021000
A119: Иные выплаты персоналу государственных (муниципальных) органов, за исключением фонда оплаты труда | B119: 602 | C119: 0103 | D119: 9900002040 | E119: 122 | F119: 1400
A120: Взносы по обязательному социальному страхованию на выплаты денежного содержания и иные выплаты работникам государственных (муниципальных) органов | B120: 602 | C120: 0103 | D120: 9900002040 | E120: 129 | F120: 963800
A121: Прочая закупка товаров, работ и услуг для обеспечения государственных (муниципальных) нужд | B121: 602 | C121: 0103 | D121: 9900002040 | E121: 244 | F121: 4112637.34
A122: Уплата прочих налогов, сборов | B122: 602 | C122: 0103 | D122: 9900002040 | E122: 852 | F122: 36512
A123: Другие общегосударственные вопросы | B123: 602 | C123: 0113 | F123: 981596.06
A124: Уплата налога на имущество организаций и земельного налога | B124: 602 | C124: 0113 | D124: 9900002950 | F124: 176900
A125: Уплата налога на имущество организаций и земельного налога | B125: 602 | C125: 0113 | D125: 9900002950 | E125: 851 | F125: 176900
A126: Обеспечение деятельности подведомственных учреждений | B126: 602 | C126: 0113 | D126: 9900092990 | F126: 282820
A127: Прочая закупка товаров, работ и услуг для обеспечения государственных (муниципальных) нужд | B127: 602 | C127: 0113 | D127: 9900092990 | E127: 244 | F127: 282820
A128: Диспансеризация муниципальных служащих | B128: 602 | C128: 0113 | D128: 9900097071 | F128: 521876.06
A129: Прочая закупка товаров, работ и услуг для обеспечения государственных (муниципальных) нужд | B129: 602 | C129: 0113 | D129: 9900097071 | E129: 244 | F129: 521876.06 | G129: =C129&D129&A129 -> 01139900097071Прочая закупка товаров, работ и услуг для обеспечения государственных (муниципальных) нужд
A130: Контрольно-счетная палата Кукморского муниципального района | B130: 603 | F130: 616000 | G130: Контрольно-счетная палата Кукморского муниципального района
A131: Обеспечение деятельности финансовых, налоговых и таможенных органов и органов финансового (финансово-бюджетного) надзора | B131: 603 | C131: 0106 | F131: 616000 | G131: 0106Обеспечение деятельности финансовых, налоговых и таможенных органов и органов финансового (финансово-бюджетного) надзора
A132: Центральный аппарат | B132: 603 | C132: 0106 | D132: 9900002040 | F132: 616000
A133: Фонд оплаты труда государственных (муниципальных) органов | B133: 603 | C133: 0106 | D133: 9900002040 | E133: 121 | F133: 453000
A134: Иные выплаты персоналу государственных (муниципальных) органов, за исключением фонда оплаты труда | B134: 603 | C134: 0106 | D134: 9900002040 | E134: 122 | F134: 16000
A135: Взносы по обязательному социальному страхованию на выплаты денежного содержания и иные выплаты работникам государственных (муниципальных) органов | B135: 603 | C135: 0106 | D135: 9900002040 | E135: 129 | F135: 137000
A136: Прочая закупка товаров, работ и услуг для обеспечения государственных (муниципальных) нужд | B136: 603 | C136: 0106 | D136: 9900002040 | E136: 244 | F136: 10000
A137: Финансово-бюджетная палата Кукморского муниципального района | B137: 605 | F137: 41684529
A138: Обеспечение деятельности финансовых, налоговых и таможенных органов и органов финансового (финансово-бюджетного) надзора | B138: 605 | C138: 0106 | F138: 4185260
A139: Центральный аппарат | B139: 605 | C139: 0106 | D139: 1800102040 | F139: 4185260
A140: Фонд оплаты труда государственных (муниципальных) органов | B140: 605 | C140: 0106 | D140: 1800102040 | E140: 121 | F140: 2751000
A141: Взносы по обязательному социальному страхованию на выплаты денежного содержания и иные выплаты работникам государственных (муниципальных) органов | B141: 605 | C141: 0106 | D141: 1800102040 | E141: 129 | F141: 828700
A142: Прочая закупка товаров, работ и услуг для обеспечения государственных (муниципальных) нужд | B142: 605 | C142: 0106 | D142: 1800102040 | E142: 244 | F142: 605560
A143: Другие общегосударственные вопросы | B143: 605 | C143: 0113 | F143: 2300
A144: Центральный аппарат | B144: 605 | C144: 0113 | D144: 1800102040 | F144: 2300
A145: Уплата прочих налогов, сборов | B145: 605 | C145: 0113 | D145: 1800102040 | E145: 852 | F145: 2300 | G145: =C145&D145&A145 -> 01131800102040Уплата прочих налогов, сборов
A146: Мобилизационная и вневойсковая подготовка | B146: 605 | C146: 0203 | F146: 2764900
A147: Осуществление первичного воинского учета на территориях, где отсутствуют военные комиссариаты за счет средств федерального бюджета | B147: 605 | C147: 0203 | D147: 9900051180 | F147: 2764900
A148: Субвенции | B148: 605 | C148: 0203 | D148: 9900051180 | E148: 530 | F148: 2764900
A149: Водное хозяйство | B149: 605 | C149: 0406 | F149: 223900
A150: Расходы на содержание и ремонт гидротехнических сооружений | B150: 605 | C150: 0406 | D150: 9900090430 | F150: 223900
A151: Прочая закупка товаров, работ и услуг для обеспечения государственных (муниципальных) нужд | B151: 605 | C151: 0406 | D151: 9900090430 | E151: 244 | F151: 223900
A152: Охрана объектов растительного и животного мира и среды их обитания | B152: 605 | C152: 0603 | F152: 1058000
A153: Мероприятия по регулированию качества окружающей среды | B153: 605 | C153: 0603 | D153: 0910119100 | F153: 1058000
A154: Прочая закупка товаров, работ и услуг для обеспечения государственных (муниципальных) нужд | B154: 605 | C154: 0603 | D154: 0910119100 | E154: 244 | F154: 1058000
A155: Дотации на выравнивание бюджетной обеспеченности субъектов Российской Федерации и муниципальных образований | B155: 605 | C155: 1401 | F155: 29654200
A156: Предоставление субсидий бюджетам муниципальных районов на выравнивание бюджетной обеспеченности и предоставление иных межбюджетных трансфертов бюджетам поселений, входящих в состав муниципального района | B156: 605 | C156: 1401 | D156: 9900025040 | F156: 3128900
A157: Дотации на выравнивание бюджетной обеспеченности | B157: 605 | C157: 1401 | D157: 9900025040 | E157: 511 | F157: 3128900
A158: Предоставление субсидий бюджетам муниципальных районов на выравнивание бюджетной обеспеченности и предоставление иных межбюджетных трансфертов бюджетам поселений, входящих в состав муниципального района | B158: 605 | C158: 1401 | D158: 9900080040 | F158: 24217000
A159: Дотации на выравнивание бюджетной обеспеченности | B159: 605 | C159: 1401 | D159: 9900080040 | E159: 511 | F159: 24217000
A160: Предоставление субвенций бюджетам муниципальных районов на осуществление государственных полномочий Республики Татарстан по расчету и предоставлению дотаций бюджетам городских, сельских поселений за счет средств бюджета Республики Татарстан | B160: 605 | C160: 1401 | D160: 9900080060 | F160: 2308300
A161: Дотации на выравнивание бюджетной обеспеченности | B161: 605 | C161: 1401 | D161: 9900080060 | E161: 511 | F161: 2308300
A162: Иные дотации | B162: 605 | C162: 1402 | F162: 2257600
A163: Предоставление субсидий бюджетам муниципальных районов на выравнивание бюджетной обеспеченности и предоставление иных межбюджетных трансфертов бюджетам поселений, входящих в состав муниципального района | B163: 605 | C163: 1402 | D163: 9900080040 | F163: 2257600
A164: Иные дотации | B164: 605 | C164: 1402 | D164: 9900080040 | E164: 512 | F164: 2257600 | G164: =C164&D164&A164 -> 14029900080040Иные дотации
A165: Прочие межбюджетные трансферты общего характера | B165: 605 | C165: 1403 | F165: 1538369
A166: Межбюджетные трансферты, передаваемые бюджетам муниципальных образований для компенсации дополнительных расходов, возникших в результате решений, принятых органами власти другого уровня | B166: 605 | C166: 1403 | D166: 9900025151 | F166: 1538369 | G166: =C166&D166&A166 -> 14039900025151Межбюджетные трансферты, передаваемые бюджетам муниципальных образований для компенсации дополнительных расходов, возникших в результате решений, принятых органами власти другого уровня
A167: Иные межбюджетные трансферты | B167: 605 | C167: 1403 | D167: 9900025151 | E167: 540 | F167: 1538369
A168: Палата имущественных и земельных отношений Кукморского муниципального района | B168: 606 | F168: 2323500
A169: Другие общегосударственные вопросы | B169: 606 | C169: 0113 | F169: 2323500
A170: Центральный аппарат | B170: 606 | C170: 0113 | D170: 1600102040 | F170: 1960100
A171: Фонд оплаты труда государственных (муниципальных) органов | B171: 606 | C171: 0113 | D171: 1600102040 | E171: 121 | F171: 999000
A172: Взносы по обязательному социальному страхованию на выплаты денежного содержания и иные выплаты работникам государственных (муниципальных) органов | B172: 606 | C172: 0113 | D172: 1600102040 | E172: 129 | F172: 302000
A173: Прочая закупка товаров, работ и услуг для обеспечения государственных (муниципальных) нужд | B173: 606 | C173: 0113 | D173: 1600102040 | E173: 244 | F173: 626100
A174: Уплата прочих налогов, сборов | B174: 606 | C174: 0113 | D174: 1600102040 | E174: 852 | F174: 33000
A175: Уплата налога на имущество организаций и земельного налога | B175: 606 | C175: 0113 | D175: 1600102950 | F175: 2000
A176: Уплата налога на имущество организаций и земельного налога | B176: 606 | C176: 0113 | D176: 1600102950 | E176: 851 | F176: 2000
A177: Реализация программных мероприятий | B177: 606 | C177: 0113 | D177: 1800129900 | F177: 260000
A178: Фонд оплаты труда учреждений | B178: 606 | C178: 0113 | D178: 1800129900 | E178: 111 | F178: 200000
A179: Взносы по обязательному социальному страхованию на выплаты по оплате труда работников и иные выплаты работникам учреждений | B179: 606 | C179: 0113 | D179: 1800129900 | E179: 119 | F179: 60000
A180: Реализация государственных полномочий по распоряжению земельными участками, государственная собственность на которые не разграничена | B180: 606 | C180: 0113 | D180: 9900025400 | F180: 1400
A181: Фонд оплаты труда государственных (муниципальных) органов | B181: 606 | C181: 0113 | D181: 9900025400 | E181: 121 | F181: 1080
A182: Взносы по обязательному социальному страхованию на выплаты денежного содержания и иные выплаты работникам государственных (муниципальных) органов | B182: 606 | C182: 0113 | D182: 9900025400 | E182: 129 | F182: 320
A183: Обеспечение деятельности подведомственных учреждений | B183: 606 | C183: 0113 | D183: 9900092990 | F183: 100000
A184: Прочая закупка товаров, работ и услуг для обеспечения государственных (муниципальных) нужд | B184: 606 | C184: 0113 | D184: 9900092990 | E184: 244 | F184: 100000
A185: Управление образования Кукморского муниципального района | B185: 611 | F185: 864303527.6
A186: Функционирование Правительства Российской Федерации, высших исполнительных органов государственной власти субъектов Российской Федерации, местных администраций | B186: 611 | C186: 0104 | F186: 1867200
A187: Реализация государственных полномочий в области образования (аппарат управления) | B187: 611 | C187: 0104 | D187: 0220825302 | F187: 341400
A188: Фонд оплаты труда государственных (муниципальных) органов | B188: 611 | C188: 0104 | D188: 0220825302 | E188: 121 | F188: 262200
A189: Взносы по обязательному социальному страхованию на выплаты денежного содержания и иные выплаты работникам государственных (муниципальных) органов | B189: 611 | C189: 0104 | D189: 0220825302 | E189: 129 | F189: 79200
A190: Центральный аппарат | B190: 611 | C190: 0104 | D190: 9900002040 | F190: 1525800 | G190: =C190&D190&A190 -> 01049900002040Центральный аппарат
A191: Фонд оплаты труда государственных (муниципальных) органов | B191: 611 | C191: 0104 | D191: 9900002040 | E191: 121 | F191: 1115800
A192: Взносы по обязательному социальному страхованию на выплаты денежного содержания и иные выплаты работникам государственных (муниципальных) органов | B192: 611 | C192: 0104 | D192: 9900002040 | E192: 129 | F192: 337000
A193: Прочая закупка товаров, работ и услуг для обеспечения государственных (муниципальных) нужд | B193: 611 | C193: 0104 | D193: 9900002040 | E193: 244 | F193: 67310
A194: Уплата прочих налогов, сборов | B194: 611 | C194: 0104 | D194: 9900002040 | E194: 852 | F194: 5690
A195: Другие общегосударственные вопросы | B195: 611 | C195: 0113 | F195: 41400
A196: Уплата налога на имущество организаций и земельного налога | B196: 611 | C196: 0113 | D196: 9900002950 | F196: 41400
A197: Уплата налога на имущество организаций и земельного налога | B197: 611 | C197: 0113 | D197: 9900002950 | E197: 851 | F197: 41400
A198: Дошкольное образование | B198: 611 | C198: 0701 | F198: 208945989.1
A199: Реализация государственных полномочий на обеспечение государственных гарантий реализации прав на получение общедоступного и бесплатного дошкольного образования в муниципальных дошкольных образовательных организациях | B199: 611 | C199: 0701 | D199: 0210125370 | F199: 83576801
A200: Субсидии бюджетным учреждениям на финансовое обеспечение государственного (муниципального) задания на оказание государственных (муниципальных) услуг (выполнение работ) | B200: 611 | C200: 0701 | D200: 0210125370 | E200: 611 | F200: 83576801
A201: Развитие дошкольных образовательных учреждений | B201: 611 | C201: 0701 | D201: 0210342000 | F201: 124529188.1
A202: Субсидии бюджетным учреждениям на финансовое обеспечение государственного (муниципального) задания на оказание государственных (муниципальных) услуг (выполнение работ) | B202: 611 | C202: 0701 | D202: 0210342000 | E202: 611 | F202: 119237061.5
... 116 more rows

Sheet 11 (hidden)
C1: =дата!$A$2&дата!$D$13 -> Приложение №11
C2: к решению Кукморского
C3: районного Совета
C4: =дата!D1 -> от08 декабря 2017 г. №131
A6: Ведомственная структура расходов
A7: бюджета Кукморского муниципального района на плановый период 2019 и 2020 годов
G8: (рублей) | H8: =SUBTOTAL(9,F13:F14010) -> 8937702720
A9: Наименование | B9: КВСР | C9: Рз, ПР | D9: ЦСР | E9: ВР | F9: Сумма
F10: 2019 год | G10: 2020 год | H10: =F11-H11 -> 1000 | I10: =G11-I11 -> 999.9999995
A11: Итого | F11: =F13+F206+F236+F250+F362+F392+F555+F664 -> 1139594430 | G11: =G13+G206+G236+G250+G362+G392+G555+G664 -> 1151083390 | H11: =свод19!$I$13*1000 -> 1139593430 | I11: =свод20!$I$13*1000 -> 1151082390
A13: Исполнительный комитет Кукморского муниципального района Республики Татарстан | B13: 601 | F13: =F14+F118+F140+F158+F184+F191+F198 -> 90075740 | G13: =G14+G118+G140+G158+G184+G191+G198 -> 93380000 | H13: =H11-F11 -> -1000 | I13: =I11-G11 -> -999.9999995
A14: ОБЩЕГОСУДАРСТВЕННЫЕ ВОПРОСЫ | B14: 601 | C14: 0100 | F14: =F15+F23+F31+F27 -> 33624060 | G14: =G15+G23+G31+G27 -> 35068880
A15: Функционирование Правительства Российской Федерации, высших исполнительных органов государственной власти субъектов Российской Федерации, местных администраций | B15: 601 | C15: 0104 | F15: =F16 -> 11184860 | G15: =G16 -> 12132860
A16: Непрограммные направления расходов | B16: 601 | C16: 0104 | D16: 9900000000 | F16: =F17 -> 11184860 | G16: =G17 -> 12132860
A17: Центральный аппарат | B17: 601 | C17: 0104 | D17: 9900002040 | F17: =SUM(F18:F22) -> 11184860 | G17: =SUM(G18:G22) -> 12132860
A18: Фонд оплаты труда государственных (муниципальных) органов и взносы по обязательному социальному страхованию | B18: 601 | C18: 0104 | D18: 9900002040 | E18: 121 | F18: =SUMIF(свод19!$N$15:$N$1600,B18&C18&D18&A18,свод19!$I$15:$I$1600)*1000 -> 6932850 | G18: =SUMIF(свод20!$N$15:$N$1600,B18&C18&D18&A18,свод20!$I$15:$I$1600)*1000 -> 7714850 | H18: =C18&D18&A18 -> 01049900002040Фонд оплаты труда государственных (муниципальных) органов и взносы по обязательному социальному страхованию
A19: Иные выплаты персоналу государственных (муниципальных) органов, за исключением фонда оплаты труда | B19: 601 | C19: 0104 | D19: 9900002040 | E19: 122 | F19: =SUMIF(свод19!$N$15:$N$1600,B19&C19&D19&A19,свод19!$I$15:$I$1600)*1000 -> 0 | G19: =SUMIF(свод20!$N$15:$N$1600,B19&C19&D19&A19,свод20!$I$15:$I$1600)*1000 -> 0 | H19: =C19&D19&A19 -> 01049900002040Иные выплаты персоналу государственных (муниципальных) органов, за исключением фонда оплаты труда
A20: Взносы по обязательному социальному страхованию на выплату денежного содержания и иные выплаты работникам государственных (муниципальных) органов | B20: 601 | C20: 0104 | D20: 9900002040 | E20: 129 | F20: =SUMIF(свод19!$N$15:$N$1600,B20&C20&D20&A20,свод19!$I$15:$I$1600)*1000 -> 2113010 | G20: =SUMIF(свод20!$N$15:$N$1600,B20&C20&D20&A20,свод20!$I$15:$I$1600)*1000 -> 2279010 | H20: 01049900002040Взносы по обязательному социальному страхованию на выплату денежного содержания и иные выплаты работникам государственных (муниципальных) органов
A21: Прочая закупка товаров, работ и услуг для обеспечения государственных (муниципальных) нужд | B21: 601 | C21: 0104 | D21: 9900002040 | E21: 244 | F21: =SUMIF(свод19!$N$15:$N$1600,B21&C21&D21&A21,свод19!$I$15:$I$1600)*1000 -> 2139000 | G21: =SUMIF(свод20!$N$15:$N$1600,B21&C21&D21&A21,свод20!$I$15:$I$1600)*1000 -> 2139000 | H21: 01049900002040Прочая закупка товаров, работ и услуг для обеспечения государственных (муниципальных) нужд
A22: Уплата прочих налогов, сборов и иных платежей | B22: 601 | C22: 0104 | D22: 9900002040 | E22: 852 | F22: =SUMIF(свод19!$N$15:$N$1600,B22&C22&D22&A22,свод19!$I$15:$I$1600)*1000 -> 0 | G22: =SUMIF(свод20!$N$15:$N$1600,B22&C22&D22&A22,свод20!$I$15:$I$1600)*1000 -> 0 | H22: 01049900002040Уплата прочих налогов, сборов и иных платежей
A23: Судебная система | B23: 601 | C23: 0105 | F23: =F24 -> 13000 | G23: =G24 -> 21000
A24: Непрограммные направления расходов | B24: 601 | C24: 0105 | D24: 9900000000 | F24: =F25 -> 13000 | G24: 21000
A25: Составление (изменение) списков кандидатов в присяжные заседатели федеральных судов общей юрисдикции в Российской Федерации за счет средств федерального бюджета | B25: 601 | C25: 0105 | D25: 9900051200 | F25: 13000 | G25: 21000
A26: Прочая закупка товаров, работ и услуг для обеспечения государственных (муниципальных) нужд | B26: 601 | C26: 0105 | D26: 9900051200 | E26: 244 | F26: =SUMIF(свод19!$N$15:$N$1600,B26&C26&D26&A26,свод19!$I$15:$I$1600)*1000 -> 13000 | G26: =SUMIF(свод20!$N$15:$N$1600,B26&C26&D26&A26,свод20!$I$15:$I$1600)*1000 -> 21000 | H26: =C26&D26&A26 -> 01059900051200Прочая закупка товаров, работ и услуг для обеспечения государственных (муниципальных) нужд
A27: Резервные фонды | B27: 601 | C27: 0111 | F27: =F28 -> 5845700 | G27: 5845700
A28: Непрограммные направления расходов | B28: 601 | C28: 0111 | D28: 9900000000 | F28: 5845700 | G28: 5845700
A29: Резервные фонды местных администраций | B29: 601 | C29: 0111 | D29: 9900007410 | F29: =F30 -> 5845700 | G29: =G30 -> 5845700
A30: Уплата иных платежей | B30: 601 | C30: 0111 | D30: 9900007410 | E30: 870 | F30: =SUMIF(свод19!$N$15:$N$1600,B30&C30&D30&A30,свод19!$I$15:$I$1600)*1000 -> 5845700 | G30: =SUMIF(свод20!$N$15:$N$1600,B30&C30&D30&A30,свод20!$I$15:$I$1600)*1000 -> 5845700 | H30: =C30&D30&A30 -> 01119900007410Уплата иных платежей
A31: Другие общегосударственные вопросы | B31: 601 | C31: 0113 | F31: =F32+F37+F45+F50+F58+F69+F77+F81+F73 -> 16580500 | G31: =G32+G37+G45+G50+G58+G69+G77+G81+G73 -> 17069320
A32: Муниципальная программа «Развитие образования Кукморского муниципального района Республики Татарстан на 2018 – 2020 годы» | B32: 601 | C32: 0113 | D32: 0200000000 | F32: =F33 -> 0 | G32: =G33 -> 0
A33: Подпрограмма «Развитие системы оценки качества образования на 2018 – 2020 годы» | B33: 601 | C33: 0113 | D33: 0250000000 | F33: =F34 -> 0 | G33: 0
A34: Основное мероприятие "Содержание прочих учреждений образования" | B34: 601 | C34: 0113 | D34: 0250200000 | F34: 0 | G34: 0
A35: Учебно-методические кабинеты, централизованные бухгалтерии, группы хозяйственного обслуживания, учебные фильмотеки, межшкольные учебно-производственные комбинаты, логопедические пункты | B35: 601 | C35: 0113 | D35: 0250242520 | F35: 0 | G35: 0
A36: Уплата налога на имущество организаций и земельного налога | B36: 601 | C36: 0113 | D36: 0250242520 | E36: 851 | F36: =SUMIF(свод19!$N$15:$N$1600,B36&C36&D36&A36,свод19!$I$15:$I$1600)*1000 -> 0 | G36: =SUMIF(свод20!$N$15:$N$1600,B36&C36&D36&A36,свод20!$I$15:$I$1600)*1000 -> 0 | H36: =C36&D36&A36 -> 01130250242520Уплата налога на имущество организаций и земельного налога
A37: Муниципальная программа «Социальная поддержка граждан Кукморского муниципального района Республики Татарстан» на 2018 – 2020 годы | B37: 601 | C37: 0113 | D37: 0300000000 | F37: =F38 -> 770600 | G37: =G38 -> 799200
A38: Подпрограмма "Улучшение социально-экономического положения семей" на 2018 – 2020 годы | B38: 601 | C38: 0113 | D38: 0350000000 | F38: =F39 -> 770600 | G38: 799200
A39: Основное мероприятие "Создание благоприятных условий для устройства детей-сирот и детей, оставшихся без попечения родителей, на воспитание в семью" | B39: 601 | C39: 0113 | D39: 0350300000 | F39: 770600 | G39: 799200
A40: Реализация государственных полномочий в области опеки и попечительства | B40: 601 | C40: 0113 | D40: 0350325330 | F40: =SUM(F41:F44) -> 770600 | G40: =SUM(G41:G44) -> 799200
A41: Фонд оплаты труда казенных учреждений и взносы по обязательному социальному страхованию | B41: 601 | C41: 0113 | D41: 0350325330 | E41: 111 | F41: =SUMIF(свод19!$N$15:$N$1600,B41&C41&D41&A41,свод19!$I$15:$I$1600)*1000 -> 570700 | G41: =SUMIF(свод20!$N$15:$N$1600,B41&C41&D41&A41,свод20!$I$15:$I$1600)*1000 -> 594600 | H41: =C41&D41&A41 -> 01130350325330Фонд оплаты труда казенных учреждений и взносы по обязательному социальному страхованию
A42: Иные выплаты персоналу казенных учреждений, за исключением фонда оплаты труда | B42: 601 | C42: 0113 | D42: 0350325330 | E42: 112 | F42: =SUMIF(свод19!$N$15:$N$1600,B42&C42&D42&A42,свод19!$I$15:$I$1600)*1000 -> 0 | G42: =SUMIF(свод20!$N$15:$N$1600,B42&C42&D42&A42,свод20!$I$15:$I$1600)*1000 -> 0 | H42: 01130350325330Иные выплаты персоналу казенных учреждений, за исключением фонда оплаты труда
A43: Взносы по обязательному социальному страхованию на выплаты по оплате труда работников и иные выплаты работникам учреждений | B43: 601 | C43: 0113 | D43: 0350325330 | E43: 119 | F43: =SUMIF(свод19!$N$15:$N$1600,B43&C43&D43&A43,свод19!$I$15:$I$1600)*1000 -> 174900 | G43: =SUMIF(свод20!$N$15:$N$1600,B43&C43&D43&A43,свод20!$I$15:$I$1600)*1000 -> 179600 | H43: 01130350325330Взносы по обязательному социальному страхованию на выплаты по оплате труда работников и иные выплаты работникам учреждений
A44: Прочая закупка товаров, работ и услуг для обеспечения государственных (муниципальных) нужд | B44: 601 | C44: 0113 | D44: 0350325330 | E44: 244 | F44: =SUMIF(свод19!$N$15:$N$1600,B44&C44&D44&A44,свод19!$I$15:$I$1600)*1000 -> 25000 | G44: =SUMIF(свод20!$N$15:$N$1600,B44&C44&D44&A44,свод20!$I$15:$I$1600)*1000 -> 25000 | H44: 01130350325330Прочая закупка товаров, работ и услуг для обеспечения государственных (муниципальных) нужд
A45: Муниципальная программа «Обеспечение общественного порядка и противодействие преступности в Кукморском муниципальном районе на 2018 - 2020 годы" | B45: 601 | C45: 0113 | D45: 0600000000 | F45: =F46 -> 55000 | G45: =G46 -> 55000
A46: Подпрограмма «Профилактика терроризма и экстремизма в Кукморском муниципальном районе на 2018-2020гг.» | B46: 601 | C46: 0113 | D46: 0630000000 | F46: =F47 -> 55000 | G46: 55000
A47: Основное мероприятие "Профилактика терроризма и экстремизма" | B47: 601 | C47: 0113 | D47: 0630100000 | F47: 55000 | G47: 55000
A48: Реализация программных мероприятий063 | B48: 601 | C48: 0113 | D48: 0630110990 | F48: 55000 | G48: 55000
A49: Прочая закупка товаров, работ и услуг для обеспечения государственных (муниципальных) нужд | B49: 601 | C49: 0113 | D49: 0630110990 | E49: 244 | F49: =SUMIF(свод19!$N$15:$N$1600,B49&C49&D49&A49,свод19!$I$15:$I$1600)*1000 -> 55000 | G49: =SUMIF(свод20!$N$15:$N$1600,B49&C49&D49&A49,свод20!$I$15:$I$1600)*1000 -> 55000 | H49: =C49&D49&A49 -> 01130630110990Прочая закупка товаров, работ и услуг для обеспечения государственных (муниципальных) нужд
A50: Муниципальная программа «Развитие культуры Кукморского муниципального района Республики Татарстан на 2018 – 2020 годы» | B50: 601 | C50: 0113 | D50: 0800000000 | F50: =F51 -> 683000 | G50: =G51 -> 683000
A51: Подпрограмма "Развитие архивного дела на 2018 - 2020 годы" | B51: 601 | C51: 0113 | D51: 08Е0000000 | F51: =F52 -> 683000 | G51: 683000
A52: Основное мероприятие "Реализация государственной политики в области архивного дела" | B52: 601 | C52: 0113 | D52: 08Е0100000 | F52: 683000 | G52: 683000
A53: Обеспечение хранения, учета, комплектования и использования документов архивного фонда Республики Татарстан и других архивных документов | B53: 601 | C53: 0113 | D53: 08Е0144020 | F53: =SUM(F54:F57) -> 683000 | G53: =SUM(G54:G57) -> 683000
A54: Фонд оплаты труда казенных учреждений и взносы по обязательному социальному страхованию | B54: 601 | C54: 0113 | D54: 08Е0144020 | E54: 111 | F54: =SUMIF(свод19!$N$15:$N$1600,B54&C54&D54&A54,свод19!$I$15:$I$1600)*1000 -> 488000 | G54: =SUMIF(свод20!$N$15:$N$1600,B54&C54&D54&A54,свод20!$I$15:$I$1600)*1000 -> 488000 | H54: =C54&D54&A54 -> 011308Е0144020Фонд оплаты труда казенных учреждений и взносы по обязательному социальному страхованию
A55: Иные выплаты персоналу казенных учреждений, за исключением фонда оплаты труда | B55: 601 | C55: 0113 | D55: 08Е0144020 | E55: 112 | F55: =SUMIF(свод19!$N$15:$N$1600,B55&C55&D55&A55,свод19!$I$15:$I$1600)*1000 -> 0 | G55: =SUMIF(свод20!$N$15:$N$1600,B55&C55&D55&A55,свод20!$I$15:$I$1600)*1000 -> 0 | H55: 011308Е0144020Иные выплаты персоналу казенных учреждений, за исключением фонда оплаты труда
A56: Взносы по обязательному социальному страхованию на выплаты по оплате труда работников и иные выплаты работникам учреждений | B56: 601 | C56: 0113 | D56: 08Е0144020 | E56: 119 | F56: =SUMIF(свод19!$N$15:$N$1600,B56&C56&D56&A56,свод19!$I$15:$I$1600)*1000 -> 147000 | G56: =SUMIF(свод20!$N$15:$N$1600,B56&C56&D56&A56,свод20!$I$15:$I$1600)*1000 -> 147000 | H56: 011308Е0144020Взносы по обязательному социальному страхованию на выплаты по оплате труда работников и иные выплаты работникам учреждений
A57: Прочая закупка товаров, работ и услуг для обеспечения государственных (муниципальных) нужд | B57: 601 | C57: 0113 | D57: 08Е0144020 | E57: 244 | F57: =SUMIF(свод19!$N$15:$N$1600,B57&C57&D57&A57,свод19!$I$15:$I$1600)*1000 -> 48000 | G57: =SUMIF(свод20!$N$15:$N$1600,B57&C57&D57&A57,свод20!$I$15:$I$1600)*1000 -> 48000 | H57: 011308Е0144020Прочая закупка товаров, работ и услуг для обеспечения государственных (муниципальных) нужд
A58: Муниципальная программа «Управление муниципальными финансами Кукморского муниципального района Республики Татарстан на 2018 – 2020 годы» | B58: 601 | C58: 0113 | D58: 1800000000 | F58: =F59 -> 12037400 | G58: =G59 -> 12408800
A59: Основное мероприятие "Обеспечение долгосрочной сбалансированности и устойчивости бюджетной системы" | B59: 601 | C59: 0113 | D59: 1800100000 | F59: =SUM(F60+F63) -> 12037400 | G59: =SUM(G60+G63) -> 12408800
A60: Уплата налога на имущество организаций и земельного налога | B60: 601 | C60: 0113 | D60: 1800102950 | F60: =F62 -> 0 | G60: =G62 -> 0
A61: Уплата налога на имущество организаций и земельного налога | B61: 601 | C61: 0113 | D61: 1800102950 | E61: 851 | F61: =SUMIF(свод19!$N$15:$N$1600,B61&C61&D61&A61,свод19!$I$15:$I$1600)*1000 -> 0 | G61: =SUMIF(свод20!$N$15:$N$1600,B61&C61&D61&A61,свод20!$I$15:$I$1600)*1000 -> 0 | H61: =C61&D61&A61 -> 01131800102950Уплата налога на имущество организаций и земельного налога
A62: Уплата прочих налогов, сборов и иных платежей | B62: 601 | C62: 0113 | D62: 1800102950 | E62: 852 | F62: =SUMIF(свод19!$N$15:$N$1600,B62&C62&D62&A62,свод19!$I$15:$I$1600)*1000 -> 0 | G62: =SUMIF(свод20!$N$15:$N$1600,B62&C62&D62&A62,свод20!$I$15:$I$1600)*1000 -> 0 | H62: 01131800102950Уплата прочих налогов, сборов и иных платежей
A63: Реализация программных мероприятий | B63: 601 | C63: 0113 | D63: 1800129900 | F63: =SUM(F64:F68) -> 12037400 | G63: =SUM(G64:G68) -> 12408800
A64: Фонд оплаты труда казенных учреждений и взносы по обязательному социальному страхованию | B64: 601 | C64: 0113 | D64: 1800129900 | E64: 111 | F64: =SUMIF(свод19!$N$15:$N$1600,B64&C64&D64&A64,свод19!$I$15:$I$1600)*1000 -> 8339100 | G64: =SUMIF(свод20!$N$15:$N$1600,B64&C64&D64&A64,свод20!$I$15:$I$1600)*1000 -> 8649500 | H64: =C64&D64&A64 -> 01131800129900Фонд оплаты труда казенных учреждений и взносы по обязательному социальному страхованию
A65: Взносы по обязательному социальному страхованию на выплаты по оплате труда работников и иные выплаты работникам учреждений | B65: 601 | C65: 0113 | D65: 1800129900 | E65: 119 | F65: =SUMIF(свод19!$N$15:$N$1600,B65&C65&D65&A65,свод19!$I$15:$I$1600)*1000 -> 2551000 | G65: =SUMIF(свод20!$N$15:$N$1600,B65&C65&D65&A65,свод20!$I$15:$I$1600)*1000 -> 2612000 | H65: 01131800129900Взносы по обязательному социальному страхованию на выплаты по оплате труда работников и иные выплаты работникам учреждений
A66: Прочая закупка товаров, работ и услуг для обеспечения государственных (муниципальных) нужд | B66: 601 | C66: 0113 | D66: 1800129900 | E66: 244 | F66: =SUMIF(свод19!$N$15:$N$1600,B66&C66&D66&A66,свод19!$I$15:$I$1600)*1000 -> 1147300 | G66: =SUMIF(свод20!$N$15:$N$1600,B66&C66&D66&A66,свод20!$I$15:$I$1600)*1000 -> 1147300 | H66: 01131800129900Прочая закупка товаров, работ и услуг для обеспечения государственных (муниципальных) нужд
A67: Уплата прочих налогов, сборов и иных платежей | B67: 601 | C67: 0113 | D67: 1800129900 | E67: 852 | F67: =SUMIF(свод19!$N$15:$N$1600,B67&C67&D67&A67,свод19!$I$15:$I$1600)*1000 -> 0 | G67: =SUMIF(свод20!$N$15:$N$1600,B67&C67&D67&A67,свод20!$I$15:$I$1600)*1000 -> 0 | H67: 01131800129900Уплата прочих налогов, сборов и иных платежей
A68: Уплата иных платежей | B68: 601 | C68: 0113 | D68: 1800129900 | E68: 853 | F68: =SUMIF(свод19!$N$15:$N$1600,B68&C68&D68&A68,свод19!$I$15:$I$1600)*1000 -> 0 | G68: =SUMIF(свод20!$N$15:$N$1600,B68&C68&D68&A68,свод20!$I$15:$I$1600)*1000 -> 0 | H68: 01131800129900Уплата иных платежей
A69: Программа по реализации государственной национальной политики в Кукморском муниципальном районе на 2018-2020 годы | B69: 601 | C69: 0113 | D69: 2000000000 | F69: =F70 -> 80000 | G69: =G70 -> 80000
A70: Основное мероприятие «Реализация государственной национальной политики в Республике Татарстан, цивилизованное развитие представителей народов, проживающих на территории Республики Татарстан, сохранение межэтнического и межконфессионального мира и согласия, упрочение общероссийской гражданской идентичности (российской нации), успешная социокультурная адаптация и интеграция мигрантов» | B70: 601 | C70: 0113 | D70: 2000100000 | F70: =F71 -> 80000 | G70: 80000
A71: Реализация программных мероприятий200 | B71: 601 | C71: 0113 | D71: 2000110990 | F71: 80000 | G71: 80000
A72: Прочая закупка товаров, работ и услуг для обеспечения государственных (муниципальных) нужд | B72: 601 | C72: 0113 | D72: 2000110990 | E72: 244 | F72: =SUMIF(свод19!$N$15:$N$1600,B72&C72&D72&A72,свод19!$I$15:$I$1600)*1000 -> 80000 | G72: =SUMIF(свод20!$N$15:$N$1600,B72&C72&D72&A72,свод20!$I$15:$I$1600)*1000 -> 80000 | H72: =C72&D72&A72 -> 01132000110990Прочая закупка товаров, работ и услуг для обеспечения государственных (муниципальных) нужд
A73: Государственная программа "Развитие юстиции в Республике Татарстан на 2014 – 2020 годы" | B73: 601 | C73: 0113 | D73: 2400000000 | F73: =F74 -> 3300 | G73: =G74 -> 3400
A74: Подпрограмма "Реализация государственной политики в сфере юстиции в Республике Татарстан на 2014 – 2020 годы" | B74: 601 | C74: 0113 | D74: 2410100000 | F74: =F75 -> 3300 | G74: 3400
A75: Субвенции на реализацию полномочий по сбору информации от поселений, входящих в МР, необходимой для ведения регистра муниципальных нормативных правовых актов РТ | B75: 601 | C75: 0113 | D75: 2410125390 | F75: 3300 | G75: 3400
A76: Прочая закупка товаров, работ и услуг для обеспечения государственных (муниципальных) нужд | B76: 601 | C76: 0113 | D76: 2410125390 | E76: 244 | F76: =SUMIF(свод19!$N$15:$N$1600,B76&C76&D76&A76,свод19!$I$15:$I$1600)*1000 -> 3300 | G76: =SUMIF(свод20!$N$15:$N$1600,B76&C76&D76&A76,свод20!$I$15:$I$1600)*1000 -> 3400 | H76: =C76&D76&A76 -> 01132410125390Прочая закупка товаров, работ и услуг для обеспечения государственных (муниципальных) нужд
A77: Муниципальная программа «Реализация антикоррупционной политики в Кукморском муниципальном районе Республики Татарстан на 2018-2020 годы» | B77: 601 | C77: 0113 | D77: 2700000000 | F77: =F78 -> 5000 | G77: =G78 -> 5000
A78: Основное мероприятие "Выявление и устранение причин коррупции, противодействие условиям, способствующим ее проявлениям, формирование в обществе нетерпимого отношения к коррупции" | B78: 601 | C78: 0113 | D78: 2700100000 | F78: =F79 -> 5000 | G78: 5000
A79: Реализация программных мероприятий270 | B79: 601 | C79: 0113 | D79: 2700110990 | F79: 5000 | G79: 5000
A80: Прочая закупка товаров, работ и услуг для обеспечения государственных (муниципальных) нужд | B80: 601 | C80: 0113 | D80: 2700110990 | E80: 244 | F80: =SUMIF(свод19!$N$15:$N$1600,B80&C80&D80&A80,свод19!$I$15:$I$1600)*1000 -> 5000 | G80: =SUMIF(свод20!$N$15:$N$1600,B80&C80&D80&A80,свод20!$I$15:$I$1600)*1000 -> 5000 | H80: =C80&D80&A80 -> 01132700110990Прочая закупка товаров, работ и услуг для обеспечения государственных (муниципальных) нужд
A81: Непрограммные направления расходов | B81: 601 | C81: 0113 | D81: 9900000000 | F81: =F82+F85+F88+F93+F98+F100+F102+F106+F108+F113 -> 2946200 | G81: =G82+G85+G88+G93+G98+G100+G102+G106+G108+G113 -> 3034920
A82: Центральный аппарат | B82: 601 | C82: 0113 | D82: 9900002040 | F82: =SUM(F83:F84) -> 0 | G82: =SUM(G83:G84) -> 0
A83: Уплата прочих налогов, сборов и иных платежей | B83: 601 | C83: 0113 | D83: 9900002040 | E83: 852 | F83: =SUMIF(свод19!$N$15:$N$1600,B83&C83&D83&A83,свод19!$I$15:$I$1600)*1000 -> 0 | G83: =SUMIF(свод20!$N$15:$N$1600,B83&C83&D83&A83,свод20!$I$15:$I$1600)*1000 -> 0 | H83: =C83&D83&A83 -> 01139900002040Уплата прочих налогов, сборов и иных платежей
A84: Уплата иных платежей | B84: 601 | C84: 0113 | D84: 9900002040 | E84: 853 | F84: =SUMIF(свод19!$N$15:$N$1600,B84&C84&D84&A84,свод19!$I$15:$I$1600)*1000 -> 0 | G84: =SUMIF(свод20!$N$15:$N$1600,B84&C84&D84&A84,свод20!$I$15:$I$1600)*1000 -> 0 | H84: 01139900002040Уплата иных платежей
A85: Уплата налога на имущество организаций и земельного налога | B85: 601 | C85: 0113 | D85: 9900002950 | F85: =SUM(F86:F87) -> 301400 | G85: =SUM(G86:G87) -> 301400
A86: Уплата налога на имущество организаций и земельного налога | B86: 601 | C86: 0113 | D86: 9900002950 | E86: 851 | F86: =SUMIF(свод19!$N$15:$N$1600,B86&C86&D86&A86,свод19!$I$15:$I$1600)*1000 -> 299400 | G86: =SUMIF(свод20!$N$15:$N$1600,B86&C86&D86&A86,свод20!$I$15:$I$1600)*1000 -> 299400 | H86: =C86&D86&A86 -> 01139900002950Уплата налога на имущество организаций и земельного налога
A87: Уплата прочих налогов, сборов и иных платежей | B87: 601 | C87: 0113 | D87: 9900002950 | E87: 852 | F87: =SUMIF(свод19!$N$15:$N$1600,B87&C87&D87&A87,свод19!$I$15:$I$1600)*1000 -> 2000 | G87: =SUMIF(свод20!$N$15:$N$1600,B87&C87&D87&A87,свод20!$I$15:$I$1600)*1000 -> 2000 | H87: 01139900002950Уплата прочих налогов, сборов и иных платежей
A88: Реализация государственных полномочий по образованию и организации деятельности комиссий по делам несовершеннолетних и защите их прав | B88: 601 | C88: 0113 | D88: 9900025260 | F88: =SUM(F89:F92) -> 547200 | G88: =SUM(G89:G92) -> 567600
A89: Фонд оплаты труда казенных учреждений и взносы по обязательному социальному страхованию | B89: 601 | C89: 0113 | D89: 9900025260 | E89: 111 | F89: =SUMIF(свод19!$N$15:$N$1600,B89&C89&D89&A89,свод19!$I$15:$I$1600)*1000 -> 387600 | G89: =SUMIF(свод20!$N$15:$N$1600,B89&C89&D89&A89,свод20!$I$15:$I$1600)*1000 -> 404900 | H89: =C89&D89&A89 -> 01139900025260Фонд оплаты труда казенных учреждений и взносы по обязательному социальному страхованию
A90: Иные выплаты персоналу казенных учреждений, за исключением фонда оплаты труда | B90: 601 | C90: 0113 | D90: 9900025260 | E90: 112 | F90: =SUMIF(свод19!$N$15:$N$1600,B90&C90&D90&A90,свод19!$I$15:$I$1600)*1000 -> 0 | G90: =SUMIF(свод20!$N$15:$N$1600,B90&C90&D90&A90,свод20!$I$15:$I$1600)*1000 -> 0 | H90: 01139900025260Иные выплаты персоналу казенных учреждений, за исключением фонда оплаты труда
A91: Взносы по обязательному социальному страхованию на выплаты по оплате труда работников и иные выплаты работникам учреждений | B91: 601 | C91: 0113 | D91: 9900025260 | E91: 119 | F91: =SUMIF(свод19!$N$15:$N$1600,B91&C91&D91&A91,свод19!$I$15:$I$1600)*1000 -> 118900 | G91: =SUMIF(свод20!$N$15:$N$1600,B91&C91&D91&A91,свод20!$I$15:$I$1600)*1000 -> 122000 | H91: 01139900025260Взносы по обязательному социальному страхованию на выплаты по оплате труда работников и иные выплаты работникам учреждений
A92: Прочая закупка товаров, работ и услуг для обеспечения государственных (муниципальных) нужд | B92: 601 | C92: 0113 | D92: 9900025260 | E92: 244 | F92: =SUMIF(свод19!$N$15:$N$1600,B92&C92&D92&A92,свод19!$I$15:$I$1600)*1000 -> 40700 | G92: =SUMIF(свод20!$N$15:$N$1600,B92&C92&D92&A92,свод20!$I$15:$I$1600)*1000 -> 40700 | H92: 01139900025260Прочая закупка товаров, работ и услуг для обеспечения государственных (муниципальных) нужд
A93: Реализация государственных полномочий по образованию и организации деятельности административных комиссий | B93: 601 | C93: 0113 | D93: 9900025270 | F93: =SUM(F94:F97) -> 263100 | G93: =SUM(G94:G97) -> 272500
A94: Фонд оплаты труда казенных учреждений и взносы по обязательному социальному страхованию | B94: 601 | C94: 0113 | D94: 9900025270 | E94: 111 | F94: =SUMIF(свод19!$N$15:$N$1600,B94&C94&D94&A94,свод19!$I$15:$I$1600)*1000 -> 204200 | G94: =SUMIF(свод20!$N$15:$N$1600,B94&C94&D94&A94,свод20!$I$15:$I$1600)*1000 -> 213600 | H94: =C94&D94&A94 -> 01139900025270Фонд оплаты труда казенных учреждений и взносы по обязательному социальному страхованию
A95: Иные выплаты персоналу казенных учреждений, за исключением фонда оплаты труда | B95: 601 | C95: 0113 | D95: 9900025270 | E95: 112 | F95: =SUMIF(свод19!$N$15:$N$1600,B95&C95&D95&A95,свод19!$I$15:$I$1600)*1000 -> 0 | G95: =SUMIF(свод20!$N$15:$N$1600,B95&C95&D95&A95,свод20!$I$15:$I$1600)*1000 -> 0 | H95: 01139900025270Иные выплаты персоналу казенных учреждений, за исключением фонда оплаты труда
A96: Взносы по обязательному социальному страхованию на выплаты по оплате труда работников и иные выплаты работникам учреждений | B96: 601 | C96: 0113 | D96: 9900025270 | E96: 119 | F96: =SUMIF(свод19!$N$15:$N$1600,B96&C96&D96&A96,свод19!$I$15:$I$1600)*1000 -> 58900 | G96: =SUMIF(свод20!$N$15:$N$1600,B96&C96&D96&A96,свод20!$I$15:$I$1600)*1000 -> 58900 | H96: 01139900025270Взносы по обязательному социальному страхованию на выплаты по оплате труда работников и иные выплаты работникам учреждений
A97: Прочая закупка товаров, работ и услуг для обеспечения государственных (муниципальных) нужд | B97: 601 | C97: 0113 | D97: 9900025270 | E97: 244 | F97: =SUMIF(свод19!$N$15:$N$1600,B97&C97&D97&A97,свод19!$I$15:$I$1600)*1000 -> 7.105427358e-12 | G97: =SUMIF(свод20!$N$15:$N$1600,B97&C97&D97&A97,свод20!$I$15:$I$1600)*1000 -> 7.105427358e-12 | H97: 01139900025270Прочая закупка товаров, работ и услуг для обеспечения государственных (муниципальных) нужд
A98: Реализация государственных полномочий в области архивного дела | B98: 601 | C98: 0113 | D98: 9900025340 | F98: =F99 -> 55900 | G98: =G99 -> 55900
A99: Прочая закупка товаров, работ и услуг для обеспечения государственных (муниципальных) нужд | B99: 601 | C99: 0113 | D99: 9900025340 | E99: 244 | F99: =SUMIF(свод19!$N$15:$N$1600,B99&C99&D99&A99,свод19!$I$15:$I$1600)*1000 -> 55900 | G99: =SUMIF(свод20!$N$15:$N$1600,B99&C99&D99&A99,свод20!$I$15:$I$1600)*1000 -> 55900 | H99: =C99&D99&A99 -> 01139900025340Прочая закупка товаров, работ и услуг для обеспечения государственных (муниципальных) нужд
A100: Реализация государственных полномочий по определению перечня должностных лиц, уполномоченных составлять протоколы об административных правонарушениях | B100: 601 | C100: 0113 | D100: 9900025350 | F100: =F101 -> 400 | G100: =G101 -> 420
A101: Прочая закупка товаров, работ и услуг для обеспечения государственных (муниципальных) нужд | B101: 601 | C101: 0113 | D101: 9900025350 | E101: 244 | F101: =SUMIF(свод19!$N$15:$N$1600,B101&C101&D101&A101,свод19!$I$15:$I$1600)*1000 -> 400 | G101: =SUMIF(свод20!$N$15:$N$1600,B101&C101&D101&A101,свод20!$I$15:$I$1600)*1000 -> 420 | H101: =C101&D101&A101 -> 01139900025350Прочая закупка товаров, работ и услуг для обеспечения государственных (муниципальных) нужд
A102: Реализация государственных полномочий по распоряжению земельными участками, государственная собственность на которые не разграничена | B102: 601 | C102: 0113 | D102: 9900025400 | F102: =SUM(F103:F105) -> 7600 | G102: =SUM(G103:G105) -> 7900
A103: Фонд оплаты труда государственных (муниципальных) органов и взносы по обязательному социальному страхованию | B103: 601 | C103: 0113 | D103: 9900025400 | E103: 121 | F103: =SUMIF(свод19!$N$15:$N$1600,B103&C103&D103&A103,свод19!$I$15:$I$1600)*1000 -> 5800 | G103: =SUMIF(свод20!$N$15:$N$1600,B103&C103&D103&A103,свод20!$I$15:$I$1600)*1000 -> 6200 | H103: =C103&D103&A103 -> 01139900025400Фонд оплаты труда государственных (муниципальных) органов и взносы по обязательному социальному страхованию
A104: Взносы по обязательному социальному страхованию на выплату денежного содержания и иные выплаты работникам государственных (муниципальных) органов | B104: 601 | C104: 0113 | D104: 9900025400 | E104: 129 | F104: =SUMIF(свод19!$N$15:$N$1600,B104&C104&D104&A104,свод19!$I$15:$I$1600)*1000 -> 1800 | G104: =SUMIF(свод20!$N$15:$N$1600,B104&C104&D104&A104,свод20!$I$15:$I$1600)*1000 -> 1700 | H104: 01139900025400Взносы по обязательному социальному страхованию на выплату денежного содержания и иные выплаты работникам государственных (муниципальных) органов
A105: Прочая закупка товаров, работ и услуг для обеспечения государственных (муниципальных) нужд | B105: 601 | C105: 0113 | D105: 9900025400 | E105: 244 | F105: =SUMIF(свод19!$N$15:$N$1600,B105&C105&D105&A105,свод19!$I$15:$I$1600)*1000 -> 2.220446049e-13 | G105: =SUMIF(свод20!$N$15:$N$1600,B105&C105&D105&A105,свод20!$I$15:$I$1600)*1000 -> 2.220446049e-13 | H105: =C105&D105&A105 -> 01139900025400Прочая закупка товаров, работ и услуг для обеспечения государственных (муниципальных) нужд
A106: Проведение Всероссийской сельскохозяйственной переписи в 2016 году за счет средств федерального бюджета | B106: 601 | C106: 0113 | D106: 9900053910 | F106: =F107 -> 0 | G106: =G107 -> 0
A107: Прочая закупка товаров, работ и услуг для обеспечения государственных (муниципальных) нужд | B107: 601 | C107: 0113 | D107: 9900053910 | E107: 244 | F107: =SUMIF(свод19!$N$15:$N$1600,B107&C107&D107&A107,свод19!$I$15:$I$1600)*1000 -> 0 | G107: =SUMIF(свод20!$N$15:$N$1600,B107&C107&D107&A107,свод20!$I$15:$I$1600)*1000 -> 0 | H107: =C107&D107&A107 -> 01139900053910Прочая закупка товаров, работ и услуг для обеспечения государственных (муниципальных) нужд
A108: Государственная регистрация актов гражданского состояния за счет средств федерального бюджета | B108: 601 | C108: 0113 | D108: 9900059300 | F108: =SUM(F109:F112) -> 1770600 | G108: =SUM(G109:G112) -> 1829200
A109: Фонд оплаты труда государственных (муниципальных) органов и взносы по обязательному социальному страхованию | B109: 601 | C109: 0113 | D109: 9900059300 | E109: 121 | F109: =SUMIF(свод19!$N$15:$N$1600,B109&C109&D109&A109,свод19!$I$15:$I$1600)*1000 -> 691200 | G109: =SUMIF(свод20!$N$15:$N$1600,B109&C109&D109&A109,свод20!$I$15:$I$1600)*1000 -> 739800 | H109: =C109&D109&A109 -> 01139900059300Фонд оплаты труда государственных (муниципальных) органов и взносы по обязательному социальному страхованию
A110: Иные выплаты персоналу государственных (муниципальных) органов, за исключением фонда оплаты труда | B110: 601 | C110: 0113 | D110: 9900059300 | E110: 122 | F110: =SUMIF(свод19!$N$15:$N$1600,B110&C110&D110&A110,свод19!$I$15:$I$1600)*1000 -> 18000 | G110: =SUMIF(свод20!$N$15:$N$1600,B110&C110&D110&A110,свод20!$I$15:$I$1600)*1000 -> 18000 | H110: 01139900059300Иные выплаты персоналу государственных (муниципальных) органов, за исключением фонда оплаты труда
A111: Взносы по обязательному социальному страхованию на выплату денежного содержания и иные выплаты работникам государственных (муниципальных) органов | B111: 601 | C111: 0113 | D111: 9900059300 | E111: 129 | F111: =SUMIF(свод19!$N$15:$N$1600,B111&C111&D111&A111,свод19!$I$15:$I$1600)*1000 -> 213000 | G111: =SUMIF(свод20!$N$15:$N$1600,B111&C111&D111&A111,свод20!$I$15:$I$1600)*1000 -> 223000 | H111: 01139900059300Взносы по обязательному социальному страхованию на выплату денежного содержания и иные выплаты работникам государственных (муниципальных) органов
A112: Прочая закупка товаров, работ и услуг для обеспечения государственных (муниципальных) нужд | B112: 601 | C112: 0113 | D112: 9900059300 | E112: 244 | F112: =SUMIF(свод19!$N$15:$N$1600,B112&C112&D112&A112,свод19!$I$15:$I$1600)*1000 -> 848400 | G112: =SUMIF(свод20!$N$15:$N$1600,B112&C112&D112&A112,свод20!$I$15:$I$1600)*1000 -> 848400 | H112: 01139900059300Прочая закупка товаров, работ и услуг для обеспечения государственных (муниципальных) нужд
A113: Обеспечение деятельности подведомственных учреждений | B113: 601 | C113: 0113 | D113: 9900092990 | F113: =SUM(F114:F117) -> 0 | G113: =SUM(G114:G117) -> 0
A114: Иные выплаты, за исключением фонда оплаты труда казенных учреждений, лицам, привлекаемым согласно законодательству для выполнения отдельных полномочий | B114: 601 | C114: 0113 | D114: 9900092990 | E114: 113 | F114: =SUMIF(свод19!$N$15:$N$1600,B114&C114&D114&A114,свод19!$I$15:$I$1600)*1000 -> 0 | G114: =SUMIF(свод20!$N$15:$N$1600,B114&C114&D114&A114,свод20!$I$15:$I$1600)*1000 -> 0 | H114: =C114&D114&A114 -> 01139900092990Иные выплаты, за исключением фонда оплаты труда казенных учреждений, лицам, привлекаемым согласно законодательству для выполнения отдельных полномочий
A115: Прочая закупка товаров, работ и услуг для обеспечения государственных (муниципальных) нужд | B115: 601 | C115: 0113 | D115: 9900092990 | E115: 244 | F115: =SUMIF(свод19!$N$15:$N$1600,B115&C115&D115&A115,свод19!$I$15:$I$1600)*1000 -> 0 | G115: =SUMIF(свод20!$N$15:$N$1600,B115&C115&D115&A115,свод20!$I$15:$I$1600)*1000 -> 0 | H115: 01139900092990Прочая закупка товаров, работ и услуг для обеспечения государственных (муниципальных) нужд
A116: Исполнение судебных актов Российской Федерации и мировых соглашений по возмещению вреда, причиненного в результате незаконных действий (бездействия) органов государственной власти (государственных органов), органов местного самоуправления либо должностных лиц этих органов, а также в результате деятельности казенных учреждений | B116: 601 | C116: 0113 | D116: 9900092990 | E116: 831 | F116: 0 | G116: 0 | H116: 01139900092990Исполнение судебных актов Российской Федерации и мировых соглашений по возмещению вреда, причиненного в результате незаконных действий (бездействия) органов государственной власти (государственных органов), органов местного самоуправления либо должностных лиц этих органов, а также в результате деятельности казенных учреждений
A117: Уплата прочих налогов, сборов и иных платежей | B117: 601 | C117: 0113 | D117: 9900092990 | E117: 852 | F117: =SUMIF(свод19!$N$15:$N$1600,B117&C117&D117&A117,свод19!$I$15:$I$1600)*1000 -> 0 | G117: =SUMIF(свод20!$N$15:$N$1600,B117&C117&D117&A117,свод20!$I$15:$I$1600)*1000 -> 0 | H117: 01139900092990Уплата прочих налогов, сборов и иных платежей
A118: НАЦИОНАЛЬНАЯ БЕЗОПАСНОСТЬ И ПРАВООХРАНИТЕЛЬНАЯ ДЕЯТЕЛЬНОСТЬ | B118: 601 | C118: 0300 | F118: =F119+F132 -> 2079400 | G118: =G119+G132 -> 2158100
A119: Защита населения и территории от чрезвычайных ситуаций природного и техногенного характера, гражданская оборона | B119: 601 | C119: 0309 | F119: =F120 -> 1558100 | G119: 1636800
A120: Муниципальная программа «Защита населения и территорий от чрезвычайных ситуаций, обеспечение пожарной безопасности и безопасности людей на водных объектах в Кукморском муниципальном районе Республики Татарстан на 2018 – 2020 годы» | B120: 601 | C120: 0309 | D120: 0700000000 | F120: 1558100 | G120: 1636800
A121: Подпрограмма «Снижение рисков и смягчение последствий чрезвычайных ситуаций природного и техногенного характера в Кукморском муниципальном районе Республики Татарстан на 2018 – 2020 годы» | B121: 601 | C121: 0309 | D121: 0720000000 | F121: 1558100 | G121: 1636800
A122: Основное мероприятие "Повышение эффективности управления в области гражданской обороны, предупреждения и ликвидации чрезвычайных ситуаций" | B122: 601 | C122: 0309 | D122: 0720100000 | F122: =F123+F125 -> 1558100 | G122: =G123+G125 -> 1636800
A123: Мероприятия по предупреждению и ликвидации последствий чрезвычайных ситуаций и стихийных бедствий | B123: 601 | C123: 0309 | D123: 0720107420 | F123: =F124 -> 100000 | G123: =G124 -> 100000
A124: Прочая закупка товаров, работ и услуг для обеспечения государственных (муниципальных) нужд | B124: 601 | C124: 0309 | D124: 0720107420 | E124: 244 | F124: =SUMIF(свод19!$N$15:$N$1600,B124&C124&D124&A124,свод19!$I$15:$I$1600)*1000 -> 100000 | G124: =SUMIF(свод20!$N$15:$N$1600,B124&C124&D124&A124,свод20!$I$15:$I$1600)*1000 -> 100000 | H124: =C124&D124&A124 -> 03090720107420Прочая закупка товаров, работ и услуг для обеспечения государственных (муниципальных) нужд
A125: Управление организацией и проведением мероприятий в области гражданской обороны и защиты в чрезвычайных ситуациях | B125: 601 | C125: 0309 | D125: 0720122670 | F125: =SUM(F126:F131) -> 1458100 | G125: =SUM(G126:G131) -> 1536800
A126: Фонд оплаты труда казенных учреждений и взносы по обязательному социальному страхованию | B126: 601 | C126: 0309 | D126: 0720122670 | E126: 111 | F126: =SUMIF(свод19!$N$15:$N$1600,B126&C126&D126&A126,свод19!$I$15:$I$1600)*1000 -> 933400 | G126: =SUMIF(свод20!$N$15:$N$1600,B126&C126&D126&A126,свод20!$I$15:$I$1600)*1000 -> 992600 | H126: =C126&D126&A126 -> 03090720122670Фонд оплаты труда казенных учреждений и взносы по обязательному социальному страхованию
A127: Взносы по обязательному социальному страхованию на выплаты по оплате труда работников и иные выплаты работникам учреждений | B127: 601 | C127: 0309 | D127: 0720122670 | E127: 119 | F127: =SUMIF(свод19!$N$15:$N$1600,B127&C127&D127&A127,свод19!$I$15:$I$1600)*1000 -> 280300 | G127: =SUMIF(свод20!$N$15:$N$1600,B127&C127&D127&A127,свод20!$I$15:$I$1600)*1000 -> 299800 | H127: 03090720122670Взносы по обязательному социальному страхованию на выплаты по оплате труда работников и иные выплаты работникам учреждений
A128: Прочая закупка товаров, работ и услуг для обеспечения государственных (муниципальных) нужд | B128: 601 | C128: 0309 | D128: 0720122670 | E128: 244 | F128: =SUMIF(свод19!$N$15:$N$1600,B128&C128&D128&A128,свод19!$I$15:$I$1600)*1000 -> 244400 | G128: =SUMIF(свод20!$N$15:$N$1600,B128&C128&D128&A128,свод20!$I$15:$I$1600)*1000 -> 244400 | H128: 03090720122670Прочая закупка товаров, работ и услуг для обеспечения государственных (муниципальных) нужд
A129: Уплата налога на имущество организаций и земельного налога | B129: 601 | C129: 0309 | D129: 0720122670 | E129: 851 | F129: =SUMIF(свод19!$N$15:$N$1600,B129&C129&D129&A129,свод19!$I$15:$I$1600)*1000 -> 0 | G129: =SUMIF(свод20!$N$15:$N$1600,B129&C129&D129&A129,свод20!$I$15:$I$1600)*1000 -> 0 | H129: 03090720122670Уплата налога на имущество организаций и земельного налога
A130: Уплата прочих налогов, сборов и иных платежей | B130: 601 | C130: 0309 | D130: 0720122670 | E130: 852 | F130: =SUMIF(свод19!$N$15:$N$1600,B130&C130&D130&A130,свод19!$I$15:$I$1600)*1000 -> 0 | G130: =SUMIF(свод20!$N$15:$N$1600,B130&C130&D130&A130,свод20!$I$15:$I$1600)*1000 -> 0 | H130: 03090720122670Уплата прочих налогов, сборов и иных платежей
A131: Уплата иных платежей | B131: 601 | C131: 0309 | D131: 0720122670 | E131: 853 | F131: =SUMIF(свод19!$N$15:$N$1600,B131&C131&D131&A131,свод19!$I$15:$I$1600)*1000 -> 0 | G131: =SUMIF(свод20!$N$15:$N$1600,B131&C131&D131&A131,свод20!$I$15:$I$1600)*1000 -> 0 | H131: 03090720122670Уплата иных платежей
A132: Другие вопросы в области национальной безопасности и правоохранительной деятельности | B132: 601 | C132: 0314 | F132: =F133 -> 521300 | G132: =G133 -> 521300
A133: Муниципальная программа «Обеспечение общественного порядка и противодействие преступности в Кукморском муниципальном районе на 2018 - 2020 годы" | B133: 601 | C133: 0314 | D133: 0600000000 | F133: =F134 -> 521300 | G133: 521300
A134: Подпрограмма "Организация деятельности по профилактике правонарушений и преступлений в Республике Татарстан на 2014 – 2020 годы" | B134: 601 | C134: 0314 | D134: 0610000000 | F134: 521300 | G134: 521300
A135: Основное мероприятие "Совершенствование деятельности по профилактике правонарушений и преступлений" | B135: 601 | C135: 0314 | D135: 0610100000 | F135: 521300 | G135: 521300
A136: Реализация программных мероприятий | B136: 601 | C136: 0314 | D136: 0610110990 | F136: =SUM(F137:F139) -> 521300 | G136: =SUM(G137:G139) -> 521300
A137: Фонд оплаты труда казенных учреждений и взносы по обязательному социальному страхованию | B137: 601 | C137: 0314 | D137: 0610110990 | E137: 111 | F137: =SUMIF(свод19!$N$15:$N$1600,B137&C137&D137&A137,свод19!$I$15:$I$1600)*1000 -> 334000 | G137: =SUMIF(свод20!$N$15:$N$1600,B137&C137&D137&A137,свод20!$I$15:$I$1600)*1000 -> 334000 | H137: =C137&D137&A137 -> 03140610110990Фонд оплаты труда казенных учреждений и взносы по обязательному социальному страхованию
A138: Взносы по обязательному социальному страхованию на выплаты по оплате труда работников и иные выплаты работникам учреждений | B138: 601 | C138: 0314 | D138: 0610110990 | E138: 119 | F138: =SUMIF(свод19!$N$15:$N$1600,B138&C138&D138&A138,свод19!$I$15:$I$1600)*1000 -> 101000 | G138: =SUMIF(свод20!$N$15:$N$1600,B138&C138&D138&A138,свод20!$I$15:$I$1600)*1000 -> 101000 | H138: =C138&D138&A138 -> 03140610110990Взносы по обязательному социальному страхованию на выплаты по оплате труда работников и иные выплаты работникам учреждений
A139: Прочая закупка товаров, работ и услуг для обеспечения государственных (муниципальных) нужд | B139: 601 | C139: 0314 | D139: 0610110990 | E139: 244 | F139: =SUMIF(свод19!$N$15:$N$1600,B139&C139&D139&A139,свод19!$I$15:$I$1600)*1000 -> 86300 | G139: =SUMIF(свод20!$N$15:$N$1600,B139&C139&D139&A139,свод20!$I$15:$I$1600)*1000 -> 86300 | H139: 03140610110990Прочая закупка товаров, работ и услуг для обеспечения государственных (муниципальных) нужд
A140: НАЦИОНАЛЬНАЯ ЭКОНОМИКА | B140: 601 | C140: 0400 | F140: =F141+F150 -> 30030000 | G140: =G141+G150 -> 31230000
A141: Сельское хозяйство и рыболовство | B141: 601 | C141: 0405 | F141: =F142+F146 -> 2012800 | G141: =G142+G146 -> 2012800
A142: Программа по реализации государственной национальной политики в Кукморском муниципальном районе на 2018-2020 годы | B142: 601 | C142: 0405 | D142: 2000000000 | F142: =F143 -> 0 | G142: 0
A143: Основное мероприятие «Реализация государственной национальной политики в Республике Татарстан, цивилизованное развитие представителей народов, проживающих на территории Республики Татарстан, сохранение межэтнического и межконфессионального мира и согласия, упрочение общероссийской гражданской идентичности (российской нации), успешная социокультурная адаптация и интеграция мигрантов» | B143: 601 | C143: 0405 | D143: 2000100000 | F143: 0 | G143: 0
A144: Реализация программных мероприятий200 | B144: 601 | C144: 0405 | D144: 2000110990 | F144: 0 | G144: 0
A145: Прочая закупка товаров, работ и услуг для обеспечения государственных (муниципальных) нужд | B145: 601 | C145: 0405 | D145: 2000110990 | E145: 244 | F145: =SUMIF(свод19!$N$15:$N$1600,B145&C145&D145&A145,свод19!$I$15:$I$1600)*1000 -> 0 | G145: =SUMIF(свод20!$N$15:$N$1600,B145&C145&D145&A145,свод20!$I$15:$I$1600)*1000 -> 0 | H145: =C145&D145&A145 -> 04052000110990Прочая закупка товаров, работ и услуг для обеспечения государственных (муниципальных) нужд
A146: Государственная программа "Система химической и биологической безопасности Республики Татарстан на 2018 – 2020 годы" | B146: 601 | C146: 0405 | D146: 2800000000 | F146: =F147 -> 2012800 | G146: =G147 -> 2012800
A147: Основное мероприятие "Предупреждение болезней животных и защита населения от болезней общих для человека и животных" | B147: 601 | C147: 0405 | D147: 2800100000 | F147: =F148 -> 2012800 | G147: 2012800
A148: Реализация государственных полномочий в сфере организации проведения мероприятий по предупреждению и ликвидации болезней животных, их лечению, отлову и содержанию безнадзорных животных, защите населения от болезней, общих для человека и животных | B148: 601 | C148: 0405 | D148: 2800125360 | F148: 2012800 | G148: 2012800
A149: Прочая закупка товаров, работ и услуг для обеспечения государственных (муниципальных) нужд | B149: 601 | C149: 0405 | D149: 2800125360 | E149: 244 | F149: =SUMIF(свод19!$N$15:$N$1600,B149&C149&D149&A149,свод19!$I$15:$I$1600)*1000 -> 2012800 | G149: =SUMIF(свод20!$N$15:$N$1600,B149&C149&D149&A149,свод20!$I$15:$I$1600)*1000 -> 2012800 | H149: =C149&D149&A149 -> 04052800125360Прочая закупка товаров, работ и услуг для обеспечения государственных (муниципальных) нужд
A150: Дорожное хозяйство (дорожные фонды) | B150: 601 | C150: 0409 | F150: =F151+F154 -> 28017200 | G150: =G151+G154 -> 29217200
A151: Муниципальный дорожный фонд | B151: 601 | C151: 0409 | D151: Д100000000 | F151: =F152 -> 24300000 | G151: 25500000
A152: Строительство, реконструкция и ремонт (текущий и капитальный) автомобильных дорог за счет муниципального Дорожного фонда | B152: 601 | C152: 0409 | D152: Д100003650 | F152: 24300000 | G152: 25500000
A153: Прочая закупка товаров, работ и услуг для обеспечения государственных (муниципальных) нужд | B153: 601 | C153: 0409 | D153: Д100003650 | E153: 244 | F153: =SUMIF(свод19!$N$15:$N$1600,B153&C153&D153&A153,свод19!$I$15:$I$1600)*1000 -> 24300000 | G153: =SUMIF(свод20!$N$15:$N$1600,B153&C153&D153&A153,свод20!$I$15:$I$1600)*1000 -> 25500000 | H153: =C153&D153&A153 -> 0409Д100003650Прочая закупка товаров, работ и услуг для обеспечения государственных (муниципальных) нужд
A154: Муниципальная программа «Обеспечение качественным жильем и услугами жилищно-коммунального хозяйства населения, благоустройства территории Кукморского муниципального района Республики Татарстан на 2018 - 2020 годы» | B154: 601 | C154: 0409 | D154: 0400000000 | F154: 3717200 | G154: 3717200
A155: Подпрограмма «Благоустройство территории Кукморского муниципального района на 2018 – 2020 годы» | B155: 601 | C155: 0409 | D155: 0490200000 | F155: 3717200 | G155: 3717200
A156: Строительство, реконструкция и ремонт (текущий и капитальный) автомобильных дорог за счет муниципального Дорожного фонда | B156: 601 | C156: 0409 | D156: 0490278020 | F156: 3717200 | G156: 3717200
A157: Прочая закупка товаров, работ и услуг для обеспечения государственных (муниципальных) нужд | B157: 601 | C157: 0409 | D157: 0490278020 | E157: 244 | F157: =SUMIF(свод19!$N$15:$N$1600,B157&C157&D157&A157,свод19!$I$15:$I$1600)*1000 -> 3717200 | G157: =SUMIF(свод20!$N$15:$N$1600,B157&C157&D157&A157,свод20!$I$15:$I$1600)*1000 -> 3717200 | H157: =C157&D157&A157 -> 04090490278020Прочая закупка товаров, работ и услуг для обеспечения государственных (муниципальных) нужд
A158: ЖИЛИЩНО-КОММУНАЛЬНОЕ ХОЗЯЙСТВО | B158: 601 | C158: 0500 | F158: =F159+F175 -> 22919580 | G158: =G159+G175 -> 23470720
A159: Жилищное хозяйство | B159: 601 | C159: 0501 | F159: =F160 -> 20264580 | G159: =G160 -> 20815720
A160: Муниципальная программа «Обеспечение качественным жильем и услугами жилищно-коммунального хозяйства населения, благоустройства территории Кукморского муниципального района Республики Татарстан на 2018 - 2020 годы» | B160: 601 | C160: 0501 | D160: 0400000000 | F160: =F161+F167+F171 -> 20264580 | G160: =G161+G167+G171 -> 20815720
A161: Подпрограмма "Реализация мероприятий Республиканской адресной программы по переселению граждан из аварийного жилищного фонда в 2014 – 2020 годах" | B161: 601 | C161: 0501 | D161: 0440000000 | F161: =F162 -> 0 | G161: =G162 -> 0
A162: Основное мероприятие "Переселение граждан из жилищного фонда, признанного аварийным и непригодным для проживания; снос или реконструкция многоквартирных домов, признанных аварийными и подлежащими сносу или реконструкции" | B162: 601 | C162: 0501 | D162: 0440100000 | F162: =F163+F165 -> 0 | G162: =G163+G165 -> 0
A163: Обеспечение мероприятий по переселению граждан из аварийного жилищного фонда за счет средств Фонда содействия реформированию жилищно-коммунального хозяйства | B163: 601 | C163: 0501 | D163: 0440195020 | F163: =F164 -> 0 | G163: =G164 -> 0
A164: Иные выплаты населению | B164: 601 | C164: 0501 | D164: 0440195020 | E164: 360 | F164: =SUMIF(свод19!$N$15:$N$1600,B164&C164&D164&A164,свод19!$I$15:$I$1600)*1000 -> 0 | G164: =SUMIF(свод20!$N$15:$N$1600,B164&C164&D164&A164,свод20!$I$15:$I$1600)*1000 -> 0 | H164: =C164&D164&A164 -> 05010440195020Иные выплаты населению
A165: Обеспечение мероприятий по переселению граждан из аварийного жилищного фонда | B165: 601 | C165: 0501 | D165: 0440196020 | F165: =F166 -> 0 | G165: =G166 -> 0
A166: Иные выплаты населению | B166: 601 | C166: 0501 | D166: 0440196020 | E166: 360 | F166: =SUMIF(свод19!$N$15:$N$1600,B166&C166&D166&A166,свод19!$I$15:$I$1600)*1000 -> 0 | G166: =SUMIF(свод20!$N$15:$N$1600,B166&C166&D166&A166,свод20!$I$15:$I$1600)*1000 -> 0 | H166: =C166&D166&A166 -> 05010440196020Иные выплаты населению
A167: Подпрограмма «Реализация мероприятий муниципальной программы капитального ремонта общего имущества в многоквартирных домах, расположенных на территории Кукморского муниципального района Республики Татарстан в 2018 – 2020 годах» | B167: 601 | C167: 0501 | D167: 0450000000 | F167: =F168 -> 4603090 | G167: =G168 -> 4603090
A168: Основное мероприятие "Организация своевременного проведения капитального ремонта общего имущества в многоквартирных домах" | B168: 601 | C168: 0501 | D168: 0450100000 | F168: =F169 -> 4603090 | G168: 4603090
A169: Обеспечение мероприятий по капитальному ремонту многоквартирных домов и переселению граждан из аварийного жилищного фонда за счет средств бюджета Республики Татарстан и бюджета Кукморского муниципального района | B169: 601 | C169: 0501 | D169: 0450196010 | F169: 4603090 | G169: 4603090
A170: Субсидии некоммерческим организациям (за исключением государственных (муниципальных) учреждений) | B170: 601 | C170: 0501 | D170: 0450196010 | E170: 630 | F170: =SUMIF(свод19!$N$15:$N$1600,B170&C170&D170&A170,свод19!$I$15:$I$1600)*1000 -> 4603090 | G170: =SUMIF(свод20!$N$15:$N$1600,B170&C170&D170&A170,свод20!$I$15:$I$1600)*1000 -> 4603090 | H170: =C170&D170&A170 -> 05010450196010Субсидии некоммерческим организациям (за исключением государственных (муниципальных) учреждений)
A171: Подпрограмма «Реализация муниципальной политики в сфере архитектуры, градо-строительства, строительства, промышленности строительных материалов, в жилищной сфере и коммунальном хозяйстве на 2018 – 2020 годы» | B171: 601 | C171: 0501 | D171: 0480000000 | F171: =F172 -> 15661490 | G171: =G172 -> 16212630
A172: Основное мероприятие "Другие мероприятия в области жилищно-коммунального хозяйства " | B172: 601 | C172: 0501 | D172: 0480400000 | F172: =F173 -> 15661490 | G172: 16212630
A173: Мероприятия в области жилищно-коммунального хозяйства | B173: 601 | C173: 0501 | D173: 0480476040 | F173: 15661490 | G173: 16212630
A174: Прочая закупка товаров, работ и услуг для обеспечения государственных (муниципальных) нужд | B174: 601 | C174: 0501 | D174: 0480476040 | E174: 244 | F174: =SUMIF(свод19!$N$15:$N$1600,B174&C174&D174&A174,свод19!$I$15:$I$1600)*1000 -> 15661490 | G174: =SUMIF(свод20!$N$15:$N$1600,B174&C174&D174&A174,свод20!$I$15:$I$1600)*1000 -> 16212630 | H174: =C174&D174&A174 -> 05010480476040Прочая закупка товаров, работ и услуг для обеспечения государственных (муниципальных) нужд
A175: Жилищно-коммунальное хозяйство | B175: 601 | C175: 0503 | F175: =F180+F176 -> 2655000 | G175: =G180+G176 -> 2655000
A176: Муниципальная программа «Обеспечение качественным жильем и услугами жилищно-коммунального хозяйства населения, благоустройства территории Кукморского муниципального района Республики Татарстан на 2018 - 2020 годы» | B176: 601 | C176: 0503 | D176: 0400000000 | F176: =F177 -> 1155000 | G176: 1155000
A177: Подпрограмма «Благоустройство территории Кукморского муниципального района на 2018 – 2020 годы» | B177: 601 | C177: 0503 | D177: 0490200000 | F177: 1155000 | G177: 1155000
A178: Организация и содержаение мест захоронения | B178: 601 | C178: 0503 | D178: 0490278040 | F178: 1155000 | G178: 1155000
A179: Прочая закупка товаров, работ и услуг для обеспечения государственных (муниципальных) нужд | B179: 601 | C179: 0503 | D179: 0490278040 | E179: 244 | F179: =SUMIF(свод19!$N$15:$N$1600,B179&C179&D179&A179,свод19!$I$15:$I$1600)*1000 -> 1155000 | G179: =SUMIF(свод20!$N$15:$N$1600,B179&C179&D179&A179,свод20!$I$15:$I$1600)*1000 -> 1155000 | H179: =C179&D179&A179 -> 05030490278040Прочая закупка товаров, работ и услуг для обеспечения государственных (муниципальных) нужд
A180: Муниципальная программа «Обеспечение общественного порядка и противодействие преступности в Кукморском муниципальном районе на 2018 - 2020 годы" | B180: 601 | C180: 0503 | D180: 0600000000 | F180: =F181 -> 1500000 | G180: 1500000
A181: Подпрограмма «Повышение безопасности дорожного движения в Кукморском муниципальном районе на 2018-2020 годы» | B181: 601 | C181: 0503 | D181: 0620100000 | F181: 1500000 | G181: 1500000
A182: Реализация программных мероприятий062 | B182: 601 | C182: 0503 | D182: 0620178020 | F182: =F183 -> 1500000 | G182: =G183 -> 1500000
A183: Прочая закупка товаров, работ и услуг для обеспечения государственных (муниципальных) нужд | B183: 601 | C183: 0503 | D183: 0620178020 | E183: 244 | F183: =SUMIF(свод19!$N$15:$N$1600,B183&C183&D183&A183,свод19!$I$15:$I$1600)*1000 -> 1500000 | G183: =SUMIF(свод20!$N$15:$N$1600,B183&C183&D183&A183,свод20!$I$15:$I$1600)*1000 -> 1500000 | H183: =C183&D183&A183 -> 05030620178020Прочая закупка товаров, работ и услуг для обеспечения государственных (муниципальных) нужд
A184: ОБРАЗОВАНИЕ | B184: 601 | C184: 0700 | F184: =F185 -> 0 | G184: =G185 -> 0
A185: Другие вопросы в области образования | B185: 601 | C185: 0709 | F185: =F186 -> 0 | G185: 0
A186: Муниципальная программа «Развитие образования Кукморского муниципального района Республики Татарстан на 2018 – 2020 годы» | B186: 601 | C186: 0709 | D186: 0200000000 | F186: 0 | G186: 0
A187: Подпрограмма «Развитие системы оценки качества образования на 2018 – 2020 годы» | B187: 601 | C187: 0709 | D187: 0250000000 | F187: 0 | G187: 0
A188: Основное мероприятие "Содержание прочих учреждений образования" | B188: 601 | C188: 0709 | D188: 0250200000 | F188: 0 | G188: 0
A189: Учебно-методические кабинеты, централизованные бухгалтерии, группы хозяйственного обслуживания, учебные фильмотеки, межшкольные учебно-производственные комбинаты, логопедические пункты | B189: 601 | C189: 0709 | D189: 0250242520 | F189: 0 | G189: 0
A190: Уплата налога на имущество организаций и земельного налога | B190: 601 | C190: 0709 | D190: 0250242520 | E190: 851 | F190: =SUMIF(свод19!$N$15:$N$1600,B190&C190&D190&A190,свод19!$I$15:$I$1600)*1000 -> 0 | G190: =SUMIF(свод20!$N$15:$N$1600,B190&C190&D190&A190,свод20!$I$15:$I$1600)*1000 -> 0 | H190: =C190&D190&A190 -> 07090250242520Уплата налога на имущество организаций и земельного налога
A191: ЗДРАВООХРАНЕНИЕ | B191: 601 | C191: 0900 | F191: =F192 -> 779300 | G191: =G192 -> 808900
A192: Санитарно-эпидемиологическое благополучие | B192: 601 | C192: 0907 | F192: =F193 -> 779300 | G192: 808900
A193: Муниципальная программа «Развитие здравоохранения Кукморского муниципального района Республики Татарстан на 2018-2020 годы» | B193: 601 | C193: 0907 | D193: 0100000000 | F193: 779300 | G193: 808900
A194: Подпрограмма «Профилактика заболеваний и формирование здорового образа жизни. Развитие первичной медико-санитарной помощи» | B194: 601 | C194: 0907 | D194: 0110000000 | F194: 779300 | G194: 808900
A195: Основное мероприятие "Профилактика инфекционных заболеваний, включая иммунопрофилактику" | B195: 601 | C195: 0907 | D195: 0110200000 | F195: 779300 | G195: 808900
A196: Реализация государственных полномочий по организации осуществления мероприятий по проведению дезинфекции, дезинсекции и дератизации, санитарно-противоэпидемических (профилактических) мероприятий, проводимых с применением лабораторных методов исследования, в очагах инфекционных заболеваний, а также на территориях и в помещениях, где имеются и сохраняются условия для возникновения или распространения инфекционных заболеваний | B196: 601 | C196: 0907 | D196: 0110202110 | F196: 779300 | G196: 808900
A197: Прочая закупка товаров, работ и услуг для обеспечения государственных (муниципальных) нужд | B197: 601 | C197: 0907 | D197: 0110202110 | E197: 244 | F197: =SUMIF(свод19!$N$15:$N$1600,B197&C197&D197&A197,свод19!$I$15:$I$1600)*1000 -> 779300 | G197: =SUMIF(свод20!$N$15:$N$1600,B197&C197&D197&A197,свод20!$I$15:$I$1600)*1000 -> 808900 | H197: =C197&D197&A197 -> 09070110202110Прочая закупка товаров, работ и услуг для обеспечения государственных (муниципальных) нужд
A198: СОЦИАЛЬНАЯ ПОЛИТИКА | B198: 601 | C198: 1000 | F198: =F199 -> 643400 | G198: =G199 -> 643400
A199: Социальное обеспечение населения | B199: 601 | C199: 1003 | F199: =F200 -> 643400 | G199: 643400
A200: Муниципальная программа «Социальная поддержка граждан Кукморского муниципального района Республики Татарстан» на 2018 – 2020 годы | B200: 601 | C200: 1003 | D200: 0300000000 | F200: 643400 | G200: 643400
A201: Подпрограмма «Социальные выплаты» на 2018 – 2020 годы | B201: 601 | C201: 1003 | D201: 0310000000 | F201: 643400 | G201: 643400
A202: Мероприятия в области социальной политики | B202: 601 | C202: 1003 | D202: 0310105410 | F202: 643400 | G202: 643400
... 540 more rows

Sheet 12 (hidden)
C1: =дата!$A$2&дата!$D$14 -> Приложение №12
C2: к решению Кукморского
C3: районного Совета
C4: =дата!D1 -> от08 декабря 2017 г. №131
A6: Объем бюджетных ассигнований на исполнение
A7: публичных нормативных обязательств на 2018 год
F8: (рублей)
A9: Наименование | B9: КВСР | C9: Рз, ПР | D9: ЦСР | E9: ВР | F9: Сумма
A11: Итого | F11: =F13+F33+F47 -> 3476000
A13: Управление образования Кукморского муниципального района | B13: 611 | F13: =F14 -> 2410000
A14: ОБРАЗОВАНИЕ | B14: 611 | C14: 0700 | F14: =F15+F21+F27 -> 2410000
A15: Дошкольное образование | B15: 611 | C15: 0701 | F15: =F16 -> 300000
A16: Муниципальная программа «Развитие образования Кукморского муниципального района Республики Татарстан на 2018 – 2020 годы» | B16: 611 | C16: 0701 | D16: 0200000000 | F16: =F17 -> 300000
A17: Подпрограмма «Развитие дошкольного образования на 2018 – 2020 годы» | B17: 611 | C17: 0701 | D17: 0210000000 | F17: =F18 -> 300000
A18: Основное мероприятие "Реализация дошкольного образования в образовательных организациях" | B18: 611 | C18: 0701 | D18: 0210300000 | F18: =F19 -> 300000
A19: Развитие дошкольных образовательных учреждений | B19: 611 | C19: 0701 | D19: 0210342000 | F19: =F20 -> 300000
A20: Субсидии бюджетным учреждениям на финансовое обеспечение государственного (муниципального) задания на оказание государственных (муниципальных) услуг (выполнение работ) | B20: 611 | C20: 0701 | D20: 0210342000 | E20: 611 | F20: 300000
A21: Общее образование | B21: 611 | C21: 0702 | F21: =F22 -> 2000000
A22: Муниципальная программа «Развитие образования Кукморского муниципального района Республики Татарстан на 2018 – 2020 годы» | B22: 611 | C22: 0702 | D22: 0200000000 | F22: =F23 -> 2000000
A23: Подпрограмма «Развитие общего образования на 2018 – 2020 годы» | B23: 611 | C23: 0702 | D23: 0220000000 | F23: =F24 -> 2000000
A24: Основное мероприятие "Реализация общего образования в государственных образовательных организациях" | B24: 611 | C24: 0702 | D24: 0220200000 | F24: =F25 -> 2000000
A25: Развитие общеобразовательных организаций, включая школы – детские сады | B25: 611 | C25: 0702 | D25: 0220242100 | F25: =SUM(F26:F26) -> 2000000
A26: Субсидии бюджетным учреждениям на финансовое обеспечение государственного (муниципального) задания на оказание государственных (муниципальных) услуг (выполнение работ) | B26: 611 | C26: 0702 | D26: 0220242100 | E26: 611 | F26: 2000000
A27: Дополнительное образование детей | B27: 611 | C27: 0703 | F27: =F28 -> 110000
A28: Муниципальная программа «Развитие образования Кукморского муниципального района Республики Татарстан на 2018 – 2020 годы» | B28: 611 | C28: 0703 | D28: 0200000000 | F28: =F29 -> 110000
A29: Подпрограмма «Развитие дополнительного образования на 2018 – 2020 годы» | B29: 611 | C29: 0703 | D29: 0230000000 | F29: =F30 -> 110000
A30: Основное мероприятие "Организация предоставления дополнительного образования детей в государственных образовательных организациях" | B30: 611 | C30: 0703 | D30: 0230100000 | F30: =F31 -> 110000
A31: Развитие муниципальных учреждений дополнительного образования детей многопрофильной направленности | B31: 611 | C31: 0703 | D31: 0230142310 | F31: 110000
A32: Субсидии бюджетным учреждениям на финансовое обеспечение государственного (муниципального) задания на оказание государственных (муниципальных) услуг (выполнение работ) | B32: 611 | C32: 0703 | D32: 0230142310 | E32: 611 | F32: 110000
A33: Управление по делам молодежи и спорту Кукморского муниципального района | B33: 612 | F33: =F34 -> 131000
A34: ОБРАЗОВАНИЕ | B34: 612 | C34: 0700 | F34: =F35+F41 -> 131000
A35: Дополнительное образование детей | B35: 612 | C35: 0703 | F35: =F36 -> 73000
A36: Муниципальная программа «Развитие образования Кукморского муниципального района Республики Татарстан на 2018 – 2020 годы» | B36: 612 | C36: 0703 | D36: 0200000000 | F36: =F37 -> 73000
A37: Подпрограмма «Развитие дополнительного образования на 2018 – 2020 годы» | B37: 612 | C37: 0703 | D37: 0230000000 | F37: =F38 -> 73000
A38: Основное мероприятие "Организация предоставления дополнительного образования детей в государственных образовательных организациях" | B38: 612 | C38: 0703 | D38: 0230100000 | F38: 73000
A39: Развитие муниципальных учреждений дополнительного образования детей спортивной направленности | B39: 612 | C39: 0703 | D39: 0230142330 | F39: =F40 -> 73000
A40: Субсидии бюджетным учреждениям на финансовое обеспечение государственного (муниципального) задания на оказание государственных (муниципальных) услуг (выполнение работ) | B40: 612 | C40: 0703 | D40: 0230142330 | E40: 611 | F40: 73000
A41: Молодежная политика и оздоровление детей | B41: 612 | C41: 0707 | F41: =F42 -> 58000
A42: Муниципальная программа «Развитие молодежной политики, физической культуры и спорта в Кукморском муниципальном районе Республики Татарстан на 2018 – 2020 годы» | B42: 612 | C42: 0707 | D42: 1000000000 | F42: =F43 -> 58000
A43: Подпрограмма «Сельская молодежь Кукморского муниципального района Республики Татарстан на 2018 – 2020 годы» | B43: 612 | C43: 0707 | D43: 1040000000 | F43: =F44 -> 58000
A44: Основное мероприятие "Развитие государственной молодежной политики в Республике Татарстан" | B44: 612 | C44: 0707 | D44: 1040100000 | F44: =F45 -> 58000
A45: Обеспечение деятельности учреждений молодежной политики | B45: 612 | C45: 0707 | D45: 1040143190 | F45: 58000
A46: Субсидии бюджетным учреждениям на финансовое обеспечение государственного (муниципального) задания на оказание государственных (муниципальных) услуг (выполнение работ) | B46: 612 | C46: 0707 | D46: 1040143190 | E46: 611 | F46: 58000
A47: Управление культуры Кукморского муниципального района | B47: 613 | F47: =F48+F55 -> 935000
A48: ОБРАЗОВАНИЕ | B48: 613 | C48: 0700 | F48: =F49 -> 20000
A49: Дополнительное образование детей | B49: 613 | C49: 0703 | F49: 20000
A50: Муниципальная программа «Развитие образования Кукморского муниципального района Республики Татарстан на 2018 – 2020 годы» | B50: 613 | C50: 0703 | D50: 0200000000 | F50: 20000
A51: Подпрограмма «Развитие дополнительного образования на 2018 – 2020 годы» | B51: 613 | C51: 0703 | D51: 0230000000 | F51: 20000
A52: Основное мероприятие "Организация предоставления дополнительного образования детей в государственных образовательных организациях" | B52: 613 | C52: 0703 | D52: 0230100000 | F52: 20000
A53: Развитие муниципальных учреждений дополнительного образования детей художественно-эстетической направленности | B53: 613 | C53: 0703 | D53: 0230142320 | F53: 20000
A54: Субсидии бюджетным учреждениям на финансовое обеспечение государственного (муниципального) задания на оказание государственных (муниципальных) услуг (выполнение работ) | B54: 613 | C54: 0703 | D54: 0230142320 | E54: 611 | F54: 20000
A55: КУЛЬТУРА, КИНЕМАТОГРАФИЯ | B55: 613 | C55: 0800 | F55: =F56 -> 915000
A56: Культура | B56: 613 | C56: 0801 | F56: =F57 -> 915000
A57: Муниципальная программа «Развитие культуры Кукморского муниципального района Республики Татарстан на 2018 – 2020 годы» | B57: 613 | C57: 0801 | D57: 0800000000 | F57: =F58+F62 -> 915000
A58: Подпрограмма «Развитие библиотечного дела на 2018 – 2020 годы» | B58: 613 | C58: 0801 | D58: 0830000000 | F58: =F59 -> 329000
A59: Основное мероприятие "Развитие системы библиотечного обслуживания" | B59: 613 | C59: 0801 | D59: 0830100000 | F59: 329000
A60: Обеспечение деятельности подведомственных учреждений культуры | B60: 613 | C60: 0801 | D60: 0830144090 | F60: 329000
A61: Субсидии бюджетным учреждениям на финансовое обеспечение государственного (муниципального) задания на оказание государственных (муниципальных) услуг (выполнение работ) | B61: 613 | C61: 0801 | D61: 0830144090 | E61: 611 | F61: 329000
A62: Подпрограмма «Развитие клубов на 2018 – 2020 годы» | B62: 613 | C62: 0801 | D62: 0840000000 | F62: =F63 -> 586000
A63: Основное мероприятие "Развитие современного музыкального искусства" | B63: 613 | C63: 0801 | D63: 0840100000 | F63: =F64 -> 586000
A64: Обеспечение деятельности подведомственных учреждений культуры | B64: 613 | C64: 0801 | D64: 0840144091 | F64: 586000
A65: Субсидии бюджетным учреждениям на финансовое обеспечение государственного (муниципального) задания на оказание государственных (муниципальных) услуг (выполнение работ) | B65: 613 | C65: 0801 | D65: 0840144091 | E65: 611 | F65: 586000
A68: Глава Района С.Д.Димитриев

Sheet 13 (hidden)
D1: =дата!$A$2&дата!$D$15 -> Приложение №13
D2: к решению Кукморского
D3: районного Совета
D4: =дата!$D$1 -> от08 декабря 2017 г. №131
A6: Объем бюджетных ассигнований на исполнение
A7: публичных нормативных обязательств на плановый период 2019 и 2020 годов
G8: (рублей)
A9: Наименование | B9: КВСР | C9: Рз, ПР | D9: ЦСР | E9: ВР | F9: Сумма
F10: 2019 год | G10: 2020 год
A11: Итого | F11: =F13+F33+F47 -> 3476000 | G11: =G13+G33+G47 -> 3476000
A13: Управление образования Кукморского муниципального района | B13: 611 | F13: =F14 -> 2410000 | G13: =G14 -> 2410000
A14: ОБРАЗОВАНИЕ | B14: 611 | C14: 0700 | F14: =F15+F21+F27 -> 2410000 | G14: =G15+G21+G27 -> 2410000
A15: Дошкольное образование | B15: 611 | C15: 0701 | F15: =F16 -> 300000 | G15: 300000
A16: Муниципальная программа «Развитие образования Кукморского муниципального района Республики Татарстан на 2018 – 2020 годы» | B16: 611 | C16: 0701 | D16: 0200000000 | F16: 300000 | G16: 300000
A17: Подпрограмма «Развитие дошкольного образования на 2018 – 2020 годы» | B17: 611 | C17: 0701 | D17: 0210000000 | F17: 300000 | G17: 300000
A18: Основное мероприятие "Реализация дошкольного образования в образовательных организациях" | B18: 611 | C18: 0701 | D18: 0210300000 | F18: 300000 | G18: 300000
A19: Развитие дошкольных образовательных учреждений | B19: 611 | C19: 0701 | D19: 0210342000 | F19: 300000 | G19: 300000
A20: Субсидии бюджетным учреждениям на финансовое обеспечение государственного (муниципального) задания на оказание государственных (муниципальных) услуг (выполнение работ) | B20: 611 | C20: 0701 | D20: 0210342000 | E20: 611 | F20: 300000 | G20: 300000
A21: Общее образование | B21: 611 | C21: 0702 | F21: =F22 -> 2000000 | G21: 2000000
A22: Муниципальная программа «Развитие образования Кукморского муниципального района Республики Татарстан на 2018 – 2020 годы» | B22: 611 | C22: 0702 | D22: 0200000000 | F22: 2000000 | G22: 2000000
A23: Подпрограмма «Развитие общего образования на 2018 – 2020 годы» | B23: 611 | C23: 0702 | D23: 0220000000 | F23: 2000000 | G23: 2000000
A24: Основное мероприятие "Реализация общего образования в государственных образовательных организациях" | B24: 611 | C24: 0702 | D24: 0220200000 | F24: 2000000 | G24: 2000000
A25: Развитие общеобразовательных организаций, включая школы – детские сады | B25: 611 | C25: 0702 | D25: 0220242100 | F25: =SUM(F26:F26) -> 2000000 | G25: =SUM(G26:G26) -> 2000000
A26: Субсидии бюджетным учреждениям на финансовое обеспечение государственного (муниципального) задания на оказание государственных (муниципальных) услуг (выполнение работ) | B26: 611 | C26: 0702 | D26: 0220242100 | E26: 611 | F26: 2000000 | G26: 2000000
A27: Дополнительное образование детей | B27: 611 | C27: 0703 | F27: =F30 -> 110000 | G27: 110000
A28: Муниципальная программа «Развитие образования Кукморского муниципального района Республики Татарстан на 2018 – 2020 годы» | B28: 611 | C28: 0703 | D28: 0200000000 | F28: 110000 | G28: 110000
A29: Подпрограмма «Развитие дополнительного образования на 2018 – 2020 годы» | B29: 611 | C29: 0703 | D29: 0230000000 | F29: 110000 | G29: 110000
A30: Основное мероприятие "Организация предоставления дополнительного образования детей в государственных образовательных организациях" | B30: 611 | C30: 0703 | D30: 0230100000 | F30: =F31 -> 110000 | G30: 110000
A31: Развитие муниципальных учреждений дополнительного образования детей многопрофильной направленности | B31: 611 | C31: 0703 | D31: 0230142310 | F31: 110000 | G31: 110000
A32: Субсидии бюджетным учреждениям на финансовое обеспечение государственного (муниципального) задания на оказание государственных (муниципальных) услуг (выполнение работ) | B32: 611 | C32: 0703 | D32: 0230142310 | E32: 611 | F32: 110000 | G32: 110000
A33: Управление по делам молодежи и спорту Кукморского муниципального района | B33: 612 | F33: =F34 -> 131000 | G33: =G34 -> 131000
A34: ОБРАЗОВАНИЕ | B34: 612 | C34: 0700 | F34: =F35+F41 -> 131000 | G34: =G35+G41 -> 131000
A35: Дополнительное образование детей | B35: 612 | C35: 0703 | F35: =F36 -> 73000 | G35: =G36 -> 73000
A36: Муниципальная программа «Развитие образования Кукморского муниципального района Республики Татарстан на 2018 – 2020 годы» | B36: 612 | C36: 0703 | D36: 0200000000 | F36: =F37 -> 73000 | G36: =G37 -> 73000
A37: Подпрограмма «Развитие дополнительного образования на 2018 – 2020 годы» | B37: 612 | C37: 0703 | D37: 0230000000 | F37: =F38 -> 73000 | G37: 73000
A38: Основное мероприятие "Организация предоставления дополнительного образования детей в государственных образовательных организациях" | B38: 612 | C38: 0703 | D38: 0230100000 | F38: 73000 | G38: 73000
A39: Развитие муниципальных учреждений дополнительного образования детей спортивной направленности | B39: 612 | C39: 0703 | D39: 0230142330 | F39: =F40 -> 73000 | G39: =G40 -> 73000
A40: Субсидии бюджетным учреждениям на финансовое обеспечение государственного (муниципального) задания на оказание государственных (муниципальных) услуг (выполнение работ) | B40: 612 | C40: 0703 | D40: 0230142330 | E40: 611 | F40: 73000 | G40: 73000
A41: Молодежная политика и оздоровление детей | B41: 612 | C41: 0707 | F41: =F42 -> 58000 | G41: 58000
A42: Муниципальная программа «Развитие молодежной политики, физической культуры и спорта в Кукморском муниципальном районе Республики Татарстан на 2018 – 2020 годы» | B42: 612 | C42: 0707 | D42: 1000000000 | F42: 58000 | G42: 58000
A43: Подпрограмма «Сельская молодежь Кукморского муниципального района Республики Татарстан на 2018 – 2020 годы» | B43: 612 | C43: 0707 | D43: 1040000000 | F43: 58000 | G43: 58000
A44: Основное мероприятие "Развитие государственной молодежной политики в Республике Татарстан" | B44: 612 | C44: 0707 | D44: 1040100000 | F44: =F45 -> 58000 | G44: 58000
A45: Обеспечение деятельности учреждений молодежной политики | B45: 612 | C45: 0707 | D45: 1040143190 | F45: 58000 | G45: 58000
A46: Субсидии бюджетным учреждениям на финансовое обеспечение государственного (муниципального) задания на оказание государственных (муниципальных) услуг (выполнение работ) | B46: 612 | C46: 0707 | D46: 1040143190 | E46: 611 | F46: 58000 | G46: 58000
A47: Управление культуры Кукморского муниципального района | B47: 613 | F47: =F48+F55 -> 935000 | G47: =G48+G55 -> 935000
A48: ОБРАЗОВАНИЕ | B48: 613 | C48: 0700 | F48: =F49 -> 20000 | G48: 20000
A49: Дополнительное образование детей | B49: 613 | C49: 0703 | F49: 20000 | G49: 20000
A50: Муниципальная программа «Развитие образования Кукморского муниципального района Республики Татарстан на 2018 – 2020 годы» | B50: 613 | C50: 0703 | D50: 0200000000 | F50: 20000 | G50: 20000
A51: Подпрограмма «Развитие дополнительного образования на 2018 – 2020 годы» | B51: 613 | C51: 0703 | D51: 0230000000 | F51: 20000 | G51: 20000
A52: Основное мероприятие "Организация предоставления дополнительного образования детей в государственных образовательных организациях" | B52: 613 | C52: 0703 | D52: 0230100000 | F52: 20000 | G52: 20000
A53: Развитие муниципальных учреждений дополнительного образования детей художественно-эстетической направленности | B53: 613 | C53: 0703 | D53: 0230142320 | F53: 20000 | G53: 20000
A54: Субсидии бюджетным учреждениям на финансовое обеспечение государственного (муниципального) задания на оказание государственных (муниципальных) услуг (выполнение работ) | B54: 613 | C54: 0703 | D54: 0230142320 | E54: 611 | F54: 20000 | G54: 20000
A55: КУЛЬТУРА, КИНЕМАТОГРАФИЯ | B55: 613 | C55: 0800 | F55: =F56 -> 915000 | G55: =G56 -> 915000
A56: Культура | B56: 613 | C56: 0801 | F56: =F57 -> 915000 | G56: =G57 -> 915000
A57: Муниципальная программа «Развитие культуры Кукморского муниципального района Республики Татарстан на 2018 – 2020 годы» | B57: 613 | C57: 0801 | D57: 0800000000 | F57: =F58+F62 -> 915000 | G57: =G58+G62 -> 915000
A58: Подпрограмма «Развитие библиотечного дела на 2018 – 2020 годы» | B58: 613 | C58: 0801 | D58: 0830000000 | F58: =F59 -> 329000 | G58: 329000
A59: Основное мероприятие "Развитие системы библиотечного обслуживания" | B59: 613 | C59: 0801 | D59: 0830100000 | F59: 329000 | G59: 329000
A60: Обеспечение деятельности подведомственных учреждений культуры | B60: 613 | C60: 0801 | D60: 0830144090 | F60: 329000 | G60: 329000
A61: Субсидии бюджетным учреждениям на финансовое обеспечение государственного (муниципального) задания на оказание государственных (муниципальных) услуг (выполнение работ) | B61: 613 | C61: 0801 | D61: 0830144090 | E61: 611 | F61: 329000 | G61: 329000
A62: Подпрограмма «Развитие клубов на 2018 – 2020 годы» | B62: 613 | C62: 0801 | D62: 0840000000 | F62: =F63 -> 586000 | G62: =G63 -> 586000
A63: Основное мероприятие "Развитие современного музыкального искусства" | B63: 613 | C63: 0801 | D63: 0840100000 | F63: =F64 -> 586000 | G63: 586000
A64: Обеспечение деятельности подведомственных учреждений культуры | B64: 613 | C64: 0801 | D64: 0840144091 | F64: 586000 | G64: 586000
A65: Субсидии бюджетным учреждениям на финансовое обеспечение государственного (муниципального) задания на оказание государственных (муниципальных) услуг (выполнение работ) | B65: 613 | C65: 0801 | D65: 0840144091 | E65: 611 | F65: 586000 | G65: 586000
A68: Глава Района С.Д.Димитриев

Sheet 14 (hidden)
C1: =дата!$A$2&дата!$D$16 -> Приложение №14
C2: к решению Кукморского
C3: районного Совета
C4: =дата!$D$1 -> от08 декабря 2017 г. №131
A5: Субсидии из бюджетов поселений на осуществление части полномочий
A6: по решению вопросов местного значения в соответствии
A7: с заключенными соглашениями на финансовый контроль на 2018 год
A8: и на плановый период 2019 и 2020 годов
A10: Наименование поселений | B10: Сумма, рублей
B11: 2018 год | C11: 2019 год | D11: 2020 год
A13: Байлянгарское сельское поселение | B13: =плрег18!BT8*1000 -> 11000 | C13: =B13 -> 11000 | D13: =C13 -> 11000
A14: Березнякское сельское поселение | B14: =плрег18!BT9*1000 -> 8000 | C14: =B14 -> 8000 | D14: 8000
A15: Большекукморское сельское поселение | B15: =плрег18!BT10*1000 -> 25000 | C15: =B15 -> 25000 | D15: 25000
A16: Большесардекское сельское поселение | B16: =плрег18!BT11*1000 -> 25000 | C16: =B16 -> 25000 | D16: 25000
A17: Важашурское сельское поселение | B17: =плрег18!BT12*1000 -> 9000 | C17: =B17 -> 9000 | D17: 9000
A18: Каенсарское сельское поселение | B18: =плрег18!BT13*1000 -> 5000 | C18: =B18 -> 5000 | D18: 5000
A19: Каркаусское сельское поселение | B19: =плрег18!BT14*1000 -> 9000 | C19: =B19 -> 9000 | D19: 9000
A20: Кошкинское сельское поселение | B20: =плрег18!BT15*1000 -> 9000 | C20: =B20 -> 9000 | D20: 9000
A21: Лельвижское сельское поселение | B21: =плрег18!BT16*1000 -> 6000 | C21: =B21 -> 6000 | D21: 6000
A22: Лубянское сельское поселение | B22: =плрег18!BT17*1000 -> 21000 | C22: =B22 -> 21000 | D22: 21000
A23: Мамаширское сельское поселение | B23: =плрег18!BT18*1000 -> 9000 | C23: =B23 -> 9000 | D23: 9000
A24: Манзарасское сельское поселение | B24: =плрег18!BT19*1000 -> 17000 | C24: =B24 -> 17000 | D24: 17000
A25: Нижнеискубашское сельское поселение | B25: =плрег18!BT20*1000 -> 9000 | C25: =B25 -> 9000 | D25: 9000
A26: Нижнерусское сельское поселение | B26: =плрег18!BT21*1000 -> 8000 | C26: =B26 -> 8000 | D26: 8000
A27: Ныртинское сельское поселение | B27: =плрег18!BT22*1000 -> 9000 | C27: =B27 -> 9000 | D27: 9000
A28: Нырьинское сельское поселение | B28: =плрег18!BT23*1000 -> 12000 | C28: =B28 -> 12000 | D28: 12000
A29: Олуязское сельское поселение | B29: =плрег18!BT24*1000 -> 14000 | C29: =B29 -> 14000 | D29: 14000
A30: Ошторма-Юмьинское сельское поселение | B30: =плрег18!BT25*1000 -> 12000 | C30: =B30 -> 12000 | D30: 12000
A31: поселок городского типа Кукмор | B31: =плрег18!BT26*1000 -> 205000 | C31: =B31 -> 205000 | D31: 205000
A32: Починок-Кучуковское сельское поселение | B32: =плрег18!BT27*1000 -> 10000 | C32: =B32 -> 10000 | D32: 10000
A33: Псякское сельское поселение | B33: =плрег18!BT28*1000 -> 8000 | C33: =B33 -> 8000 | D33: 8000
A34: Сардекбашское сельское поселение | B34: =плрег18!BT29*1000 -> 12000 | C34: =B34 -> 12000 | D34: 12000
A35: Село-Чуринское сельское поселение | B35: =плрег18!BT30*1000 -> 12000 | C35: =B35 -> 12000 | D35: 12000
A36: Среднекуморское сельское поселение | B36: =плрег18!BT31*1000 -> 10000 | C36: =B36 -> 10000 | D36: 10000
A37: Туембашское сельское поселение | B37: =плрег18!BT32*1000 -> 10000 | C37: =B37 -> 10000 | D37: 10000
A38: Уркушское сельское поселение | B38: =плрег18!BT33*1000 -> 9000 | C38: =B38 -> 9000 | D38: 9000
A39: Чарлинское сельское поселение | B39: =плрег18!BT34*1000 -> 8000 | C39: =B39 -> 8000 | D39: 8000
A40: Ядыгерьское сельское поселение | B40: =плрег18!BT35*1000 -> 10000 | C40: =B40 -> 10000 | D40: 10000
A41: Яныльское сельское поселение | B41: =плрег18!BT36*1000 -> 16000 | C41: =B41 -> 16000 | D41: 16000
A42: Ятмас-Дусаевское сельское поселение | B42: =плрег18!BT37*1000 -> 6000 | C42: =B42 -> 6000 | D42: 6000
A43: ВСЕГО | B43: =SUM(B13:B42) -> 534000 | C43: =SUM(C13:C42) -> 534000 | D43: =SUM(D13:D42) -> 534000
A46: Глава Района С.Д.Димитриев

Sheet 15 (hidden)
C1: =дата!$A$2&дата!$D$17 -> Приложение №15
C2: к решению Кукморского
C3: районного Совета
C4: =дата!$D$1 -> от08 декабря 2017 г. №131
A5: Иные межбюджетные трансферты из бюджетов поселений на осуществление
A6: полномочий исполнительных комитетов поселений, входящих в состав Кукморского муниципального района Республики Татарстан, по распоряжению земельными участками, государственная собственность на которые не разграничена и которые расположены на территориях поселений, при наличии утвержденных правил землепользования и застройки поселений на 2018 год
A7: и на плановый период 2019 и 2020 годов
A9: Наименование поселений | B9: Сумма, рублей
B10: 2018 год | C10: 2019 год | D10: 2020 год
A12: Байлянгарское сельское поселение | B12: =плрег18!BV8*1000 -> 3200 | C12: =B12 -> 3200 | D12: =C12 -> 3200
A13: Березнякское сельское поселение | B13: =плрег18!BV9*1000 -> 2200 | C13: =B13 -> 2200 | D13: 2200
A14: Большекукморское сельское поселение | B14: =плрег18!BV10*1000 -> 8100 | C14: 8100 | D14: 8100
A15: Большесардекское сельское поселение | B15: =плрег18!BV11*1000 -> 10200 | C15: 10200 | D15: 10200
A16: Важашурское сельское поселение | B16: =плрег18!BV12*1000 -> 2900 | C16: 2900 | D16: 2900
A17: Каенсарское сельское поселение | B17: =плрег18!BV13*1000 -> 1100 | C17: 1100 | D17: 1100
A18: Каркаусское сельское поселение | B18: =плрег18!BV14*1000 -> 2700 | C18: 2700 | D18: 2700
A19: Кошкинское сельское поселение | B19: =плрег18!BV15*1000 -> 3000 | C19: 3000 | D19: 3000
A20: Лельвижское сельское поселение | B20: =плрег18!BV16*1000 -> 1600 | C20: 1600 | D20: 1600
A21: Лубянское сельское поселение | B21: =плрег18!BV17*1000 -> 4600 | C21: 4600 | D21: 4600
A22: Мамаширское сельское поселение | B22: =плрег18!BV18*1000 -> 2400 | C22: 2400 | D22: 2400
A23: Манзарасское сельское поселение | B23: =плрег18!BV19*1000 -> 5900 | C23: 5900 | D23: 5900
A24: Нижнеискубашское сельское поселение | B24: =плрег18!BV20*1000 -> 3000 | C24: 3000 | D24: 3000
A25: Нижнерусское сельское поселение | B25: =плрег18!BV21*1000 -> 2400 | C25: 2400 | D25: 2400
A26: Ныртинское сельское поселение | B26: =плрег18!BV22*1000 -> 2800 | C26: 2800 | D26: 2800
A27: Нырьинское сельское поселение | B27: =плрег18!BV23*1000 -> 4300 | C27: 4300 | D27: 4300
A28: Олуязское сельское поселение | B28: =плрег18!BV24*1000 -> 4400 | C28: 4400 | D28: 4400
A29: Ошторма-Юмьинское сельское поселение | B29: =плрег18!BV25*1000 -> 4300 | C29: =B29 -> 4300 | D29: 4300
A30: поселок городского типа Кукмор | B30: =плрег18!BV26*1000 -> 0 | C30: 0 | D30: 0
A31: Починок-Кучуковское сельское поселение | B31: =плрег18!BV27*1000 -> 3300 | C31: 3300 | D31: 3300
A32: Псякское сельское поселение | B32: =плрег18!BV28*1000 -> 2100 | C32: 2100 | D32: 2100
A33: Сардекбашское сельское поселение | B33: =плрег18!BV29*1000 -> 3700 | C33: 3700 | D33: 3700
A34: Село-Чуринское сельское поселение | B34: =плрег18!BV30*1000 -> 4000 | C34: 4000 | D34: 4000
A35: Среднекуморское сельское поселение | B35: =плрег18!BV31*1000 -> 3100 | C35: 3100 | D35: 3100
A36: Туембашское сельское поселение | B36: =плрег18!BV32*1000 -> 2100 | C36: 2100 | D36: 2100
A37: Уркушское сельское поселение | B37: =плрег18!BV33*1000 -> 1800 | C37: 1800 | D37: 1800
A38: Чарлинское сельское поселение | B38: =плрег18!BV34*1000 -> 2000 | C38: 2000 | D38: 2000
A39: Ядыгерьское сельское поселение | B39: =плрег18!BV35*1000 -> 3000 | C39: 3000 | D39: 3000
A40: Яныльское сельское поселение | B40: =плрег18!BV36*1000 -> 4300 | C40: 4300 | D40: 4300
A41: Ятмас-Дусаевское сельское поселение | B41: =плрег18!BV37*1000 -> 1500 | C41: 1500 | D41: 1500
A42: ВСЕГО | B42: =SUM(B12:B41) -> 100000 | C42: =SUM(C12:C41) -> 100000 | D42: =SUM(D12:D41) -> 100000
A45: Глава Района С.Д.Димитриев

Sheet 16 (hidden)
C1: =дата!$A$2&дата!$D$18 -> Приложение №16
C2: к решению Кукморского
C3: районного Совета
C4: =дата!$D$1 -> от08 декабря 2017 г. №131
A6: Дотации бюджетам поселений
A7: на выравнивание бюджетной обеспеченности поселений на 2018 год
A10: Наименование поселений | B10: Сумма, рублей
B11: всего | C11: в том числе
C12: за счет субвенции из регионального фонда финансовой поддержки поселений | D12: за счет субсидий на выравнивание бюджетной обеспеченности поселений
A13: =плрег18!B8 -> Байлянгарское сельское поселение | B13: =SUM(C13:D13) -> 760300 | C13: =плрег18!W8*1000 -> 10400 | D13: =плрег18!X8*1000 -> 749900
A14: =плрег18!B9 -> Березнякское сельское поселение | B14: =SUM(C14:D14) -> 774700 | C14: =плрег18!W9*1000 -> 6900 | D14: =плрег18!X9*1000 -> 767800
A15: =плрег18!B10 -> Большекукморское сельское поселение | B15: 595900 | C15: =плрег18!W10*1000 -> 26800 | D15: =плрег18!X10*1000 -> 569100
A16: =плрег18!B11 -> Большесардекское сельское поселение | B16: 837600 | C16: =плрег18!W11*1000 -> 32700 | D16: =плрег18!X11*1000 -> 804900
A17: =плрег18!B12 -> Важашурское сельское поселение | B17: 928500 | C17: =плрег18!W12*1000 -> 8700 | D17: =плрег18!X12*1000 -> 919800
A18: =плрег18!B13 -> Каенсарское сельское поселение | B18: 899600 | C18: =плрег18!W13*1000 -> 3400 | D18: =плрег18!X13*1000 -> 896200
A19: =плрег18!B14 -> Каркаусское сельское поселение | B19: 1083200 | C19: =плрег18!W14*1000 -> 8500 | D19: =плрег18!X14*1000 -> 1074700
A20: =плрег18!B15 -> Кошкинское сельское поселение | B20: 648100 | C20: =плрег18!W15*1000 -> 9700 | D20: =плрег18!X15*1000 -> 638400
A21: =плрег18!B16 -> Лельвижское сельское поселение | B21: 679000 | C21: =плрег18!W16*1000 -> 4900 | D21: =плрег18!X16*1000 -> 674100
A22: =плрег18!B17 -> Лубянское сельское поселение | B22: 2816800 | C22: =плрег18!W17*1000 -> 15000 | D22: =плрег18!X17*1000 -> 2801800
A23: =плрег18!B18 -> Мамаширское сельское поселение | B23: 1011400 | C23: =плрег18!W18*1000 -> 7700 | D23: =плрег18!X18*1000 -> 1003700
A24: =плрег18!B19 -> Манзарасское сельское поселение | B24: 1091300 | C24: =плрег18!W19*1000 -> 19800 | D24: =плрег18!X19*1000 -> 1071500
A25: =плрег18!B20 -> Нижнеискубашское сельское поселение | B25: 902500 | C25: =плрег18!W20*1000 -> 9400 | D25: =плрег18!X20*1000 -> 893100
A26: =плрег18!B21 -> Нижнерусское сельское поселение | B26: 1085800 | C26: =плрег18!W21*1000 -> 7200 | D26: =плрег18!X21*1000 -> 1078600
A27: =плрег18!B22 -> Ныртинское сельское поселение | B27: 800600 | C27: =плрег18!W22*1000 -> 8200 | D27: =плрег18!X22*1000 -> 792400
A28: =плрег18!B23 -> Нырьинское сельское поселение | B28: 22600 | C28: =плрег18!W23*1000 -> 13300 | D28: =плрег18!X23*1000 -> 9300
A29: =плрег18!B24 -> Олуязское сельское поселение | B29: 954000 | C29: =плрег18!W24*1000 -> 14300 | D29: =плрег18!X24*1000 -> 939700
A30: =плрег18!B25 -> Ошторма-Юмьинское сельское поселение | B30: 743400 | C30: =плрег18!W25*1000 -> 13500 | D30: =плрег18!X25*1000 -> 729900
A31: =плрег18!B26 -> поселок городского типа Кукмор | B31: 901500 | C31: =плрег18!W26*1000 -> 901500 | D31: =плрег18!X26*1000 -> 0
A32: =плрег18!B27 -> Починок-Кучуковское сельское поселение | B32: 739100 | C32: =плрег18!W27*1000 -> 10000 | D32: =плрег18!X27*1000 -> 729100
A33: =плрег18!B28 -> Псякское сельское поселение | B33: 773000 | C33: =плрег18!W28*1000 -> 6800 | D33: =плрег18!X28*1000 -> 766200
A34: =плрег18!B29 -> Сардекбашское сельское поселение | B34: 794300 | C34: =плрег18!W29*1000 -> 11900 | D34: =плрег18!X29*1000 -> 782400
A35: =плрег18!B30 -> Село-Чуринское сельское поселение | B35: 1093400 | C35: =плрег18!W30*1000 -> 12900 | D35: =плрег18!X30*1000 -> 1080500
A36: =плрег18!B31 -> Среднекуморское сельское поселение | B36: 958500 | C36: =плрег18!W31*1000 -> 9800 | D36: =плрег18!X31*1000 -> 948700
A37: =плрег18!B32 -> Туембашское сельское поселение | B37: 891700 | C37: =плрег18!W32*1000 -> 6700 | D37: =плрег18!X32*1000 -> 885000
A38: =плрег18!B33 -> Уркушское сельское поселение | B38: 863300 | C38: =плрег18!W33*1000 -> 5500 | D38: =плрег18!X33*1000 -> 857800
A39: =плрег18!B34 -> Чарлинское сельское поселение | B39: 847800 | C39: =плрег18!W34*1000 -> 6000 | D39: =плрег18!X34*1000 -> 841800
A40: =плрег18!B35 -> Ядыгерьское сельское поселение | B40: 120400 | C40: =плрег18!W35*1000 -> 9700 | D40: =плрег18!X35*1000 -> 110700
A41: =плрег18!B36 -> Яныльское сельское поселение | B41: 1940100 | C41: =плрег18!W36*1000 -> 13500 | D41: =плрег18!X36*1000 -> 1926600
A42: =плрег18!B37 -> Ятмас-Дусаевское сельское поселение | B42: 832500 | C42: =плрег18!W37*1000 -> 4500 | D42: =плрег18!X37*1000 -> 828000
A43: ВСЕГО | B43: =SUM(B13:B42) -> 27390900 | C43: =SUM(C13:C42) -> 1219200 | D43: =SUM(D13:D42) -> 26171700
A45: Глава Района С.Д.Димитриев

Sheet 17 (hidden)
C1: =дата!$A$2&дата!$D$19 -> Приложение №17
C2: к решению Кукморского
C3: районного Совета
C4: =дата!$D$1 -> от08 декабря 2017 г. №131
A6: Дотации бюджетам поселений
A7: на выравнивание бюджетной обеспеченности поселений на плановый период 2019 года
A9: Наименование поселений | B9: Сумма, рублей
B10: всего | C10: в том числе
C11: за счет субвенции из регионального фонда финансовой поддержки поселений | D11: за счет субсидий на выравнивание бюджетной обеспеченности поселений
A12: =плрег18!B8 -> Байлянгарское сельское поселение | B12: =SUM(C12:D12) -> 794600 | C12: =плрег19!W8*1000 -> 10400 | D12: =плрег19!X8*1000 -> 784200
A13: =плрег18!B9 -> Березнякское сельское поселение | B13: =SUM(C13:D13) -> 805900 | C13: =плрег19!W9*1000 -> 6900 | D13: =плрег19!X9*1000 -> 799000
A14: =плрег18!B10 -> Большекукморское сельское поселение | B14: 635600 | C14: =плрег19!W10*1000 -> 26700 | D14: =плрег19!X10*1000 -> 608900
A15: =плрег18!B11 -> Большесардекское сельское поселение | B15: 877000 | C15: =плрег19!W11*1000 -> 32700 | D15: =плрег19!X11*1000 -> 844300
A16: =плрег18!B12 -> Важашурское сельское поселение | B16: 960600 | C16: =плрег19!W12*1000 -> 8700 | D16: =плрег19!X12*1000 -> 951900
A17: =плрег18!B13 -> Каенсарское сельское поселение | B17: 930500 | C17: =плрег19!W13*1000 -> 3400 | D17: =плрег19!X13*1000 -> 927100
A18: =плрег18!B14 -> Каркаусское сельское поселение | B18: 1118900 | C18: =плрег19!W14*1000 -> 8500 | D18: =плрег19!X14*1000 -> 1110400
A19: =плрег18!B15 -> Кошкинское сельское поселение | B19: 680200 | C19: =плрег19!W15*1000 -> 9700 | D19: =плрег19!X15*1000 -> 670500
A20: =плрег18!B16 -> Лельвижское сельское поселение | B20: 705000 | C20: =плрег19!W16*1000 -> 4900 | D20: =плрег19!X16*1000 -> 700100
A21: =плрег18!B17 -> Лубянское сельское поселение | B21: 2878900 | C21: =плрег19!W17*1000 -> 15000 | D21: =плрег19!X17*1000 -> 2863900
A22: =плрег18!B18 -> Мамаширское сельское поселение | B22: 1047100 | C22: =плрег19!W18*1000 -> 7700 | D22: =плрег19!X18*1000 -> 1039400
A23: =плрег18!B19 -> Манзарасское сельское поселение | B23: 1124900 | C23: =плрег19!W19*1000 -> 19800 | D23: =плрег19!X19*1000 -> 1105100
A24: =плрег18!B20 -> Нижнеискубашское сельское поселение | B24: 941400 | C24: =плрег19!W20*1000 -> 9400 | D24: =плрег19!X20*1000 -> 932000
A25: =плрег18!B21 -> Нижнерусское сельское поселение | B25: 1123400 | C25: =плрег19!W21*1000 -> 7200 | D25: =плрег19!X21*1000 -> 1116200
A26: =плрег18!B22 -> Ныртинское сельское поселение | B26: 835900 | C26: =плрег19!W22*1000 -> 8200 | D26: =плрег19!X22*1000 -> 827700
A27: =плрег18!B23 -> Нырьинское сельское поселение | B27: 49300 | C27: =плрег19!W23*1000 -> 13300 | D27: =плрег19!X23*1000 -> 36000
A28: =плрег18!B24 -> Олуязское сельское поселение | B28: 972400 | C28: =плрег19!W24*1000 -> 14300 | D28: =плрег19!X24*1000 -> 958100
A29: =плрег18!B25 -> Ошторма-Юмьинское сельское поселение | B29: 776400 | C29: =плрег19!W25*1000 -> 13500 | D29: =плрег19!X25*1000 -> 762900
A30: =плрег18!B26 -> поселок городского типа Кукмор | B30: 3958900 | C30: =плрег19!W26*1000 -> 888000 | D30: =плрег19!X26*1000 -> 3070900
A31: =плрег18!B27 -> Починок-Кучуковское сельское поселение | B31: 772800 | C31: =плрег19!W27*1000 -> 10000 | D31: =плрег19!X27*1000 -> 762800
A32: =плрег18!B28 -> Псякское сельское поселение | B32: 800700 | C32: =плрег19!W28*1000 -> 6800 | D32: =плрег19!X28*1000 -> 793900
A33: =плрег18!B29 -> Сардекбашское сельское поселение | B33: 826900 | C33: =плрег19!W29*1000 -> 11900 | D33: =плрег19!X29*1000 -> 815000
A34: =плрег18!B30 -> Село-Чуринское сельское поселение | B34: 1126600 | C34: =плрег19!W30*1000 -> 12900 | D34: =плрег19!X30*1000 -> 1113700
A35: =плрег18!B31 -> Среднекуморское сельское поселение | B35: 991400 | C35: =плрег19!W31*1000 -> 9800 | D35: =плрег19!X31*1000 -> 981600
A36: =плрег18!B32 -> Туембашское сельское поселение | B36: 927800 | C36: =плрег19!W32*1000 -> 6600 | D36: =плрег19!X32*1000 -> 921200
A37: =плрег18!B33 -> Уркушское сельское поселение | B37: 896700 | C37: =плрег19!W33*1000 -> 5500 | D37: =плрег19!X33*1000 -> 891200
A38: =плрег18!B34 -> Чарлинское сельское поселение | B38: 880000 | C38: =плрег19!W34*1000 -> 6000 | D38: =плрег19!X34*1000 -> 874000
A39: =плрег18!B35 -> Ядыгерьское сельское поселение | B39: 143600 | C39: =плрег19!W35*1000 -> 9700 | D39: =плрег19!X35*1000 -> 133900
A40: =плрег18!B36 -> Яныльское сельское поселение | B40: 2529000 | C40: =плрег19!W36*1000 -> 13500 | D40: =плрег19!X36*1000 -> 2515500
A41: =плрег18!B37 -> Ятмас-Дусаевское сельское поселение | B41: 867300 | C41: =плрег19!W37*1000 -> 4400 | D41: =плрег19!X37*1000 -> 862900
A42: ВСЕГО | B42: =SUM(B12:B41) -> 31979700 | C42: =SUM(C12:C41) -> 1205400 | D42: =SUM(D12:D41) -> 30774300
A44: Глава Района С.Д.Димитриев

Sheet 18 (hidden)
C1: =дата!$A$2&дата!$D$20 -> Приложение №18
C2: к решению Кукморского
C3: районного Совета
C4: =дата!$D$1 -> от08 декабря 2017 г. №131
A6: Дотации бюджетам поселений
A7: на выравнивание бюджетной обеспеченности поселений на плановый период 2020 года
A9: Наименование поселений | B9: Сумма, рублей, в том числе
C10: за счет субвенции из регионального фонда финансовой поддержки поселений | D10: за счет субсидий на выравнивание бюджетной обеспеченности поселений
A11: =плрег18!B8 -> Байлянгарское сельское поселение | B11: =SUM(C11:D11) -> 812100 | C11: =плрег20!W8*1000 -> 10400 | D11: =плрег20!X8*1000 -> 801700
A12: =плрег18!B9 -> Березнякское сельское поселение | B12: =SUM(C12:D12) -> 825500 | C12: =плрег20!W9*1000 -> 6900 | D12: =плрег20!X9*1000 -> 818600
A13: =плрег18!B10 -> Большекукморское сельское поселение | B13: 642000 | C13: =плрег20!W10*1000 -> 26700 | D13: =плрег20!X10*1000 -> 615300
A14: =плрег18!B11 -> Большесардекское сельское поселение | B14: 884100 | C14: =плрег20!W11*1000 -> 32600 | D14: =плрег20!X11*1000 -> 851500
A15: =плрег18!B12 -> Важашурское сельское поселение | B15: 981300 | C15: =плрег20!W12*1000 -> 8700 | D15: =плрег20!X12*1000 -> 972600
A16: =плрег18!B13 -> Каенсарское сельское поселение | B16: 953100 | C16: =плрег20!W13*1000 -> 3400 | D16: =плрег20!X13*1000 -> 949700
A17: =плрег18!B14 -> Каркаусское сельское поселение | B17: 1139300 | C17: =плрег20!W14*1000 -> 8500 | D17: =плрег20!X14*1000 -> 1130800
A18: =плрег18!B15 -> Кошкинское сельское поселение | B18: 698200 | C18: =плрег20!W15*1000 -> 9600 | D18: =плрег20!X15*1000 -> 688600
A19: =плрег18!B16 -> Лельвижское сельское поселение | B19: 721700 | C19: =плрег20!W16*1000 -> 4900 | D19: =плрег20!X16*1000 -> 716800
A20: =плрег18!B17 -> Лубянское сельское поселение | B20: 2882000 | C20: =плрег20!W17*1000 -> 15000 | D20: =плрег20!X17*1000 -> 2867000
A21: =плрег18!B18 -> Мамаширское сельское поселение | B21: 1067800 | C21: =плрег20!W18*1000 -> 7700 | D21: =плрег20!X18*1000 -> 1060100
A22: =плрег18!B19 -> Манзарасское сельское поселение | B22: 1129300 | C22: =плрег20!W19*1000 -> 19700 | D22: =плрег20!X19*1000 -> 1109600
A23: =плрег18!B20 -> Нижнеискубашское сельское поселение | B23: 965500 | C23: =плрег20!W20*1000 -> 9400 | D23: =плрег20!X20*1000 -> 956100
A24: =плрег18!B21 -> Нижнерусское сельское поселение | B24: 1148600 | C24: =плрег20!W21*1000 -> 7200 | D24: =плрег20!X21*1000 -> 1141400
A25: =плрег18!B22 -> Ныртинское сельское поселение | B25: 857500 | C25: =плрег20!W22*1000 -> 8200 | D25: =плрег20!X22*1000 -> 849300
A26: =плрег18!B23 -> Нырьинское сельское поселение | B26: 52100 | C26: =плрег20!W23*1000 -> 13300 | D26: =плрег20!X23*1000 -> 38800
A27: =плрег18!B24 -> Олуязское сельское поселение | B27: 970900 | C27: =плрег20!W24*1000 -> 14200 | D27: =плрег20!X24*1000 -> 956700
A28: =плрег18!B25 -> Ошторма-Юмьинское сельское поселение | B28: 792500 | C28: =плрег20!W25*1000 -> 13500 | D28: =плрег20!X25*1000 -> 779000
A29: =плрег18!B26 -> поселок городского типа Кукмор | B29: 4656400 | C29: =плрег20!W26*1000 -> 886600 | D29: =плрег20!X26*1000 -> 3769800
A30: =плрег18!B27 -> Починок-Кучуковское сельское поселение | B30: 792900 | C30: =плрег20!W27*1000 -> 10000 | D30: =плрег20!X27*1000 -> 782900
A31: =плрег18!B28 -> Псякское сельское поселение | B31: 815400 | C31: =плрег20!W28*1000 -> 6700 | D31: =плрег20!X28*1000 -> 808700
A32: =плрег18!B29 -> Сардекбашское сельское поселение | B32: 844600 | C32: =плрег20!W29*1000 -> 11800 | D32: =плрег20!X29*1000 -> 832800
A33: =плрег18!B30 -> Село-Чуринское сельское поселение | B33: 1139300 | C33: =плрег20!W30*1000 -> 12800 | D33: =плрег20!X30*1000 -> 1126500
A34: =плрег18!B31 -> Среднекуморское сельское поселение | B34: 1009800 | C34: =плрег20!W31*1000 -> 9800 | D34: =плрег20!X31*1000 -> 1000000
A35: =плрег18!B32 -> Туембашское сельское поселение | B35: 951400 | C35: =плрег20!W32*1000 -> 6600 | D35: =плрег20!X32*1000 -> 944800
A36: =плрег18!B33 -> Уркушское сельское поселение | B36: 919500 | C36: =плрег20!W33*1000 -> 5500 | D36: =плрег20!X33*1000 -> 914000
A37: =плрег18!B34 -> Чарлинское сельское поселение | B37: 899200 | C37: =плрег20!W34*1000 -> 6000 | D37: =плрег20!X34*1000 -> 893200
A38: =плрег18!B35 -> Ядыгерьское сельское поселение | B38: 151700 | C38: =плрег20!W35*1000 -> 9700 | D38: =плрег20!X35*1000 -> 142000
A39: =плрег18!B36 -> Яныльское сельское поселение | B39: 2533500 | C39: =плрег20!W36*1000 -> 13500 | D39: =плрег20!X36*1000 -> 2520000
A40: =плрег18!B37 -> Ятмас-Дусаевское сельское поселение | B40: 892900 | C40: =плрег20!W37*1000 -> 4400 | D40: =плрег20!X37*1000 -> 888500
A41: ВСЕГО | B41: =SUM(B11:B40) -> 33130100 | C41: =SUM(C11:C40) -> 1203300 | D41: =SUM(D11:D40) -> 31926800
A43: Глава Района С.Д.Димитриев

Sheet 19 (hidden)
B1: =дата!$A$2&дата!$D$21 -> Приложение №19
B2: к решению Кукморского
B3: районного Совета
B4: =дата!$D$1 -> от08 декабря 2017 г. №131
A6: Дотации на сбалансированность поселений в 2018 году
B8: (рублей)
A9: Наименование поселений | B9: Сумма
A12: =плрег18!B8 -> Байлянгарское сельское поселение | B12: =плрег18!Y8*1000 -> 31400
A13: =плрег18!B9 -> Березнякское сельское поселение | B13: =плрег18!Y9*1000 -> 27400
A14: =плрег18!B10 -> Большекукморское сельское поселение | B14: =плрег18!Y10*1000 -> 46800
A15: =плрег18!B11 -> Большесардекское сельское поселение | B15: =плрег18!Y11*1000 -> 32600
A16: =плрег18!B12 -> Важашурское сельское поселение | B16: =плрег18!Y12*1000 -> 29500
A17: =плрег18!B13 -> Каенсарское сельское поселение | B17: =плрег18!Y13*1000 -> 26800
A18: =плрег18!B14 -> Каркаусское сельское поселение | B18: =плрег18!Y14*1000 -> 37800
A19: =плрег18!B15 -> Кошкинское сельское поселение | B19: =плрег18!Y15*1000 -> 27000
A20: =плрег18!B16 -> Лельвижское сельское поселение | B20: =плрег18!Y16*1000 -> 23800
A21: =плрег18!B17 -> Лубянское сельское поселение | B21: =плрег18!Y17*1000 -> 82600
A22: =плрег18!B18 -> Мамаширское сельское поселение | B22: =плрег18!Y18*1000 -> 31100
A23: =плрег18!B19 -> Манзарасское сельское поселение | B23: =плрег18!Y19*1000 -> 40800
A24: =плрег18!B20 -> Нижнеискубашское сельское поселение | B24: =плрег18!Y20*1000 -> 29000
A25: =плрег18!B21 -> Нижнерусское сельское поселение | B25: =плрег18!Y21*1000 -> 31900
A26: =плрег18!B22 -> Ныртинское сельское поселение | B26: =плрег18!Y22*1000 -> 27600
A27: =плрег18!B23 -> Нырьинское сельское поселение | B27: =плрег18!Y23*1000 -> 37900
A28: =плрег18!B24 -> Олуязское сельское поселение | B28: =плрег18!Y24*1000 -> 41900
A29: =плрег18!B25 -> Ошторма-Юмьинское сельское поселение | B29: =плрег18!Y25*1000 -> 27500
A30: =плрег18!B26 -> поселок городского типа Кукмор | B30: =плрег18!Y26*1000 -> 0
A31: =плрег18!B27 -> Починок-Кучуковское сельское поселение | B31: =плрег18!Y27*1000 -> 26100
A32: =плрег18!B28 -> Псякское сельское поселение | B32: =плрег18!Y28*1000 -> 30500
A33: =плрег18!B29 -> Сардекбашское сельское поселение | B33: =плрег18!Y29*1000 -> 27100
A34: =плрег18!B30 -> Село-Чуринское сельское поселение | B34: =плрег18!Y30*1000 -> 38700
A35: =плрег18!B31 -> Среднекуморское сельское поселение | B35: =плрег18!Y31*1000 -> 28900
A36: =плрег18!B32 -> Туембашское сельское поселение | B36: =плрег18!Y32*1000 -> 29000
A37: =плрег18!B33 -> Уркушское сельское поселение | B37: =плрег18!Y33*1000 -> 27200
A38: =плрег18!B34 -> Чарлинское сельское поселение | B38: =плрег18!Y34*1000 -> 31100
A39: =плрег18!B35 -> Ядыгерьское сельское поселение | B39: =плрег18!Y35*1000 -> 29100
A40: =плрег18!B36 -> Яныльское сельское поселение | B40: =плрег18!Y36*1000 -> 78800
A41: =плрег18!B37 -> Ятмас-Дусаевское сельское поселение | B41: =плрег18!Y37*1000 -> 27200
A43: ВСЕГО | B43: =SUM(B12:B42) -> 1007100
A46: Глава Района С.Д.Димитриев

Sheet 20 (hidden)
B1: =дата!$A$2&дата!$D$22 -> Приложение №20
B2: к решению Кукморского
B3: районного Совета
B4: =дата!$D$1 -> от08 декабря 2017 г. №131
A6: Дотации на сбалансированность поселений
A7: на плановый период 2019 и 2020 годов
C9: (рублей)
A10: Наименование поселений | B10: Сумма
B11: 2019 год | C11: 2020 год
A12: =плрег18!B8 -> Байлянгарское сельское поселение | B12: =плрег19!Y8*1000 -> 19100 | C12: =плрег20!Y8*1000 -> 21700
A13: =плрег18!B9 -> Березнякское сельское поселение | B13: =плрег19!Y9*1000 -> 17400 | C13: =плрег20!Y9*1000 -> 19600
A14: =плрег18!B10 -> Большекукморское сельское поселение | B14: =плрег19!Y10*1000 -> 25200 | C14: =плрег20!Y10*1000 -> 29600
A15: =плрег18!B11 -> Большесардекское сельское поселение | B15: =плрег19!Y11*1000 -> 13300 | C15: =плрег20!Y11*1000 -> 17200
A16: =плрег18!B12 -> Важашурское сельское поселение | B16: =плрег19!Y12*1000 -> 18300 | C16: =плрег20!Y12*1000 -> 20600
A17: =плрег18!B13 -> Каенсарское сельское поселение | B17: =плрег19!Y13*1000 -> 18000 | C17: =плрег20!Y13*1000 -> 20000
A18: =плрег18!B14 -> Каркаусское сельское поселение | B18: =плрег19!Y14*1000 -> 24100 | C18: =плрег20!Y14*1000 -> 26900
A19: =плрег18!B15 -> Кошкинское сельское поселение | B19: =плрег19!Y15*1000 -> 16300 | C19: =плрег20!Y15*1000 -> 18800
A20: =плрег18!B16 -> Лельвижское сельское поселение | B20: =плрег19!Y16*1000 -> 15500 | C20: =плрег20!Y16*1000 -> 17400
A21: =плрег18!B17 -> Лубянское сельское поселение | B21: =плрег19!Y17*1000 -> 53600 | C21: =плрег20!Y17*1000 -> 58700
A22: =плрег18!B18 -> Мамаширское сельское поселение | B22: =плрег19!Y18*1000 -> 19700 | C22: =плрег20!Y18*1000 -> 22100
A23: =плрег18!B19 -> Манзарасское сельское поселение | B23: =плрег19!Y19*1000 -> 22900 | C23: =плрег20!Y19*1000 -> 26500
A24: =плрег18!B20 -> Нижнеискубашское сельское поселение | B24: =плрег19!Y20*1000 -> 17800 | C24: =плрег20!Y20*1000 -> 20200
A25: =плрег18!B21 -> Нижнерусское сельское поселение | B25: =плрег19!Y21*1000 -> 20400 | C25: =плрег20!Y21*1000 -> 22900
A26: =плрег18!B22 -> Ныртинское сельское поселение | B26: =плрег19!Y22*1000 -> 17200 | C26: =плрег20!Y22*1000 -> 19400
A27: =плрег18!B23 -> Нырьинское сельское поселение | B27: =плрег19!Y23*1000 -> 22700 | C27: =плрег20!Y23*1000 -> 25700
A28: =плрег18!B24 -> Олуязское сельское поселение | B28: =плрег19!Y24*1000 -> 25100 | C28: =плрег20!Y24*1000 -> 28400
A29: =плрег18!B25 -> Ошторма-Юмьинское сельское поселение | B29: =плрег19!Y25*1000 -> 15500 | C29: =плрег20!Y25*1000 -> 18100
A30: =плрег18!B26 -> поселок городского типа Кукмор | B30: =плрег19!Y26*1000 -> 700 | C30: =плрег20!Y26*1000 -> 88000
A31: =плрег18!B27 -> Починок-Кучуковское сельское поселение | B31: =плрег19!Y27*1000 -> 15600 | C31: =плрег20!Y27*1000 -> 17900
A32: =плрег18!B28 -> Псякское сельское поселение | B32: =плрег19!Y28*1000 -> 19600 | C32: =плрег20!Y28*1000 -> 22100
A33: =плрег18!B29 -> Сардекбашское сельское поселение | B33: =плрег19!Y29*1000 -> 15700 | C33: =плрег20!Y29*1000 -> 18300
A34: =плрег18!B30 -> Село-Чуринское сельское поселение | B34: =плрег19!Y30*1000 -> 23400 | C34: =плрег20!Y30*1000 -> 26500
A35: =плрег18!B31 -> Среднекуморское сельское поселение | B35: =плрег19!Y31*1000 -> 17500 | C35: =плрег20!Y31*1000 -> 19900
A36: =плрег18!B32 -> Туембашское сельское поселение | B36: =плрег19!Y32*1000 -> 18700 | C36: =плрег20!Y32*1000 -> 21000
A37: =плрег18!B33 -> Уркушское сельское поселение | B37: =плрег19!Y33*1000 -> 17700 | C37: =плрег20!Y33*1000 -> 19800
A38: =плрег18!B34 -> Чарлинское сельское поселение | B38: =плрег19!Y34*1000 -> 20300 | C38: =плрег20!Y34*1000 -> 22700
A39: =плрег18!B35 -> Ядыгерьское сельское поселение | B39: =плрег19!Y35*1000 -> 17700 | C39: =плрег20!Y35*1000 -> 20100
A40: =плрег18!B36 -> Яныльское сельское поселение | B40: =плрег19!Y36*1000 -> 61700 | C40: =плрег20!Y36*1000 -> 67400
A41: =плрег18!B37 -> Ятмас-Дусаевское сельское поселение | B41: =плрег19!Y37*1000 -> 18000 | C41: =плрег20!Y37*1000 -> 20100
A43: ВСЕГО | B43: =SUM(B12:B42) -> 628700 | C43: =SUM(C12:C42) -> 797600
A46: Глава Района С.Д.Димитриев

Sheet 21а (hidden)
B1: =дата!$A$2&дата!$D$23 -> Приложение №21
B2: к решению Кукморского
B3: районного Совета
B4: =дата!$D$1 -> от08 декабря 2017 г. №131
A6: Субвенция
A7: на выполнение федеральных полномочий по государственной регистрации
A8: актов гражданского состояния на 2017 год
A10: Наименование поселений | B10: количество записей за 4 квартал 2015 года и 3 квартала 2016 года | C10: Сумма, рублей
A12: =плрег18!B8 -> Байлянгарское сельское поселение | C12: =плрег18!AJ8*1000 -> 0
A13: =плрег18!B9 -> Березнякское сельское поселение | C13: =плрег18!AJ9*1000 -> 0
A14: =плрег18!B10 -> Большекукморское сельское поселение | C14: =плрег18!AJ10*1000 -> 0
A15: =плрег18!B11 -> Большесардекское сельское поселение | C15: =плрег18!AJ11*1000 -> 0
A16: =плрег18!B12 -> Важашурское сельское поселение | C16: =плрег18!AJ12*1000 -> 0
A17: =плрег18!B13 -> Каенсарское сельское поселение | C17: =плрег18!AJ13*1000 -> 0
A18: =плрег18!B14 -> Каркаусское сельское поселение | C18: =плрег18!AJ14*1000 -> 0
A19: =плрег18!B15 -> Кошкинское сельское поселение | C19: =плрег18!AJ15*1000 -> 0
A20: =плрег18!B16 -> Лельвижское сельское поселение | C20: =плрег18!AJ16*1000 -> 0
A21: =плрег18!B17 -> Лубянское сельское поселение | C21: =плрег18!AJ17*1000 -> 0
A22: =плрег18!B18 -> Мамаширское сельское поселение | C22: =плрег18!AJ18*1000 -> 0
A23: =плрег18!B19 -> Манзарасское сельское поселение | C23: =плрег18!AJ19*1000 -> 0
A24: =плрег18!B20 -> Нижнеискубашское сельское поселение | C24: =плрег18!AJ20*1000 -> 0
A25: =плрег18!B21 -> Нижнерусское сельское поселение | C25: =плрег18!AJ21*1000 -> 0
A26: =плрег18!B22 -> Ныртинское сельское поселение | C26: =плрег18!AJ22*1000 -> 0
A27: =плрег18!B23 -> Нырьинское сельское поселение | C27: =плрег18!AJ23*1000 -> 0
A28: =плрег18!B24 -> Олуязское сельское поселение | C28: =плрег18!AJ24*1000 -> 0
A29: =плрег18!B25 -> Ошторма-Юмьинское сельское поселение | C29: =плрег18!AJ25*1000 -> 0
A30: =плрег18!B26 -> поселок городского типа Кукмор | C30: =плрег18!AJ26*1000 -> 0
A31: =плрег18!B27 -> Починок-Кучуковское сельское поселение | C31: =плрег18!AJ27*1000 -> 0
A32: =плрег18!B28 -> Псякское сельское поселение | C32: =плрег18!AJ28*1000 -> 0
A33: =плрег18!B29 -> Сардекбашское сельское поселение | C33: =плрег18!AJ29*1000 -> 0
A34: =плрег18!B30 -> Село-Чуринское сельское поселение | C34: =плрег18!AJ30*1000 -> 0
A35: =плрег18!B31 -> Среднекуморское сельское поселение | C35: =плрег18!AJ31*1000 -> 0
A36: =плрег18!B32 -> Туембашское сельское поселение | C36: =плрег18!AJ32*1000 -> 0
A37: =плрег18!B33 -> Уркушское сельское поселение | C37: =плрег18!AJ33*1000 -> 0
A38: =плрег18!B34 -> Чарлинское сельское поселение | C38: =плрег18!AJ34*1000 -> 0
A39: =плрег18!B35 -> Ядыгерьское сельское поселение | C39: =плрег18!AJ35*1000 -> 0
A40: =плрег18!B36 -> Яныльское сельское поселение | C40: =плрег18!AJ36*1000 -> 0
A41: =плрег18!B37 -> Ятмас-Дусаевское сельское поселение | C41: =плрег18!AJ37*1000 -> 0
A42: ВСЕГО | B42: =SUM(B12:B41) -> 0 | C42: =SUM(C12:C41) -> 0
A45: Глава Района С.Д.Димитриев

Sheet 22а (hidden)
C1: =дата!$A$2&дата!$D$24 -> Приложение №22
C2: к решению Кукморского
C3: районного Совета
C4: =дата!$D$1 -> от08 декабря 2017 г. №131
A6: Субвенция
A7: на выполнение федеральных полномочий по государственной регистрации
A8: актов гражданского состояния на плановый период 2018 и 2019 годов
D9: (рублей)
A10: Наименование поселений | B10: количество записей за 4 квартал 2015 года и 3 квартала 2016 года | C10: Сумма
C11: 2018 год | D11: 2019 год
A12: =плрег18!B8 -> Байлянгарское сельское поселение | B12: ='21а'!B12 -> 0 | C12: =плрег19!AK8*1000 -> 0 | D12: =плрег20!AK8*1000 -> 0
A13: =плрег18!B9 -> Березнякское сельское поселение | B13: ='21а'!B13 -> 0 | C13: =плрег19!AK9*1000 -> 0 | D13: =плрег20!AK9*1000 -> 0
A14: =плрег18!B10 -> Большекукморское сельское поселение | B14: ='21а'!B14 -> 0 | C14: =плрег19!AK10*1000 -> 0 | D14: =плрег20!AK10*1000 -> 0
A15: =плрег18!B11 -> Большесардекское сельское поселение | B15: ='21а'!B15 -> 0 | C15: =плрег19!AK11*1000 -> 0 | D15: =плрег20!AK11*1000 -> 0
A16: =плрег18!B12 -> Важашурское сельское поселение | B16: ='21а'!B16 -> 0 | C16: =плрег19!AK12*1000 -> 0 | D16: =плрег20!AK12*1000 -> 0
A17: =плрег18!B13 -> Каенсарское сельское поселение | B17: ='21а'!B17 -> 0 | C17: =плрег19!AK13*1000 -> 0 | D17: =плрег20!AK13*1000 -> 0
A18: =плрег18!B14 -> Каркаусское сельское поселение | B18: ='21а'!B18 -> 0 | C18: =плрег19!AK14*1000 -> 0 | D18: =плрег20!AK14*1000 -> 0
A19: =плрег18!B15 -> Кошкинское сельское поселение | B19: ='21а'!B19 -> 0 | C19: =плрег19!AK15*1000 -> 0 | D19: =плрег20!AK15*1000 -> 0
A20: =плрег18!B16 -> Лельвижское сельское поселение | B20: ='21а'!B20 -> 0 | C20: =плрег19!AK16*1000 -> 0 | D20: =плрег20!AK16*1000 -> 0
A21: =плрег18!B17 -> Лубянское сельское поселение | B21: ='21а'!B21 -> 0 | C21: =плрег19!AK17*1000 -> 0 | D21: =плрег20!AK17*1000 -> 0
A22: =плрег18!B18 -> Мамаширское сельское поселение | B22: ='21а'!B22 -> 0 | C22: =плрег19!AK18*1000 -> 0 | D22: =плрег20!AK18*1000 -> 0
A23: =плрег18!B19 -> Манзарасское сельское поселение | B23: ='21а'!B23 -> 0 | C23: =плрег19!AK19*1000 -> 0 | D23: =плрег20!AK19*1000 -> 0
A24: =плрег18!B20 -> Нижнеискубашское сельское поселение | B24: ='21а'!B24 -> 0 | C24: =плрег19!AK20*1000 -> 0 | D24: =плрег20!AK20*1000 -> 0
A25: =плрег18!B21 -> Нижнерусское сельское поселение | B25: ='21а'!B25 -> 0 | C25: =плрег19!AK21*1000 -> 0 | D25: =плрег20!AK21*1000 -> 0
A26: =плрег18!B22 -> Ныртинское сельское поселение | B26: ='21а'!B26 -> 0 | C26: =плрег19!AK22*1000 -> 0 | D26: =плрег20!AK22*1000 -> 0
A27: =плрег18!B23 -> Нырьинское сельское поселение | B27: ='21а'!B27 -> 0 | C27: =плрег19!AK23*1000 -> 0 | D27: =плрег20!AK23*1000 -> 0
A28: =плрег18!B24 -> Олуязское сельское поселение | B28: ='21а'!B28 -> 0 | C28: =плрег19!AK24*1000 -> 0 | D28: =плрег20!AK24*1000 -> 0
A29: =плрег18!B25 -> Ошторма-Юмьинское сельское поселение | B29: ='21а'!B29 -> 0 | C29: =плрег19!AK25*1000 -> 0 | D29: =плрег20!AK25*1000 -> 0
A30: =плрег18!B26 -> поселок городского типа Кукмор | B30: ='21а'!B30 -> 0 | C30: =плрег19!AK26*1000 -> 0 | D30: =плрег20!AK26*1000 -> 0
A31: =плрег18!B27 -> Починок-Кучуковское сельское поселение | B31: ='21а'!B31 -> 0 | C31: =плрег19!AK27*1000 -> 0 | D31: =плрег20!AK27*1000 -> 0
A32: =плрег18!B28 -> Псякское сельское поселение | B32: ='21а'!B32 -> 0 | C32: =плрег19!AK28*1000 -> 0 | D32: =плрег20!AK28*1000 -> 0
A33: =плрег18!B29 -> Сардекбашское сельское поселение | B33: ='21а'!B33 -> 0 | C33: =плрег19!AK29*1000 -> 0 | D33: =плрег20!AK29*1000 -> 0
A34: =плрег18!B30 -> Село-Чуринское сельское поселение | B34: ='21а'!B34 -> 0 | C34: =плрег19!AK30*1000 -> 0 | D34: =плрег20!AK30*1000 -> 0
A35: =плрег18!B31 -> Среднекуморское сельское поселение | B35: ='21а'!B35 -> 0 | C35: =плрег19!AK31*1000 -> 0 | D35: =плрег20!AK31*1000 -> 0
A36: =плрег18!B32 -> Туембашское сельское поселение | B36: ='21а'!B36 -> 0 | C36: =плрег19!AK32*1000 -> 0 | D36: =плрег20!AK32*1000 -> 0
A37: =плрег18!B33 -> Уркушское сельское поселение | B37: ='21а'!B37 -> 0 | C37: =плрег19!AK33*1000 -> 0 | D37: =плрег20!AK33*1000 -> 0
A38: =плрег18!B34 -> Чарлинское сельское поселение | B38: ='21а'!B38 -> 0 | C38: =плрег19!AK34*1000 -> 0 | D38: =плрег20!AK34*1000 -> 0
A39: =плрег18!B35 -> Ядыгерьское сельское поселение | B39: ='21а'!B39 -> 0 | C39: =плрег19!AK35*1000 -> 0 | D39: =плрег20!AK35*1000 -> 0
A40: =плрег18!B36 -> Яныльское сельское поселение | B40: ='21а'!B40 -> 0 | C40: =плрег19!AK36*1000 -> 0 | D40: =плрег20!AK36*1000 -> 0
A41: =плрег18!B37 -> Ятмас-Дусаевское сельское поселение | B41: ='21а'!B41 -> 0 | C41: =плрег19!AK37*1000 -> 0 | D41: =плрег20!AK37*1000 -> 0
A43: ВСЕГО | B43: =SUM(B12:B42) -> 0 | C43: =SUM(C12:C42) -> 0 | D43: =SUM(D12:D42) -> 0
A46: Глава Района С.Д.Димитриев

Sheet 21
C1: Приложение №6
C2: к решению Совета Кукморского
C3: муниципального района
C4: =дата!C1 -> от____марта 2019 г. №______
A6: Межбюджетные трансферты, получаемые
A7: из бюджета Республики Татарстан и бюджетов поселений в 2019 году
D8: (рублей)
A9: Наименование | B9: код дохода | D9: сумма
B11: квд | C11: косгу
A12: Итого | D12: 844633883
A13: Дотации бюджетам муниципальных районов на выравнивание бюджетной обеспеченности | B13: 2.02.15001.05.0000.150 | C13: 1.5.1 | D13: 74082000
A14: Прочие субсидии бюджетам муниципальных районов | B14: 2.02.29999.05.0000.150 | C14: 1.5.1 | D14: 357977083.1
A15: Субвенции бюджетам муниципальных районов на выполнение передаваемых полномочий субъектов Российской Федерации | B15: 2.02.30024.05.0000.150 | C15: 1.5.1 | D15: 398214800
A16: Субвенции бюджетам муниципальных районов на осуществление первичного воинского учета на территориях, где отсутствуют военные комиссариаты | B16: 2.02.35118.05.0000.150 | C16: 1.5.1 | D16: 2764900
A17: Субвенции бюджетам муниципальных районов на осуществление полномочий по составлению (изменению) списков кандидатов в присяжные заседатели федеральных судов общей юрисдикции в Российской Федерации | B17: 2.02.35120.05.0000.150 | C17: 1.5.1 | D17: 15900
A18: Субвенции бюджетам муниципальных районов на государственную регистрацию актов гражданского состояния | B18: 2.02.35930.05.0000.150 | C18: 1.5.1 | D18: 2707200
A19: Межбюджетные трансферты, передаваемые бюджетам муниципальных районов из бюджетов поселений на осуществление части полномочий по решению вопросов местного значения в соответствии с заключенными соглашениями | B19: 2.02.40014.05.0000.150 | C19: 1.5.1 | D19: 8872000
A22: Глава Района С.Д.Димитриев

Sheet 22 (hidden)
D1: Приложение №22
D2: к решению Кукморского
D3: районного Совета
D4: от 08 декабря 2017 г. №
A6: Межбюджетные трансферты, получаемые из бюджета
A7: Республики Татарстан и бюджетов поселений в плановом периоде 2019 и 2020 годов
E8: (рублей)
A9: Наименование | B9: код дохода | D9: сумма
B11: квд | C11: косгу | D11: 2019 год | E11: 2020 год
A12: ИТОГО | D12: =D14 -> 750404590 | E12: =E14 -> 738003410 | F12: =D12-D27-D28 -> 737767500 | G12: =E12-E27-E28 -> 724366320
A14: БЕЗВОЗМЕЗДНЫЕ ПОСТУПЛЕНИЯ | B14: 2.00.00.000.00.0.000 | C14: 0.0.0 | D14: =D15 -> 750404590 | E14: =E15 -> 738003410
A15: БЕЗВОЗМЕЗДНЫЕ ПОСТУПЛЕНИЯ ОТ ДРУГИХ БЮДЖЕТОВ БЮДЖЕТНОЙ СИСТЕМЫ РОССИЙСКОЙ ФЕДЕРАЦИИ | B15: 2.02.00.000.00.0.000 | C15: 0.0.0 | D15: =D16+D18+D20+D25 -> 750404590 | E15: =E16+E18+E20+E25 -> 738003410
A16: Дотации бюджетам субъектов Российской Федерации и муниципальных образований | B16: 2.02.10.000.00.0.000 | C16: 1.5.1 | D16: =SUM(D17) -> 38930900 | E16: =SUM(E17) -> 25478300
A17: Дотации бюджетам муниципальных районов на выравнивание бюджетной обеспеченности | B17: 2.02.15.001.05.0.000 | C17: 1.5.1 | D17: 38930900 | E17: 25478300
A18: Субсидии бюджетам субъектов Российской Федерации и муниципальных образований (межбюджетные субсидии) | B18: 2.02.20.000.00.0.000 | C18: 1.5.1 | D18: =SUM(D19:D19) -> 308073500 | E18: =SUM(E19:E19) -> 307671000
A19: Прочие субсидии бюджетам муниципальных районов | B19: 2.02.29.999.05.0.000 | C19: 1.5.1 | D19: 308073500 | E19: 307671000
A20: Субвенции бюджетам субъектов Российской Федерации и муниципальных образований | B20: 2.02.30.000.00.0.000 | C20: 1.5.1 | D20: =SUM(D21:D24) -> 390763100 | E20: =SUM(E21:E24) -> 391217020
A21: Субвенции бюджетам муниципальных районов на государственную регистрацию актов гражданского состояния | B21: 2.02.35.930.05.0.000 | C21: 1.5.1 | D21: 1770600 | E21: 1829200
A22: Субвенции бюджетам муниципальных районов на осуществление первичного воинского учета на территориях, где отсутствуют военные комиссариаты | B22: 2.02.35.118.05.0.000 | C22: 1.5.1 | D22: 2681700 | E22: 2780800
A23: Субвенции бюджетам муниципальных районов на составление (изменение) списков кандидатов в присяжные заседатели федеральных судов общей юрисдикции в Российской Федерации | B23: 2.02.35.120.05.0.000 | C23: 1.5.1 | D23: 13000 | E23: 21000
A24: Субвенции бюджетам муниципальных районов на выполнение передаваемых полномочий субъектов Российской Федерации | B24: 2.02.30.024.05.0.000 | C24: 1.5.1 | D24: 386297800 | E24: 386586020
A25: Иные межбюджетные трансферты | B25: 2.02.40.000.00.0.000 | C25: 1.5.1 | D25: =SUM(D26:D28) -> 12637090 | E25: =SUM(E26:E28) -> 13637090
A26: Иные межбюджетные трансферты на комплектование книжных фондов библиотек | B26: 2.02.40.025.05.0.000 | C26: 1.5.1 | D26: 0 | E26: 0
A27: Межбюджетные трансферты, передаваемые бюджетам муниципальных районов из бюджетов поселений на осуществление части полномочий по решению вопросов местного значения в соответствии с заключенными соглашениями | B27: 2.02.40.014.05.0.000 | C27: 1.5.1 | D27: 5237090 | E27: 5237090
A28: Прочие межбюджетные трансферты, передаваемые бюджетам муниципальных районов | B28: 2.02.49.999.05.0.000 | C28: 1.5.1 | D28: 7400000 | E28: 8400000
A30: Глава Района С.Д.Димитриев

Sheet 23а (hidden)
C1: =дата!$A$2&дата!$D$25 -> Приложение №23
C2: к решению Кукморского
C3: районного Совета
C4: =дата!$D$1 -> от08 декабря 2017 г. №131
A6: Субвенция
A7: на осуществление полномочий по первичному воинскому учету на территориях,
A8: где отсутствуют военные комиссариаты на 2018 год
A10: Наименование муниципального образования, в котором отсутствует военный комиссариат | B10: Количество граждан, состоящих на воинском учете | C10: Количество освобожденных работников, требующихся для осуществления воинского учета | D10: сумма на год, рублей
A11: Байлянгарское сельское поселение | B11: 301 | C11: - | D11: =плрег18!AX8*1000 -> 90600 | E11: 40 | F11: =D11-E11 -> 90560
A12: Березнякское сельское поселение | B12: 186 | C12: - | D12: =плрег18!AX9*1000 -> 57800 | E12: 32 | F12: =D12-E12 -> 57768
A13: Большекукморское сельское поселение | B13: 672 | C13: 1 | D13: =плрег18!AX10*1000 -> 203100 | E13: 131 | F13: 202969 | G13: 10600
A14: Большесардекское сельское поселение | B14: 855 | C14: 1 | D14: =плрег18!AX11*1000 -> 268600 | E14: 170 | F14: 268430
A15: Важашурское сельское поселение | B15: 274 | C15: - | D15: =плрег18!AX12*1000 -> 79700 | E15: 44 | F15: 79656
A16: Каенсарское сельское поселение | B16: 101 | C16: - | D16: =плрег18!AX13*1000 -> 31600 | E16: 27 | F16: 31573
A17: Каркаусское сельское поселение | B17: 196 | C17: - | D17: =плрег18!AX14*1000 -> 68400 | E17: 36 | F17: 68364
A18: Кошкинское сельское поселение | B18: 317 | C18: - | D18: =плрег18!AX15*1000 -> 93000 | E18: 39 | F18: 92961
A19: Лельвижское сельское поселение | B19: 152 | C19: - | D19: =плрег18!AX16*1000 -> 46200 | E19: 31 | F19: 46169
A20: Лубянское сельское поселение | B20: 241 | C20: - | D20: =плрег18!AX17*1000 -> 87300 | E20: 38 | F20: 87262
A21: Мамаширское сельское поселение | B21: 187 | C21: - | D21: =плрег18!AX18*1000 -> 61400 | E21: 34 | F21: 61366
A22: Манзарасское сельское поселение | B22: 487 | C22: - | D22: =плрег18!AX19*1000 -> 149300 | E22: 56 | F22: 149244
A23: Нижнеискубашское сельское поселение | B23: 245 | C23: - | D23: =плрег18!AX20*1000 -> 80100 | E23: 40 | F23: 80060
A24: Нижнерусское сельское поселение | B24: 205 | C24: - | D24: =плрег18!AX21*1000 -> 60500 | E24: 37 | F24: 60463
A25: Ныртинское сельское поселение | B25: 193 | C25: - | D25: =плрег18!AX22*1000 -> 66200 | E25: 43 | F25: 66157
A26: Нырьинское сельское поселение | B26: 434 | C26: - | D26: =плрег18!AX23*1000 -> 130700 | E26: 47 | F26: 130653
A27: Олуязское сельское поселение | B27: 356 | C27: - | D27: =плрег18!AX24*1000 -> 107000 | E27: 47 | F27: 106953
A28: Ошторма-Юмьинское сельское поселение | B28: 385 | C28: - | D28: =плрег18!AX25*1000 -> 121100 | E28: 50 | F28: 121050
B29: 0 | D29: =плрег18!AX26*1000 -> 0
A30: Починок-Кучуковское сельское поселение | B30: 299 | C30: - | D30: =плрег18!AX27*1000 -> 89800 | E30: 40 | F30: 89760
A31: Псякское сельское поселение | B31: 171 | C31: - | D31: =плрег18!AX28*1000 -> 53200 | E31: 34 | F31: 53166
A32: Сардекбашское сельское поселение | B32: 341 | C32: - | D32: =плрег18!AX29*1000 -> 107700 | E32: 44 | F32: 107656
A33: Село-Чуринское сельское поселение | B33: 361 | C33: - | D33: =плрег18!AX30*1000 -> 111400 | E33: 49 | F33: 111351
A34: Среднекуморское сельское поселение | B34: 335 | C34: - | D34: =плрег18!AX31*1000 -> 105500 | E34: 45 | F34: 105455
A35: Туембашское сельское поселение | B35: 152 | C35: - | D35: =плрег18!AX32*1000 -> 48100 | E35: 33 | F35: 48067
A36: Уркушское сельское поселение | B36: 146 | C36: - | D36: =плрег18!AX33*1000 -> 48100 | E36: 31 | F36: 48069
A37: Чарлинское сельское поселение | B37: 186 | C37: - | D37: =плрег18!AX34*1000 -> 56100 | E37: 34 | F37: 56066
A38: Ядыгерьское сельское поселение | B38: 265 | C38: - | D38: =плрег18!AX35*1000 -> 82000 | E38: 39 | F38: 81961
A39: Яныльское сельское поселение | B39: 371 | C39: - | D39: =плрег18!AX36*1000 -> 114200 | E39: 43 | F39: 114157
A40: Ятмас-Дусаевское сельское поселение | B40: 109 | C40: - | D40: =плрег18!AX37*1000 -> 34100 | E40: 32 | F40: 34068
A41: ИТОГО | B41: =SUM(B11:B40) -> 8523 | C41: =SUM(C11:C40) -> 2 | D41: =SUM(D11:D40) -> 2652800 | E41: =SUM(E11:E40) -> 1366 | F41: 2651434
A44: Глава Района С.Д.Димитриев

Sheet 24а (hidden)
C1: =дата!$A$2&дата!$D$26 -> Приложение №24
C2: к решению Кукморского
C3: районного Совета
C4: =дата!$D$1 -> от08 декабря 2017 г. №131
A6: Субвенция
A7: на осуществление полномочий по первичному воинскому учету на территориях,
A8: где отсутствуют военные комиссариаты на плановый период 2019 и 2020 годов
E9: (рублей)
A10: Наименование муниципального образования, в котором отсутствует военный комиссариат | B10: Количество граждан, состоящих на воинском учете | C10: Количество освобожденных работников, требующихся для осуществления воинского учета | D10: Сумма
D11: 2019 год | E11: 2020 год
A12: Байлянгарское сельское поселение | B12: ='23а'!B11 -> 301 | C12: - | D12: =плрег19!AY8*1000 -> 90600 | E12: =плрег20!AY8*1000 -> 90600 | F12: 40 | G12: =E12-F12 -> 90560
A13: Березнякское сельское поселение | B13: ='23а'!B12 -> 186 | C13: - | D13: =плрег19!AY9*1000 -> 57800 | E13: =плрег20!AY9*1000 -> 57800 | F13: 32 | G13: =E13-F13 -> 57768
A14: Большекукморское сельское поселение | B14: ='23а'!B13 -> 672 | C14: 1 | D14: =плрег19!AY10*1000 -> 232000 | E14: =плрег20!AY10*1000 -> 331100 | F14: 131 | G14: 330969
A15: Большесардекское сельское поселение | B15: ='23а'!B14 -> 855 | C15: 1 | D15: =плрег19!AY11*1000 -> 268600 | E15: =плрег20!AY11*1000 -> 268600 | F15: 170 | G15: 268430
A16: Важашурское сельское поселение | B16: ='23а'!B15 -> 274 | C16: - | D16: =плрег19!AY12*1000 -> 79700 | E16: =плрег20!AY12*1000 -> 79700 | F16: 44 | G16: 79656
A17: Каенсарское сельское поселение | B17: ='23а'!B16 -> 101 | C17: - | D17: =плрег19!AY13*1000 -> 31600 | E17: =плрег20!AY13*1000 -> 31600 | F17: 27 | G17: 31573
A18: Каркаусское сельское поселение | B18: ='23а'!B17 -> 196 | C18: - | D18: =плрег19!AY14*1000 -> 68400 | E18: =плрег20!AY14*1000 -> 68400 | F18: 36 | G18: 68364
A19: Кошкинское сельское поселение | B19: ='23а'!B18 -> 317 | C19: - | D19: =плрег19!AY15*1000 -> 93000 | E19: =плрег20!AY15*1000 -> 93000 | F19: 39 | G19: 92961
A20: Лельвижское сельское поселение | B20: ='23а'!B19 -> 152 | C20: - | D20: =плрег19!AY16*1000 -> 46200 | E20: =плрег20!AY16*1000 -> 46200 | F20: 31 | G20: 46169
A21: Лубянское сельское поселение | B21: ='23а'!B20 -> 241 | C21: - | D21: =плрег19!AY17*1000 -> 87300 | E21: =плрег20!AY17*1000 -> 87300 | F21: 38 | G21: 87262
A22: Мамаширское сельское поселение | B22: ='23а'!B21 -> 187 | C22: - | D22: =плрег19!AY18*1000 -> 61400 | E22: =плрег20!AY18*1000 -> 61400 | F22: 34 | G22: 61366
A23: Манзарасское сельское поселение | B23: ='23а'!B22 -> 487 | C23: - | D23: =плрег19!AY19*1000 -> 149300 | E23: =плрег20!AY19*1000 -> 149300 | F23: 56 | G23: 149244
A24: Нижнеискубашское сельское поселение | B24: ='23а'!B23 -> 245 | C24: - | D24: =плрег19!AY20*1000 -> 80100 | E24: =плрег20!AY20*1000 -> 80100 | F24: 40 | G24: 80060
A25: Нижнерусское сельское поселение | B25: ='23а'!B24 -> 205 | C25: - | D25: =плрег19!AY21*1000 -> 60500 | E25: =плрег20!AY21*1000 -> 60500 | F25: 37 | G25: 60463
A26: Ныртинское сельское поселение | B26: ='23а'!B25 -> 193 | C26: - | D26: =плрег19!AY22*1000 -> 66200 | E26: =плрег20!AY22*1000 -> 66200 | F26: 43 | G26: 66157
A27: Нырьинское сельское поселение | B27: ='23а'!B26 -> 434 | C27: - | D27: =плрег19!AY23*1000 -> 130700 | E27: =плрег20!AY23*1000 -> 130700 | F27: 47 | G27: 130653
A28: Олуязское сельское поселение | B28: ='23а'!B27 -> 356 | C28: - | D28: =плрег19!AY24*1000 -> 107000 | E28: =плрег20!AY24*1000 -> 107000 | F28: 47 | G28: 106953
A29: Ошторма-Юмьинское сельское поселение | B29: ='23а'!B28 -> 385 | C29: - | D29: =плрег19!AY25*1000 -> 121100 | E29: =плрег20!AY25*1000 -> 121100 | F29: 50 | G29: 121050
B30: ='23а'!B29 -> 0 | D30: =плрег19!AY26*1000 -> 0 | E30: =плрег20!AY26*1000 -> 0
A31: Починок-Кучуковское сельское поселение | B31: ='23а'!B30 -> 299 | C31: - | D31: =плрег19!AY27*1000 -> 89800 | E31: =плрег20!AY27*1000 -> 89800 | F31: 40 | G31: 89760
A32: Псякское сельское поселение | B32: ='23а'!B31 -> 171 | C32: - | D32: =плрег19!AY28*1000 -> 53200 | E32: =плрег20!AY28*1000 -> 53200 | F32: 34 | G32: 53166
A33: Сардекбашское сельское поселение | B33: ='23а'!B32 -> 341 | C33: - | D33: =плрег19!AY29*1000 -> 107700 | E33: =плрег20!AY29*1000 -> 107700 | F33: 44 | G33: 107656
A34: Село-Чуринское сельское поселение | B34: ='23а'!B33 -> 361 | C34: - | D34: =плрег19!AY30*1000 -> 111400 | E34: =плрег20!AY30*1000 -> 111400 | F34: 49 | G34: 111351
A35: Среднекуморское сельское поселение | B35: ='23а'!B34 -> 335 | C35: - | D35: =плрег19!AY31*1000 -> 105500 | E35: =плрег20!AY31*1000 -> 105500 | F35: 45 | G35: 105455
A36: Туембашское сельское поселение | B36: ='23а'!B35 -> 152 | C36: - | D36: =плрег19!AY32*1000 -> 48100 | E36: =плрег20!AY32*1000 -> 48100 | F36: 33 | G36: 48067
A37: Уркушское сельское поселение | B37: ='23а'!B36 -> 146 | C37: - | D37: =плрег19!AY33*1000 -> 48100 | E37: =плрег20!AY33*1000 -> 48100 | F37: 31 | G37: 48069
A38: Чарлинское сельское поселение | B38: ='23а'!B37 -> 186 | C38: - | D38: =плрег19!AY34*1000 -> 56100 | E38: =плрег20!AY34*1000 -> 56100 | F38: 34 | G38: 56066
A39: Ядыгерьское сельское поселение | B39: ='23а'!B38 -> 265 | C39: - | D39: =плрег19!AY35*1000 -> 82000 | E39: =плрег20!AY35*1000 -> 82000 | F39: 39 | G39: 81961
A40: Яныльское сельское поселение | B40: ='23а'!B39 -> 371 | C40: - | D40: =плрег19!AY36*1000 -> 114200 | E40: =плрег20!AY36*1000 -> 114200 | F40: 43 | G40: 114157
A41: Ятмас-Дусаевское сельское поселение | B41: ='23а'!B40 -> 109 | C41: - | D41: =плрег19!AY37*1000 -> 34100 | E41: =плрег20!AY37*1000 -> 34100 | F41: 32 | G41: 34068
A42: ИТОГО | B42: =SUM(B12:B41) -> 8523 | C42: =SUM(C12:C41) -> 2 | D42: =SUM(D12:D41) -> 2681700 | E42: =SUM(E12:E41) -> 2780800 | F42: =SUM(F12:F41) -> 1366 | G42: 2779434
A45: Глава Района С.Д.Димитриев

Sheet плрег18 (hidden)
A1: =BY10 -> 0 | B1: допкод МФ РТ | D1: План регулирования на | G1: 2018 | H1: год | Y1: =AB40-Y2 -> -700.8 | AA1: 13200 | AB1: 13110 | AC1: 13120 | AD1: 13310 | AE1: 13313 | AF1: 13321 | AG1: 13322 | AH1: 13300 | AI1: 13300 | AJ1: 13300 | AK1: 13300 | AL1: 13300 | AM1: 13300 | AN1: 13300 | AO1: 13300 | AP1: 13300 | AQ1: 13300 | AR1: 13300 | AS1: 13305 | AT1: 13300 | AU1: 13300 | AV1: 13300
B2: допкод МР | X2: =SUM(W38:X38) -> 27390.9 | Y2: =Z38-W38 -> 27178.8 | AA2: 13200 | AB2: 13110 | AC2: 13120 | AD2: 13310 | AE2: 13313 | AF2: 13321 | AG2: 13322 | AH2: 00935 | AI2: 00936 | AJ2: 00937 | AK2: 00938 | AL2: 00939 | AM2: 00940 | AN2: 00941 | AO2: 00942 | AP2: 00943 | AQ2: 00944 | AR2: 00945 | AS2: 13305 | AT2: 00948 | AU2: 00949 | AV2: 00950 | AW2: 00920 | AX2: 00921 | AY2: 00929 | AZ2: 00922
CE3: 350 | CO3: заявки техпаспорт | DA3: распределение земельного | DF3: распределение имущественного
A4: Код администратора | B4: Наименование поселений | C4: население на 01.01.2017 | W4: Районный фонд финансовой поддержки поселений | AA4: Дотации бюджетам МР | AB4: Субсидии из РФС соцрасходов | AC4: Субсидии(соцрасходы Образования) | AD4: Субвенция исходя из количества жителей (СП) | AE4: Субвенция исходя из количества жителей (ГП) | AF4: Субвенции ИМО образовательных учрежд | AG4: Субвенции Образованию | AH4: Субвенции детсадам | AI4: Субвенции школам | AJ4: Субвенции по комиисии несоверш | AK4: Субвенции по адм.практике | AL4: Субвенция протоколы | AM4: Субвенции молодежная политика | AN4: Субвенция ведение регистра, | AO4: Субвенции на проведение протовоэпид мероприятий | AP4: Субвенции опоп | AQ4: Субвенции на опеку | AR4: Субвенции архиву | AS4: Субвенция (земельный) | AT4: Субвенции на скотомогильники | AU4: Субвенции на биотермические ямы | AV4: Субвенции на отстрел | AW4: Субвенции ЗАГСам | AX4: Субвенции по первичному воинскому учету | AY4: Субвенции по составлению (изменению) списков кандидатов в присяжные заседатели федеральных судов | AZ4: Иные трансферты на книжный фонд | BA4: Субвенции из нижстоящ.бюджетов (ксп+зем+кржф) | BB4: ВСЕГО | BC4: Дефицит | BD4: Общегосударственные вопросы | BE4: ЦБ | BF4: ЗАГС | BG4: Полномочия | BH4: Национальная оборона | BI4: Национальная безопасность | BJ4: Национальная экономика | BK4: ЖКХ | BL4: Охрана окружающей среды | BM4: Образование | BN4: Молодежная политика | BO4: Культура | BP4: Здравоохранение | BQ4: Социальная политика | BR4: Физическая культура и спорт | BS4: Обслуживание муниципального долга | BT4: МТ (по соглашению-ксп) | BU4: МТ (по соглашению-ЖКХ) | BV4: МТ (здравоохранение) | BW4: МТ (по соглашению-культура) | BX4: Всего расходов | CD4: РАСХОДЫ ЖКХ НА 1 ЖИТЕЛЯ ПОСЕЛЕНИЯ,руб | DA4: 06033.10 | DB4: 06043.10 | DC4: 06033.13 | DD4: 06043.13
D5: НДФЛ | E5: имущество фл | F5: земельный налог | G5: ед.налог на вм.доход | H5: налог взим по упрощ системена вм.доход | I5: патент | J5: сельхозналог | K5: госпошлина (суды) | L5: Акциз | M5: добыча | N5: налог на игорный бизнес | O5: аренда | Q5: продажа земли | R5: прочие доходы | S5: прибыль МБП | T5: штрафы | U5: негативное воздействие | V5: ВСЕГО | W5: дотация исходя из количества жителей | X5: дотация по обеспеченности | Y5: дотация для сбалансированности | Z5: итого | BB5: доходов | BY5: район | CD5: всего | CL5: дефицит | CO5: дороги | CP5: скважины | CQ5: кладбища | CR5: видео | CS5: правила землепользования | CT5: газопровод | CU5: карьер | CV5: вывоз тбо | CW5: генплан | CX5: итого | DA5: юр.лица | DB5: физ.лица | DC5: юр.лица | DD5: физ.лица | DE5: итого | DF5: юр.лица | DG5: физ.лица | DH5: итого | DI5: кржф | DJ5: ул освещение | DK5: прочие объекты благ | DQ5: 01 раздел | DR5: цб | DS5: культура | DT5: 04 раздел дороги | DU5: 05 раздел | DW5: 01 раздел | DX5: цб | DY5: культура | DZ5: 04 раздел дороги | EA5: 05 раздел
O6: земли | P6: имущества | BZ6: доля | CA6: исполкомы | CB6: код администартора | CC6: совет | CE6: жкх | CF6: кржф | CG6: дороги | CH6: водители | CI6: дополнительно в счет отриц трансфертов | CJ6: дорфонд | CK6: башни | DI6: 19 | DJ6: 22 | DK6: 26 | DL6: 2019 | DM6: 2020 | DN6: трансф | DQ6: 2019/2018 | DR6: 2019/2018 | DS6: 2019/2018 | DT6: 2019/2018 | DU6: 2019/2018 | DW6: 2020/2018 | DX6: 2020/2018 | DY6: 2020/2018 | DZ6: 2020/2018 | EA6: 2020/2018
BD7: 01 | BE7: 01 | BF7: 01 | BG7: 01 | BH7: 02 | BI7: 03 | BJ7: 04 | BK7: 05 | BL7: 06 | BM7: 07 | BN7: 07 | BO7: 08 | BP7: 09 | BQ7: 10 | BR7: 11 | BS7: 13 | BT7: 14 | BU7: 14 | BV7: 14 | BW7: 14
A8: 1 | B8: Байлянгарское сельское поселение | C8: 1092 | D8: =85+0.03 -> 85.03 | E8: 152.4 | F8: 456 | J8: 0 | P8: 40 | V8: =SUM(D8:U8) -> 733.43 | W8: 10.4 | X8: 749.9 | Y8: 31.4 | Z8: =SUM(W8:Y8) -> 791.7 | AW8: 0 | AX8: 90.6 | BB8: =SUM(V8:BA8)-Z8 -> 1615.73 | BC8: -9.237055565e-14 | BD8: 720.1 | BE8: 184.4 | BF8: 0 | BG8: 0 | BH8: =AX8 -> 90.6 | BI8: 0 | BJ8: 282.7 | BK8: 205.3 | BO8: 118.43 | BP8: 0 | BQ8: 0 | BR8: 0 | BS8: 0 | BT8: 11 | BV8: 3.2 | BX8: =SUM(BD8:BW8) -> 1615.73 | BY8: =BB40 -> 1124972.84 | BZ8: =C8/$C$38 -> 0.02136400986 | CA8: 1 | CB8: 621 | CC8: 2 | CD8: =SUM(CE8:CK8) -> 435 | CE8: =ROUND(C8*$CE$3/1000,0) -> 382 | CH8: 53 | CK8: =S8 -> 0 | CL8: =BB8-BX8 -> 0 | CM8: =BK8-CD8 -> -229.7 | CO8: 162000 | CX8: =SUM(CO8:CW8) -> 162000 | CZ8: =BB8-BX8 -> 0 | DA8: 50 | DB8: =F8-DA8 -> 406 | DE8: =SUM(DA8:DD8) -> 456 | DF8: =E8 -> 152.4 | DH8: =SUM(DF8:DG8) -> 152.4 | DI8: 0 | DJ8: 169.3 | DK8: 36 | DL8: 1648.081514 | DM8: 1680.226099 | DN8: =SUM(BT8:BW8) -> 14.2 | DO8: =DL8-BX8 -> 32.35151392 | DP8: =DM8-BX8 -> 64.49609938 | DQ8: 21.9 | DR8: 5.6 | DS8: 0 | DT8: 2.81049792 | DU8: 2.041015999 | DV8: =SUM(DQ8:DU8)-DO8 -> 0 | DW8: 47.9 | DX8: 11.6 | DY8: 0 | DZ8: 2.894256749 | EA8: 2.101842626 | EB8: =SUM(DW8:EA8)-DP8 -> 1.98951966e-13
